Workbook

Sheet Consolidado
B4: Consolidado (R$ milhares) - DRE | C4: 1T24 | D4: 2T24 | E4: 3T24 | F4: 4T24 | G4: 2024 | H4: 1T23 | I4: 2T23 | J4: 3T23 | K4: 4T23 | L4: 2023 | M4: 1T22 | N4: 2T22 | O4: 3T22 | P4: 4T22 | Q4: 2022 | R4: 1T21 | S4: 2T21 | T4: 3T21 | U4: 4T21 | V4: 2021 | W4: 1T20 | X4: 2T20 | Y4: 3T20 | Z4: 4T20 | AA4: 2020 | AB4: 1T19 | AC4: 2T19 | AD4: 3T19 | AE4: 4T19 | AF4: 2019 | AG4: 1T18 | AH4: 2T18 | AI4: 3T18 | AJ4: 4T18 | AK4: 2018 | AL4: 1T17 | AM4: 2T17 | AN4: 3T17 | AO4: 4T17 | AP4: 2017 | AQ4: 1T16 | AR4: 2T16 | AS4: 3T16 | AT4: 4T16 | AU4: 2016 | AV4: 1T15 | AW4: 2T15 | AX4: 3T15 | AY4: 4T15 | AZ4: 2015 | BA4: 1T14 | BB4: 2T14 | BC4: 3T14 | BD4: 4T14 | BE4: 2014 | BF4: 1T13 | BG4: 2T13 | BH4: 3T13 | BI4: 4T13 | BJ4: 2013 | BK4: 1T12 | BL4: 2T12 | BM4: 3T12 | BN4: 4T12 | BO4: 2012 | BP4: 2011 | BQ4: 2010
B6: Receita Líquida | C6: 85722 | D6: 107878 | E6: 107878 | F6: =G6-SUM(C6:E6) -> 148324 | G6: 449802 | H6: 123396 | I6: 130296 | J6: 127156 | K6: =L6-SUM(H6:J6) -> 137831 | L6: 518679 | M6: 103067 | N6: 129389 | O6: 140633 | P6: =Q6-SUM(M6:O6) -> 157239 | Q6: 530328 | R6: 71990 | S6: 100053 | T6: 112361 | U6: 139808 | V6: =SUM(R6:U6) -> 424212 | W6: 89884 | X6: 18685 | Y6: 69564 | Z6: 122575 | AA6: =SUM(W6:Z6) -> 300708 | AB6: 149996 | AC6: 110767 | AD6: 141672 | AE6: 169804 | AF6: =SUM(AB6:AE6) -> 572239 | AG6: 157906 | AH6: 131375 | AI6: 194276 | AJ6: 186284 | AK6: 669841 | AL6: 190729 | AM6: 139314 | AN6: 199731 | AO6: 184399 | AP6: 714173 | AQ6: 214915 | AR6: 178631 | AS6: 217377 | AT6: 214772 | AU6: 825695 | AV6: 227422 | AW6: 188708 | AX6: 253224 | AY6: 243849 | AZ6: 913203 | BA6: 234096 | BB6: 189170 | BC6: 248468 | BD6: 256801 | BE6: 928535 | BF6: 183649 | BG6: 201644 | BH6: 260326 | BI6: 260320 | BJ6: 905939 | BK6: 138996 | BL6: 172945 | BM6: 178259 | BN6: 289690 | BO6: 779890 | BP6: 370819 | BQ6: 161523
B8: (-) Custos Totais | C8: -23970 | D8: -30011 | E8: -34215 | F8: =G8-SUM(C8:E8) -> -34511 | G8: -122707 | H8: -35611 | I8: -34714 | J8: -35178 | K8: =L8-SUM(H8:J8) -> -34312 | L8: -139815 | M8: -31326 | N8: -36035 | O8: -40553 | P8: =Q8-SUM(M8:O8) -> -42514 | Q8: -150428 | R8: -24579 | S8: -32459 | T8: -33921 | U8: -36409 | V8: =SUM(R8:U8) -> -127368 | W8: -27988 | X8: -6582 | Y8: -24465 | Z8: -34210 | AA8: =SUM(W8:Z8) -> -93245 | AB8: -49039 | AC8: -32638 | AD8: -45892 | AE8: -49971 | AF8: =SUM(AB8:AE8) -> -177540 | AG8: -54699 | AH8: -39589 | AI8: -67789 | AJ8: -55193 | AK8: -217270 | AL8: -68959 | AM8: -46597 | AN8: -66430 | AO8: -59472 | AP8: -241458 | AQ8: -89018 | AR8: -72211 | AS8: -92519 | AT8: -74449 | AU8: -328197 | AV8: -90069 | AW8: -72090 | AX8: -102745 | AY8: -92280 | AZ8: -357184 | BA8: -92841 | BB8: -81352 | BC8: -95930 | BD8: -91253 | BE8: -361376 | BF8: -69595 | BG8: -76221 | BH8: -102228 | BI8: -95515 | BJ8: -343559 | BK8: -59015 | BL8: -73062 | BM8: -81132 | BN8: -120907 | BO8: -334116 | BP8: -150292 | BQ8: -46389
B10: (=) Lucro Bruto | C10: =C6+C8 -> 61752 | D10: 77867 | E10: =E6+E8 -> 73663 | F10: 113813 | G10: =G6+G8 -> 327095 | H10: =H6+H8 -> 87785 | I10: 95582 | J10: =J6+J8 -> 91978 | K10: 103519 | L10: 378864 | M10: =M6+M8 -> 71741 | N10: 93354 | O10: =O6+O8 -> 100080 | P10: 114725 | Q10: 379900 | R10: 47411 | S10: 67594 | T10: 78440 | U10: 103399 | V10: =SUM(R10:U10) -> 296844 | W10: =W6+W8 -> 61896 | X10: =X6+X8 -> 12103 | Y10: =Y6+Y8 -> 45099 | Z10: =Z6+Z8 -> 88365 | AA10: =SUM(W10:Z10) -> 207463 | AB10: =AB6+AB8 -> 100957 | AC10: =AC6+AC8 -> 78129 | AD10: 95780 | AE10: 119833 | AF10: =SUM(AB10:AE10) -> 394699 | AG10: 103207 | AH10: 91786 | AI10: 126487 | AJ10: 131091 | AK10: 452571 | AL10: 121770 | AM10: 92717 | AN10: 133301 | AO10: 124927 | AP10: 472715 | AQ10: 125897 | AR10: 106420 | AS10: 124858 | AT10: 140323 | AU10: 497498 | AV10: 137353 | AW10: 116618 | AX10: 150479 | AY10: 151569 | AZ10: 556019 | BA10: 141255 | BB10: 107818 | BC10: 152538 | BD10: 165548 | BE10: 567159 | BF10: 114054 | BG10: 125423 | BH10: 158098 | BI10: 164805 | BJ10: 562380 | BK10: 79981 | BL10: 99883 | BM10: 97127 | BN10: 168783 | BO10: 445774 | BP10: 220527 | BQ10: =BQ6+BQ8 -> 115134
B11: Margem Bruta | C11: =C10/C6 -> 0.7203751662 | D11: 0.7218061143 | E11: =E10/E6 -> 0.6828361668 | F11: 0.7673269329 | G11: =G10/G6 -> 0.7271977448 | H11: =H10/H6 -> 0.7114087977 | I11: 0.733575858 | J11: =J10/J6 -> 0.7233476989 | K11: 0.7510574544 | L11: 0.7304402145 | M11: 0.6960617851 | N11: 0.7214987364 | O11: 0.7116395156 | P11: 0.7296217859 | Q11: 0.7163491273 | R11: 0.6585775802 | S11: =S10/S6 -> 0.6755819416 | T11: =T10/T6 -> 0.6981069944 | U11: 0.7395785649 | V11: 0.6997538966 | W11: =W10/W6 -> 0.6886208891 | X11: 0.6477388279 | Y11: 0.6483094704 | Z11: 0.720905568 | AA11: 0.6899151336 | AB11: 0.6730646151 | AC11: =AC10/AC6 -> 0.7053454549 | AD11: 0.6760686657 | AE11: 0.7057136463 | AF11: 0.6897450191 | AG11: 0.65359771 | AH11: 0.6986565176 | AI11: 0.6510685828 | AJ11: 0.7037158317 | AK11: 0.6756394428 | AL11: 0.6384451237 | AM11: 0.66552536 | AN11: 0.6674026566 | AO11: 0.677481982 | AP11: 0.6619054487 | AQ11: 0.5857990368 | AR11: 0.5957532567 | AS11: 0.5743845945 | AT11: 0.6533579796 | AU11: 0.6025203011 | AV11: 0.6039565214 | AW11: 0.6179812197 | AX11: 0.5942525195 | AY11: 0.6215690858 | AZ11: 0.6088668127 | BA11: 0.6034062949 | BB11: 0.5699529524 | BC11: 0.6139140654 | BD11: 0.6446548105 | BE11: 0.610810578 | BF11: 0.6210434034 | BG11: 0.6220021424 | BH11: 0.6073077603 | BI11: 0.6330862016 | BJ11: 0.6207702726 | BK11: 0.5754194365 | BL11: 0.5775419931 | BM11: 0.5448644949 | BN11: 0.5826331596 | BO11: 0.5715857365 | BP11: 0.5947025368 | BQ11: =BQ10/BQ6 -> 0.7128025111
B13: (-) Despesas Operacionais Antes do Resultado Financeiro | C13: =SUM(C14:C19) -> -70811 | D13: =SUM(D14:D19) -> -81527 | E13: -81761 | F13: -88876 | G13: =SUM(G14:G19) -> -322975 | H13: =SUM(H14:H19) -> -76313 | I13: =SUM(I14:I19) -> -72128 | J13: -80831 | K13: =SUM(K14:K19) -> -94965 | L13: -324237 | M13: =SUM(M14:M19) -> -70060 | N13: =SUM(N14:N19) -> -73908 | O13: -75512 | P13: -80731 | Q13: -300211 | R13: =SUM(R14:R19) -> -70021 | S13: =SUM(S14:S19) -> -61874 | T13: -65004 | U13: =SUM(U14:U19) -> -75390 | V13: -272289 | W13: =SUM(W14:W19) -> -90755 | X13: -42350 | Y13: -66666 | Z13: -75604 | AA13: -275375 | AB13: -99981 | AC13: =SUM(AC14:AC19) -> -98962 | AD13: -76546 | AE13: -57830 | AF13: -333319 | AG13: -104934 | AH13: -103270 | AI13: -105161 | AJ13: -120296 | AK13: -433661 | AL13: -110145 | AM13: -110414 | AN13: -104516 | AO13: -175353 | AP13: -500428 | AQ13: -120940 | AR13: -115019 | AS13: -113432 | AT13: -145757 | AU13: -495148 | AV13: -113856 | AW13: -111566 | AX13: -113063 | AY13: -124273 | AZ13: -462758 | BA13: -118353 | BB13: -104024 | BC13: -109625 | BD13: -110148 | BE13: -442150 | BF13: -111028 | BG13: -107966 | BH13: -109972 | BI13: -115872 | BJ13: -444837 | BK13: -87616 | BL13: -90558 | BM13: -94558 | BN13: -127999 | BO13: -400731 | BP13: -238575 | BQ13: =SUM(BQ14:BQ19) -> -99445
B14: Despesas com Vendas | C14: -48040 | D14: -50915 | E14: -53861 | F14: =G14-SUM(C14:E14) -> -62420 | G14: -215236 | H14: -48992 | I14: -50156 | J14: -51539 | K14: =L14-SUM(H14:J14) -> -54489 | L14: -205176 | M14: -42532 | N14: -46974 | O14: -48714 | P14: =Q14-SUM(M14:O14) -> -56311 | Q14: -194531 | R14: -32757 | S14: -34377 | T14: -39555 | U14: -46768 | V14: =SUM(R14:U14) -> -153457 | W14: -46388 | X14: -9869 | Y14: -29231 | Z14: -51199 | AA14: =SUM(W14:Z14) -> -136687 | AB14: -57258 | AC14: -53061 | AD14: -51221 | AE14: -57951 | AF14: =SUM(AB14:AE14) -> -219491 | AG14: -73625 | AH14: -72613 | AI14: -53984 | AJ14: -88081 | AK14: -288303 | AL14: -74576 | AM14: -72983 | AN14: -78429 | AO14: -90477 | AP14: -316465 | AQ14: -82661 | AR14: -77360 | AS14: -76229 | AT14: -84441 | AU14: -320691 | AV14: -79340 | AW14: -77945 | AX14: -81401 | AY14: -93595 | AZ14: -332281 | BA14: -81362 | BB14: -65290 | BC14: -80333 | BD14: -97094 | BE14: -324079 | BF14: -75330 | BG14: -69806 | BH14: -97307 | BI14: -82957 | BJ14: -325399 | BK14: -46083 | BL14: -47773 | BM14: -72774 | BN14: -102260 | BO14: -268890 | BP14: -114431 | BQ14: -49726
B15: Despesas Gerais e Administrativas | C15: -7189 | D15: -10904 | E15: -8102 | F15: =G15-SUM(C15:E15) -> -9212 | G15: -35407 | H15: -11747 | I15: -9930 | J15: -9750 | K15: -8032 | L15: -39459 | M15: -9203 | N15: -11715 | O15: -12241 | P15: -12216 | Q15: -45375 | R15: -11855 | S15: -11088 | T15: -7274 | U15: -9072 | V15: =SUM(R15:U15) -> -39289 | W15: -14663 | X15: -5712 | Y15: -11797 | Z15: -12081 | AA15: =SUM(W15:Z15) -> -44253 | AB15: -15008 | AC15: -18085 | AD15: -20423 | AE15: -45460 | AF15: =SUM(AB15:AE15) -> -98976 | AG15: -18395 | AH15: -28945 | AI15: -41635 | AJ15: -15659 | AK15: -104634 | AL15: -19959 | AM15: -20181 | AN15: -12347 | AO15: -43421 | AP15: -95908 | AQ15: -20624 | AR15: -22291 | AS15: -22218 | AT15: -32143 | AU15: -97276 | AV15: -21535 | AW15: -21718 | AX15: -18995 | AY15: -17096 | AZ15: -79344 | BA15: -31589 | BB15: -22992 | BC15: -19158 | BD15: -17758 | BE15: -91497 | BF15: -28525 | BG15: -30960 | BH15: -14444 | BI15: -28725 | BJ15: -102654 | BK15: -37752 | BL15: -38881 | BM15: -19142 | BN15: -20395 | BO15: -116170 | BP15: -86352 | BQ15: -46021
B16: Depreciações e amortizações | C16: -19309 | D16: -19010 | E16: -18962 | F16: =G16-SUM(C16:E16) -> -18121 | G16: -75402 | H16: -19454 | I16: -19186 | J16: -19049 | K16: -20079 | L16: -77768 | M16: -20992 | N16: -20347 | O16: -20119 | P16: -19689 | Q16: -81147 | R16: -22198 | S16: -19787 | T16: -20913 | U16: -22290 | V16: -85188 | W16: -26953 | X16: -27195 | Y16: -24547 | Z16: -18467 | AA16: -97162 | AB16: -25820 | AC16: -25380 | AD16: -24700 | AE16: -27290 | AF16: -103190 | AG16: -13637 | AH16: -13294 | AI16: -13389 | AJ16: -13467 | AK16: -53787 | AL16: -13982 | AM16: -14203 | AN16: -14079 | AO16: -13661 | AP16: -55925 | AQ16: -13430 | AR16: -13705 | AS16: -13699 | AT16: -13418 | AU16: -54252 | AV16: -11928 | AW16: -12281 | AX16: -12846 | AY16: -12296 | AZ16: -49351 | BA16: -4679 | BB16: -14780 | BC16: -10723 | BD16: -11183 | BE16: -41365 | BF16: -6655 | BG16: -7960 | BH16: -8477 | BI16: -9224 | BJ16: -32316 | BK16: -3178 | BL16: -3820 | BM16: -4185 | BN16: -6085 | BO16: -17268 | BP16: -6358 | BQ16: -2961
B17: Equivalência Patrimonial | C17: -432 | D17: -385 | E17: -389 | F17: =G17-SUM(C17:E17) -> 717 | G17: -489 | H17: 4444 | I17: 6381 | J17: -355 | K17: -11223 | L17: -753 | M17: 2523 | N17: 5637 | O17: 5800 | P17: 5691 | Q17: 19651 | R17: -928 | S17: 3922 | T17: 3094 | U17: 3726 | V17: 9814 | W17: 164 | X17: -1954 | Y17: -617 | Z17: 3456 | AA17: 1049 | AB17: -680 | AC17: -561 | AD17: 685 | AE17: 3157 | AF17: 2601 | AG17: -479 | AH17: -1100 | AI17: -368 | AJ17: -414 | AK17: -2361 | AL17: -900 | AM17: -1825 | AN17: 434 | AO17: -1917 | AP17: -4208 | AQ17: -1198 | AR17: -1573 | AS17: -686 | AT17: -2582 | AU17: -6039 | AV17: -1066 | AW17: -74 | AX17: 2140 | AY17: -110 | AZ17: 890 | BA17: -1070 | BB17: -65 | BC17: 715 | BD17: 631 | BE17: 211 | BF17: -662 | BG17: 653 | BH17: 941 | BI17: 159 | BJ17: 1091 | BK17: - | BL17: - | BM17: - | BN17: -153 | BO17: -153 | BP17: -7474 | BQ17: -375
B18: Ganho na remensuração de participação | C18: 0 | D18: 0 | E18: 0 | F18: =G18-SUM(C18:E18) -> 0 | G18: 0 | H18: 0 | I18: 0 | J18: 0 | K18: 0 | L18: 0 | M18: 0 | N18: 0 | O18: 0 | P18: 0 | Q18: 0 | R18: 0 | S18: 0 | T18: 0 | U18: 0 | V18: 0 | W18: 0 | X18: 0 | AA18: 0 | AB18: 0 | AC18: 0 | AD18: 0 | AE18: 0 | AF18: 0 | AG18: 0 | AH18: 0 | AI18: 0 | AJ18: 0 | AK18: 0 | AL18: 0 | AM18: 0 | AN18: 0 | AO18: 0 | AP18: 0 | AQ18: 0 | AR18: 0 | AS18: 0 | AT18: 0 | AU18: 0 | AV18: 0 | AW18: 0 | AX18: 0 | AY18: 0 | AZ18: 0 | BA18: 0 | BB18: 0 | BC18: 0 | BD18: 0 | BE18: 0 | BF18: 0 | BG18: 0 | BH18: 0 | BI18: 0 | BJ18: 0 | BK18: 0 | BL18: 0 | BM18: 0 | BN18: 0 | BO18: 0 | BP18: 13161 | BQ18: 0
B19: Outras Receitas (Despesas) Operacionais | C19: 4159 | D19: -313 | E19: -447 | F19: =G19-SUM(C19:E19) -> 160 | G19: 3559 | H19: -564 | I19: 763 | J19: -138 | K19: -1142 | L19: -1081 | M19: 144 | N19: -509 | O19: -238 | P19: 1794 | Q19: 1191 | R19: -2283 | S19: -544 | T19: -356 | U19: -986 | V19: -4169 | W19: -2915 | X19: 2380 | Y19: -474 | Z19: 2687 | AA19: 1678 | AB19: -1215 | AC19: -1875 | AD19: 19113 | AE19: 69714 | AF19: 85737 | AG19: 1202 | AH19: 12682 | AI19: 4215 | AJ19: -2675 | AK19: 15424 | AL19: -728 | AM19: -1222 | AN19: -95 | AO19: -25877 | AP19: -27922 | AQ19: -3027 | AR19: -90 | AS19: -600 | AT19: -13173 | AU19: -16890 | AV19: 13 | AW19: 452 | AX19: -1961 | AY19: -1176 | AZ19: -2672 | BA19: 347 | BB19: -897 | BC19: -126 | BD19: 15256 | BE19: 14580 | BF19: 144 | BG19: 107 | BH19: 9315 | BI19: 4875 | BJ19: 14441 | BK19: -603 | BL19: -84 | BM19: 1543 | BN19: 894 | BO19: 1750 | BP19: -37121 | BQ19: -362
B21: EBIT | C21: =C10+C13 -> -9059 | D21: =D10+D13 -> -3660 | E21: =E10+E13 -> -8098 | F21: 24937 | G21: =G10+G13 -> 4120 | H21: =H10+H13 -> 11472 | I21: =I10+I13 -> 23454 | J21: =J10+J13 -> 11147 | K21: 8554 | L21: 54627 | M21: =M10+M13 -> 1681 | N21: =N10+N13 -> 19446 | O21: =O10+O13 -> 24568 | P21: 33994 | Q21: 79689 | R21: =R10+R13 -> -22610 | S21: =S10+S13 -> 5720 | T21: =T10+T13 -> 13436 | U21: 28009 | V21: 24555 | W21: =W10+W13 -> -28859 | X21: -30247 | Y21: -21567 | Z21: 12761 | AA21: -67912 | AB21: 976 | AC21: =AC10+AC13 -> -20833 | AD21: 19234 | AE21: =AE10+AE13 -> 62003 | AF21: 61380 | AG21: -1727 | AH21: -11484 | AI21: 21326 | AJ21: 10795 | AK21: 18910 | AL21: 11625 | AM21: -17697 | AN21: 28785 | AO21: -50426 | AP21: -27713 | AQ21: 4957 | AR21: -8599 | AS21: 11426 | AT21: -5434 | AU21: 2350 | AV21: 23497 | AW21: 5052 | AX21: 37416 | AY21: 27296 | AZ21: 93261 | BA21: 22902 | BB21: 3794 | BC21: 42913 | BD21: 55400 | BE21: 125009 | BF21: 3026 | BG21: 17457 | BH21: 48126 | BI21: 48933 | BJ21: 117543 | BK21: -7635 | BL21: 9325 | BM21: 2569 | BN21: 40784 | BO21: 45043 | BP21: -18048 | BQ21: =BQ10+BQ13 -> 15689
B22: Margem EBIT | C22: =C21/C6 -> -0.1056788222 | D22: =D21/D6 -> -0.03392721408 | E22: =E21/E6 -> -0.07506627857 | F22: 0.1681251854 | G22: =G21/G6 -> 0.009159585773 | H22: =H21/H6 -> 0.09296897792 | I22: =I21/I6 -> 0.1800055259 | J22: =J21/J6 -> 0.08766397181 | K22: 0.06206151011 | L22: 0.1053194751 | M22: =M21/M6 -> 0.01630977908 | N22: =N21/N6 -> 0.150290983 | O22: =O21/O6 -> 0.1746958395 | P22: 0.2161931836 | Q22: 0.1502636104 | R22: =R21/R6 -> -0.3140713988 | S22: =S21/S6 -> 0.05716970006 | T22: =T21/T6 -> 0.1195788574 | U22: 0.2003390364 | V22: 0.05788379395 | W22: =W21/W6 -> -0.3210693783 | X22: -1.618785122 | Y22: -0.3100310505 | Z22: 0.1041076892 | AA22: -0.2258403501 | AB22: 0.006506840182 | AC22: =AC21/AC6 -> -0.1880794822 | AD22: 0.1357643006 | AE22: =AE21/AE6 -> 0.3651445196 | AF22: 0.1072628744 | AG22: -0.0109368865 | AH22: -0.08741389153 | AI22: 0.1097716651 | AJ22: 0.05794915291 | AK22: 0.02823058009 | AL22: 0.06095035364 | AM22: -0.1270295878 | AN22: 0.1441188398 | AO22: -0.2734613528 | AP22: -0.03880432332 | AQ22: 0.02306493265 | AR22: -0.04813834105 | AS22: 0.05256305865 | AT22: -0.0253012497 | AU22: 0.002846087236 | AV22: 0.1033189401 | AW22: 0.02677152002 | AX22: 0.1477585063 | AY22: 0.1119381256 | AZ22: 0.1021251573 | BA22: 0.09783165881 | BB22: 0.02005603425 | BC22: 0.1727103691 | BD22: 0.2157312472 | BE22: 0.1346303586 | BF22: 0.016477084 | BG22: 0.08657336692 | BH22: 0.1848682037 | BI22: 0.1879724954 | BJ22: 0.1297471463 | BK22: -0.05492963826 | BL22: 0.05391887594 | BM22: 0.01441161456 | BN22: 0.140784977 | BO22: 0.05775558092 | BP22: -0.04867064525 | BQ22: =BQ21/BQ6 -> 0.09713167784
B24: (+-) Resultado Financeiro | C24: =SUM(C25:C27) -> -18489 | D24: =SUM(D25:D27) -> -20872 | E24: -20240 | F24: -24292 | G24: =SUM(G25:G27) -> -83893 | H24: =SUM(H25:H27) -> -26225 | I24: =SUM(I25:I27) -> -26174 | J24: -26132 | K24: =SUM(K25:K27) -> -27880 | L24: -106411 | M24: =SUM(M25:M27) -> -22459 | N24: =SUM(N25:N27) -> -21941 | O24: -26216 | P24: -25191 | Q24: -95807 | R24: =SUM(R25:R27) -> -5195 | S24: =SUM(S25:S27) -> -10789 | T24: -14527 | U24: =SUM(U25:U27) -> -16240 | V24: -46751 | W24: =SUM(W25:W27) -> -16676 | X24: -14108 | Y24: -10195 | Z24: -9616 | AA24: -50595 | AB24: -19769 | AC24: =SUM(AC25:AC27) -> -16634 | AD24: -13373 | AE24: 18116 | AF24: -31660 | AG24: -21358 | AH24: -25427 | AI24: -11762 | AJ24: -19113 | AK24: -77660 | AL24: -32390 | AM24: -26382 | AN24: -21737 | AO24: -23732 | AP24: -104241 | AQ24: -30421 | AR24: -33894 | AS24: -34767 | AT24: -36721 | AU24: -135803 | AV24: -19914 | AW24: -24145 | AX24: -23126 | AY24: -28925 | AZ24: -96110 | BA24: -25389 | BB24: -23631 | BC24: -23990 | BD24: -16120 | BE24: -89130 | BF24: -11340 | BG24: -21956 | BH24: -18080 | BI24: -20154 | BJ24: -71531 | BK24: -4501 | BL24: -11173 | BM24: -10862 | BN24: -14428 | BO24: -40964 | BP24: 14063 | BQ24: =SUM(BQ25:BQ27) -> 19165
B25: Despesas Financeiras | C25: -25721 | D25: -25153 | E25: -26966 | F25: =G25-SUM(C25:E25) -> -29322 | G25: -107162 | H25: -31083 | I25: -31160 | J25: -31172 | K25: =L25-SUM(H25:J25) -> -32516 | L25: -125931 | M25: -27082 | N25: -27381 | O25: -30548 | P25: =Q25-SUM(M25:O25) -> -30083 | Q25: -115094 | R25: -11644 | S25: -13551 | T25: -17531 | U25: -20649 | V25: =SUM(R25:U25) -> -63375 | W25: -16885 | X25: -16460 | Y25: -13957 | Z25: -12106 | AA25: =SUM(W25:Z25) -> -59408 | AB25: -21627 | AC25: -19879 | AD25: -20767 | AE25: -16899 | AF25: =SUM(AB25:AE25) -> -79172 | AG25: -23072 | AH25: -26542 | AI25: -14400 | AJ25: -21084 | AK25: -85098 | AL25: -33959 | AM25: -30549 | AN25: -27442 | AO25: -26594 | AP25: -118544 | AQ25: -33340 | AR25: -37807 | AS25: -39197 | AT25: -41376 | AU25: -151720 | AV25: -26878 | AW25: -28269 | AX25: -33636 | AY25: -35060 | AZ25: -123843 | BA25: -25832 | BB25: -24754 | BC25: -26006 | BD25: -21358 | BE25: -97950 | BF25: -12700 | BG25: -20526 | BH25: -21925 | BI25: -21865 | BJ25: -77017 | BK25: -13966 | BL25: -14206 | BM25: -12967 | BN25: -17281 | BO25: -58420 | BP25: -18144 | BQ25: -2831
B26: Receitas Financeiras | C26: 7262 | D26: 4000 | E26: 6535 | F26: =G26-SUM(C26:E26) -> 4785 | G26: 22582 | H26: 4887 | I26: 5124 | J26: 5065 | K26: 4637 | L26: 19713 | M26: 5029 | N26: 5824 | O26: 4316 | P26: 4884 | Q26: 20053 | R26: 6050 | S26: 2662 | T26: 3053 | U26: 4382 | V26: =SUM(R26:U26) -> 16147 | W26: 1624 | X26: 2344 | Y26: 3746 | Z26: 2219 | AA26: =SUM(W26:Z26) -> 9933 | AB26: 1890 | AC26: 2137 | AD26: 8800 | AE26: 34279 | AF26: =SUM(AB26:AE26) -> 47106 | AG26: 2255 | AH26: 2123 | AI26: 2214 | AJ26: 2249 | AK26: 8841 | AL26: 2901 | AM26: 3520 | AN26: 6342 | AO26: 2375 | AP26: 15138 | AQ26: 4179 | AR26: 4385 | AS26: 5133 | AT26: 5575 | AU26: 19272 | AV26: 3529 | AW26: 3040 | AX26: 4084 | AY26: 3855 | AZ26: 14508 | BA26: 1647 | BB26: 1770 | BC26: 2993 | BD26: 3890 | BE26: 10300 | BF26: 1137 | BG26: 1331 | BH26: 1813 | BI26: 2953 | BJ26: 7234 | BK26: 8982 | BL26: 4848 | BM26: 1778 | BN26: 2834 | BO26: 18442 | BP26: 33944 | BQ26: 22387
B27: Variação cambial, líquida | C27: -30 | D27: 281 | E27: 191 | F27: =G27-SUM(C27:E27) -> 245 | G27: 687 | H27: -29 | I27: -138 | J27: -25 | K27: -1 | L27: -193 | M27: -406 | N27: -384 | O27: 16 | P27: 8 | Q27: -766 | R27: 399 | S27: 100 | T27: -49 | U27: 27 | V27: 477 | W27: -1415 | X27: 8 | Y27: 16 | Z27: 271 | AA27: -1120 | AB27: -32 | AC27: 1108 | AD27: -1406 | AE27: 736 | AF27: 406 | AG27: -541 | AH27: -1008 | AI27: 424 | AJ27: -278 | AK27: -1403 | AL27: -1332 | AM27: 647 | AN27: -637 | AO27: 487 | AP27: -835 | AQ27: -1260 | AR27: -472 | AS27: -703 | AT27: -920 | AU27: -3355 | AV27: 3435 | AW27: 1084 | AX27: 6426 | AY27: 2280 | AZ27: 13225 | BA27: -1204 | BB27: -647 | BC27: -977 | BD27: 1348 | BE27: -1480 | BF27: 223 | BG27: -2761 | BH27: 2032 | BI27: -1242 | BJ27: -1748 | BK27: 483 | BL27: -1815 | BM27: 327 | BN27: 19 | BO27: -986 | BP27: -1737 | BQ27: -391
B29: (=) Lucro antes dos impostos | C29: =C21+C24 -> -27548 | D29: =D21+D24 -> -24532 | E29: =E21+E24 -> -28338 | F29: 645 | G29: =G21+G24 -> -79773 | H29: =H21+H24 -> -14753 | I29: =I21+I24 -> -2720 | J29: =J21+J24 -> -14985 | K29: -19326 | L29: -51784 | M29: =M21+M24 -> -20778 | N29: =N21+N24 -> -2495 | O29: -1648 | P29: 8803 | Q29: -16118 | R29: =R21+R24 -> -27805 | S29: =S21+S24 -> -5069 | T29: =T21+T24 -> -1091 | U29: 11769 | V29: -22196 | W29: =W21+W24 -> -45535 | X29: -44355 | Y29: -31762 | Z29: 3145 | AA29: -118507 | AB29: -18793 | AC29: =AC21+AC24 -> -37467 | AD29: =AD21+AD24 -> 5861 | AE29: 80119 | AF29: 29720 | AG29: -23085 | AH29: -36911 | AI29: 9564 | AJ29: -8318 | AK29: -58750 | AL29: -20765 | AM29: -44079 | AN29: 7048 | AO29: -74158 | AP29: -131954 | AQ29: -25464 | AR29: -42493 | AS29: -23341 | AT29: -42155 | AU29: -133453 | AV29: 3583 | AW29: -19093 | AX29: 14290 | AY29: -1629 | AZ29: -2849 | BA29: -2487 | BB29: -19837 | BC29: 18923 | BD29: 39280 | BE29: 35879 | BF29: -8314 | BG29: -4499 | BH29: 30046 | BI29: 28779 | BJ29: 46012 | BK29: -12136 | BL29: -1848 | BM29: -8293 | BN29: 26356 | BO29: 4079 | BP29: -3985 | BQ29: =BQ21+BQ24 -> 34854
B31: Impostos e contribuições sobre o lucro | C31: =SUM(C32:C33) -> -1974 | D31: =SUM(D32:D33) -> 818 | E31: =SUM(E32:E33) -> 3877 | F31: =SUM(F32:F33) -> 1972 | G31: =SUM(G32:G33) -> 4693 | H31: =SUM(H32:H33) -> -3389 | I31: =SUM(I32:I33) -> -848 | J31: =SUM(J32:J33) -> -126 | K31: 2090 | L31: -2273 | M31: =SUM(M32:M33) -> 6698 | N31: =SUM(N32:N33) -> 1013 | O31: -2746 | P31: 1219 | Q31: 6184 | R31: =SUM(R32:R33) -> 7611 | S31: =SUM(S32:S33) -> 938 | T31: =SUM(T32:T33) -> 11395 | U31: 4015 | V31: 23959 | W31: =SUM(W32:W33) -> 122 | X31: 2370 | Y31: 1539 | Z31: 3446 | AA31: 7477 | AB31: 0 | AC31: =SUM(AC32:AC33) -> 2219 | AD31: =SUM(AD32:AD33) -> -3121 | AE31: -4828 | AF31: -5730 | AG31: 6274 | AH31: 25098 | AI31: 307 | AJ31: 0 | AK31: 31679 | AL31: 4681 | AM31: 15155 | AN31: -3536 | AO31: 25246 | AP31: 41546 | AQ31: -3546 | AR31: -1043 | AS31: 104 | AT31: 41303 | AU31: 36818 | AV31: 12016 | AW31: 8697 | AX31: -6700 | AY31: 2147 | AZ31: 16160 | BA31: 10964 | BB31: 11387 | BC31: -10245 | BD31: -14069 | BE31: -1963 | BF31: 2394 | BG31: 4630 | BH31: -7734 | BI31: -1677 | BJ31: -2387 | BK31: -5760 | BL31: -7023 | BM31: -2432 | BN31: 8559 | BO31: -6656 | BP31: -15767 | BQ31: =SUM(BQ32:BQ33) -> -12674
B32: Correntes | C32: 0 | D32: 0 | E32: 3767 | F32: =G32-SUM(C32:E32) -> 0 | G32: 3767 | H32: -713 | I32: -730 | J32: 0 | K32: =L32-SUM(H32:J32) -> 0 | L32: -1443 | M32: 9063 | N32: -13 | O32: -1487 | P32: =Q32-SUM(M32:O32) -> -2333 | Q32: 5230 | R32: 9358 | S32: 0 | T32: 11265 | U32: 0 | V32: =SUM(R32:U32) -> 20623 | W32: 0 | X32: 0 | Y32: 0 | Z32: 0 | AA32: =SUM(W32:Z32) -> 0 | AB32: 0 | AC32: 0 | AD32: -4637 | AE32: -10379 | AF32: =SUM(AB32:AE32) -> -15016 | AG32: -336 | AH32: 316 | AI32: - | AJ32: - | AK32: -20 | AL32: -1036 | AM32: 1 | AN32: -1521 | AO32: -305 | AP32: -2861 | AQ32: -970 | AR32: -524 | AS32: -395 | AT32: 1 | AU32: -1888 | AV32: -1259 | AW32: -653 | AX32: -1198 | AY32: 611 | AZ32: -2499 | BA32: -1514 | BB32: -1760 | BC32: -2739 | BD32: 1615 | BE32: -4398 | BF32: -3116 | BG32: -1848 | BH32: 366 | BI32: -1515 | BJ32: -6113 | BK32: -4640 | BL32: -4776 | BM32: -1147 | BN32: -1456 | BO32: -12019 | BP32: -15200 | BQ32: -7104
B33: Diferidos | C33: -1974 | D33: 818 | E33: 110 | F33: =G33-SUM(C33:E33) -> 1972 | G33: 926 | H33: -2676 | I33: -118 | J33: -126 | K33: 2090 | L33: -830 | M33: -2365 | N33: 1026 | O33: -1259 | P33: 3552 | Q33: 954 | R33: -1747 | S33: 938 | T33: 130 | U33: 4015 | V33: =SUM(R33:U33) -> 3336 | W33: 122 | X33: 2370 | Y33: 1539 | Z33: 3446 | AA33: =SUM(W33:Z33) -> 7477 | AB33: 0 | AC33: 2219 | AD33: 1516 | AE33: 5551 | AF33: =SUM(AB33:AE33) -> 9286 | AG33: 6610 | AH33: 24782 | AI33: 307 | AJ33: - | AK33: 31699 | AL33: 5717 | AM33: 15154 | AN33: -2015 | AO33: 25551 | AP33: 44407 | AQ33: -2576 | AR33: -519 | AS33: 499 | AT33: 41302 | AU33: 38706 | AV33: 13275 | AW33: 9350 | AX33: -5502 | AY33: 1536 | AZ33: 18659 | BA33: 12478 | BB33: 13147 | BC33: -7506 | BD33: -15684 | BE33: 2435 | BF33: 5510 | BG33: 6478 | BH33: -8100 | BI33: -162 | BJ33: 3726 | BK33: -1120 | BL33: -2247 | BM33: -1285 | BN33: 10015 | BO33: 5363 | BP33: -567 | BQ33: -5570
B35: Prejuízo do período proveniente de operações continuadas | C35: =C29+C31 -> -29522 | D35: =D29+D31 -> -23714 | E35: =E29+E31 -> -24461 | F35: 2617 | G35: =G29+G31 -> -75080 | H35: =H29+H31 -> -18142 | I35: =I29+I31 -> -3568 | J35: -15111 | K35: =K29+K31 -> -17236 | L35: -54057 | M35: -14080 | N35: -1482 | O35: -4394 | P35: 10022 | Q35: -9934 | R35: -20194 | S35: -4131 | T35: 10304 | U35: 15784 | V35: 1763 | W35: -45413 | X35: -41985 | Y35: -30223 | Z35: 6591 | AA35: -111030 | AB35: -18793 | AC35: -35248 | AD35: 2740 | AE35: 75291 | AF35: 23990 | AG35: -16811 | AH35: -11813 | AI35: 9871 | AJ35: -8318 | AK35: -27071 | AL35: -16084 | AM35: -28924 | AN35: 3512 | AO35: -48912 | AP35: -90408 | AQ35: -29010 | AR35: -43536 | AS35: -23237 | AT35: -852 | AU35: -96635 | AV35: 15599 | AW35: -10396 | AX35: 7590 | AY35: 518 | AZ35: 13311 | BA35: 8477 | BB35: -8450 | BC35: 8678 | BD35: 25211 | BE35: 33916 | BF35: -5920 | BG35: 131 | BH35: 22312 | BI35: 27102 | BJ35: 43625 | BK35: -17896 | BL35: -8871 | BM35: -10725 | BN35: 34915 | BO35: -2577 | BP35: -19752 | BQ35: 22180
B36: Margem Líquida Total | C36: =C35/C6 -> -0.344392338 | D36: =D35/D6 -> -0.219822392 | E36: =E35/E6 -> -0.2267468807 | F36: 0.0176438068 | G36: =G35/G6 -> -0.1669178883 | H36: =H35/H6 -> -0.1470225939 | I36: =I35/I6 -> -0.02738380303 | J36: -0.1188382774 | K36: =K35/K6 -> -0.1250516937 | L36: -0.1042205295 | M36: -0.1366101662 | N36: -0.01145383302 | O36: -0.03124444476 | P36: 0.06373736796 | Q36: -0.01873180371 | R36: -0.2805111821 | S36: -0.0412881173 | T36: 0.09170441701 | U36: 0.1128976883 | V36: 0.004155940897 | W36: -0.5052400872 | X36: -2.246989564 | Y36: -0.4344632281 | Z36: 0.05377116051 | AA36: -0.3692286205 | AB36: -0.1252900077 | AC36: -0.3182175197 | AD36: 0.01934044836 | AE36: 0.4433994488 | AF36: 0.04192304264 | AG36: -0.1064620724 | AH36: -0.08991817317 | AI36: 0.0508091581 | AJ36: -0.0446522514 | AK36: -0.04041406841 | AL36: -0.08432907424 | AM36: -0.2076173249 | AN36: 0.01758365001 | AO36: -0.2652508962 | AP36: -0.1265911761 | AQ36: -0.1349835982 | AR36: -0.2437202949 | AS36: -0.1068972338 | AT36: -0.00396699756 | AU36: -0.1170347404 | AV36: 0.06859054973 | AW36: -0.05509040422 | AX36: 0.02997346223 | AY36: 0.002124265427 | AZ36: 0.01457616762 | BA36: 0.03621163967 | BB36: -0.04466881641 | BC36: 0.03492602669 | BD36: 0.09817329372 | BE36: 0.03652635603 | BF36: -0.03223540558 | BG36: 0.0006496597965 | BH36: 0.08570792007 | BI36: 0.1041103258 | BJ36: 0.04815445632 | BK36: -0.1287519065 | BL36: -0.05129376391 | BM36: -0.06016526515 | BN36: 0.1205253892 | BO36: -0.003304312147 | BP36: -0.05326587904 | BQ36: 0.1373179052
B38: Lucro do período proveniente de operações descontinuadas | C38: 3953 | D38: 9159 | E38: 6689 | F38: =G38-SUM(C38:E38) -> 8439 | G38: 28240 | H38: 0 | I38: 0 | J38: 1869 | K38: =L38-SUM(H38:J38) -> 25982.04935 | L38: 27851.04935 | M38: 0 | N38: 0 | O38: 0 | P38: 0 | Q38: 0 | R38: 0 | S38: 0 | T38: 0 | U38: 0 | V38: 0 | W38: 0 | X38: 0 | Y38: 0 | Z38: 0 | AA38: 0 | AB38: 0 | AC38: 0 | AD38: 0 | AE38: 0 | AF38: 0 | AG38: 0 | AH38: 0 | AI38: 0 | AJ38: 0 | AK38: 0 | AL38: 0 | AM38: 0 | AN38: 0 | AO38: 0 | AP38: 0 | AQ38: 0 | AR38: 0 | AS38: 0 | AT38: 0 | AU38: 0 | AV38: 0 | AW38: 0 | AX38: 0 | AY38: 0 | AZ38: 0 | BA38: 0 | BB38: 0 | BC38: 0 | BD38: 0 | BE38: 0 | BF38: 0 | BG38: 0 | BH38: 0 | BI38: 0 | BJ38: 0 | BK38: 0 | BL38: 0 | BM38: 0 | BN38: 0 | BO38: 0 | BP38: 0 | BQ38: 0
B40: (=) Lucro Líquido | C40: =C35+C38 -> -25569 | D40: =D35+D38 -> -14555 | E40: =E35+E38 -> -17772 | F40: =F35+F38 -> 11056 | G40: =G35+G38 -> -46840 | H40: =H29+H31 -> -18142 | I40: =I29+I31 -> -3568 | J40: =J35+J38 -> -13242 | K40: =K35+K38 -> 8746.04935 | L40: =L35+L38 -> -26205.95065 | M40: =M29+M31 -> -14080 | N40: =N29+N31 -> -1482 | O40: =O29+O31 -> -4394 | P40: 10022 | Q40: -9934 | R40: =R29+R31 -> -20194 | S40: =S29+S31 -> -4131 | T40: =T29+T31 -> 10304 | U40: 15784 | V40: 1763 | W40: =W29+W31 -> -45413 | X40: -41985 | Y40: -30223 | Z40: 6591 | AA40: -111030 | AB40: -18793 | AC40: =AC29+AC31 -> -35248 | AD40: =AD29+AD31 -> 2740 | AE40: =AE29+AE31 -> 75291 | AF40: 23990 | AG40: -16811 | AH40: -11813 | AI40: 9871 | AJ40: -8318 | AK40: -27071 | AL40: -16084 | AM40: -28924 | AN40: 3512 | AO40: -48912 | AP40: -90408 | AQ40: -29010 | AR40: -43536 | AS40: -23237 | AT40: -852 | AU40: -96635 | AV40: 15599 | AW40: -10396 | AX40: 7590 | AY40: 518 | AZ40: 13311 | BA40: 8477 | BB40: -8450 | BC40: 8678 | BD40: 25211 | BE40: 33916 | BF40: -5920 | BG40: 131 | BH40: 22312 | BI40: 27102 | BJ40: 43625 | BK40: -17896 | BL40: -8871 | BM40: -10725 | BN40: 34915 | BO40: -2577 | BP40: -19752 | BQ40: =BQ29+BQ31 -> 22180
B41: Margem Líquida Total | C41: =C40/C6 -> -0.298278155 | D41: =D40/D6 -> -0.1349209292 | E41: =E40/E6 -> -0.1647416526 | F41: 0.07453952159 | G41: =G40/G6 -> -0.1041347082 | H41: =H40/H6 -> -0.1470225939 | I41: =I40/I6 -> -0.02738380303 | J41: =J40/J6 -> -0.1041397968 | K41: 0.06345487844 | L41: -0.05052441038 | M41: =M40/M6 -> -0.1366101662 | N41: =N40/N6 -> -0.01145383302 | O41: =O40/O6 -> -0.03124444476 | P41: 0.06373736796 | Q41: -0.01873180371 | R41: =R40/R6 -> -0.2805111821 | S41: =S40/S6 -> -0.0412881173 | T41: =T40/T6 -> 0.09170441701 | U41: 0.1128976883 | V41: 0.004155940897 | W41: =W40/W6 -> -0.5052400872 | X41: -2.246989564 | Y41: -0.4344632281 | Z41: 0.05377116051 | AA41: -0.3692286205 | AB41: -0.1252900077 | AC41: =AC40/AC6 -> -0.3182175197 | AD41: =AD40/AD6 -> 0.01934044836 | AE41: =AE40/AE6 -> 0.4433994488 | AF41: 0.04192304264 | AG41: -0.1064620724 | AH41: -0.08991817317 | AI41: 0.0508091581 | AJ41: -0.0446522514 | AK41: -0.04041406841 | AL41: -0.08432907424 | AM41: -0.2076173249 | AN41: 0.01758365001 | AO41: -0.2652508962 | AP41: -0.1265911761 | AQ41: -0.1349835982 | AR41: -0.2437202949 | AS41: -0.1068972338 | AT41: -0.00396699756 | AU41: -0.1170347404 | AV41: 0.06859054973 | AW41: -0.05509040422 | AX41: 0.02997346223 | AY41: 0.002124265427 | AZ41: 0.01457616762 | BA41: 0.03621163967 | BB41: -0.04466881641 | BC41: 0.03492602669 | BD41: 0.09817329372 | BE41: 0.03652635603 | BF41: -0.03223540558 | BG41: 0.0006496597965 | BH41: 0.08570792007 | BI41: 0.1041103258 | BJ41: 0.04815445632 | BK41: -0.1287519065 | BL41: -0.05129376391 | BM41: -0.06016526515 | BN41: 0.1205253892 | BO41: -0.003304312147 | BP41: -0.05326587904 | BQ41: =BQ40/BQ6 -> 0.1373179052
B43: EBITDA | C43: =C21-C16+C38 -> 14203 | D43: =D21-D16+D38 -> 24509 | E43: =E21-E16+E38 -> 17553 | F43: =F21-F16+F38 -> 51497 | G43: =G21-G16+G38 -> 107762 | H43: =H21-H16 -> 30926 | I43: =I21-I16 -> 42640 | J43: =J21-J16+J38 -> 32065 | K43: =K21-K16+K38 -> 54615.04935 | L43: =L21-L16+L38 -> 160246.0493 | M43: =M21-M16 -> 22673 | N43: =N21-N16 -> 39793 | O43: =O21-O16 -> 44687 | P43: 53683 | Q43: =Q21-Q16 -> 160836 | R43: =R21-R16 -> -412 | S43: =S21-S16 -> 25507 | T43: =T21-T16 -> 34349 | U43: 50299 | V43: 109743 | W43: =W21-W16 -> -1906 | X43: =X21-X16 -> -3052 | Y43: =Y21-Y16 -> 2980 | Z43: 31228 | AA43: 29250 | AB43: =AB21-AB16 -> 26796 | AC43: =AC21-AC16 -> 4547 | AD43: =AD21-AD16 -> 43934 | AE43: =AE21-AE16 -> 89293 | AF43: =AF21-AF16 -> 164570 | AG43: =AG21-AG16 -> 11910 | AH43: 1810 | AI43: 34715 | AJ43: 24262 | AK43: 72697 | AL43: 25607 | AM43: -3494 | AN43: 42864 | AO43: -36765 | AP43: 28212 | AQ43: 18387 | AR43: 5106 | AS43: 25125 | AT43: 7984 | AU43: 56602 | AV43: 35425 | AW43: 17333 | AX43: 50262 | AY43: 39592 | AZ43: 142612 | BA43: 27581 | BB43: 18574 | BC43: 53636 | BD43: 66583 | BE43: 166374 | BF43: 9681 | BG43: 25417 | BH43: 56603 | BI43: 58157 | BJ43: 149859 | BK43: -4457 | BL43: 13145 | BM43: 6754 | BN43: 46869 | BO43: 62311 | BP43: -11690 | BQ43: =BQ21-BQ16 -> 18650
B44: Margem EBITDA | C44: =C43/C6 -> 0.1656867549 | D44: 0.2271918278 | E44: =E43/E6 -> 0.1627115816 | F44: 0.3471926323 | G44: =G43/G6 -> 0.2395765248 | H44: =H43/H6 -> 0.2506240073 | I44: =I43/I6 -> 0.3272548658 | J44: =J43/J6 -> 0.2521705621 | K44: 0.3962464856 | L44: 0.3089503322 | M44: =M43/M6 -> 0.2199831178 | N44: =N43/N6 -> 0.3075454637 | O44: =O43/O6 -> 0.3177561454 | P44: 0.3414102099 | Q44: 0.3032764629 | R44: =R43/R6 -> -0.005723017086 | S44: =S43/S6 -> 0.2549348845 | T44: =T43/T6 -> 0.3057021564 | U44: 0.359771973 | V44: 0.2586984809 | W44: =W43/W6 -> -0.02120510881 | X44: -0.1633395772 | Y44: 0.04283824967 | Z44: 0.2547664695 | AA44: 0.09727044176 | AB44: 0.1786447639 | AC44: =AC43/AC6 -> 0.04105013226 | AD44: =AD43/AD6 -> 0.3101106782 | AE44: 0.5258592259 | AF44: 0.287589626 | AG44: 0.07542461971 | AH44: 0.0137773549 | AI44: 0.1786890815 | AJ44: 0.1302419961 | AK44: 0.1085287404 | AL44: 0.1342585553 | AM44: -0.02508003503 | AN44: 0.2146086486 | AO44: -0.199377437 | AP44: 0.03950303358 | AQ44: 0.08555475421 | AR44: 0.02858406436 | AS44: 0.1155826053 | AT44: 0.03717430578 | AU44: 0.06855073605 | AV44: 0.1557676918 | AW44: 0.09185090192 | AX44: 0.1984882949 | AY44: 0.1623627737 | AZ44: 0.1561668107 | BA44: 0.1178191853 | BB44: 0.09818681609 | BC44: 0.2158668319 | BD44: 0.2592785854 | BE44: 0.1791790293 | BF44: 0.05271468943 | BG44: 0.1260488782 | BH44: 0.2174312209 | BI44: 0.2234058082 | BJ44: 0.1654184222 | BK44: -0.03206567095 | BL44: 0.07600682298 | BM44: 0.03788869005 | BN44: 0.1617901895 | BO44: 0.07989716498 | BP44: -0.03152481399 | BQ44: =BQ43/BQ6 -> 0.1154634325
B56: Consolidado (R$ milhares) - Balanço | C56: 2024-03-31 | D56: 2024-06-30 | E56: 2024-09-30 | F56: 2024-12-31 | G56: 2024 | H56: 2023-03-31 | I56: 2023-06-30 | J56: 2023-09-30 | K56: 2023-12-31 | L56: 2023-12-31 | M56: 2022-03-31 | N56: 2022-06-30 | O56: 2022-09-30 | P56: 2022-12-31 | Q56: 2022-12-31 | R56: 2021-03-31 | S56: 2021-06-30 | T56: 2021-09-30 | U56: 2021-12-31 | V56: 2021-12-31 | W56: 2020-03-31 | X56: 2020-06-30 | Y56: 2020-09-30 | Z56: 2020-12-31 | AA56: 2020-12-31 | AB56: 2019-03-31 | AC56: 2019-06-30 | AD56: 2019-09-30 | AE56: 2019-12-31 | AF56: 2019-12-31 | AG56: 2018-03-31 | AH56: 2018-06-30 | AI56: 2018-09-30 | AJ56: 2018-12-31 | AK56: 2018-12-31 | AL56: 2017-03-31 | AM56: 2017-06-30 | AN56: 2017-09-30 | AO56: 2017-12-31 | AP56: 2017-12-31 | AQ56: 2016-03-31 | AR56: 2016-06-30 | AS56: 2016-09-30 | AT56: 2016-12-31 | AU56: 2016-12-31 | AV56: 2015-03-31 | AW56: 2015-06-30 | AX56: 2015-09-30 | AY56: 2015-12-31 | AZ56: 2015-12-31 | BA56: 2014-03-31 | BB56: 2014-06-30 | BC56: 2014-09-30 | BD56: 2014-12-31 | BE56: 2014-12-31 | BF56: 2013-03-31 | BG56: 2013-06-30 | BH56: 2013-09-30 | BI56: 2013-12-31 | BJ56: 2013-12-31 | BK56: 2012-03-31 | BL56: 2012-06-30 | BM56: 2012-09-30 | BN56: 2012-12-31 | BO56: 2012-12-31 | BP56: 2011-12-31 | BQ56: 2010-12-31
B58: Ativo circulante
B59: Caixas e equivalentes de caixa | C59: 2462 | D59: 2480 | E59: 2127 | F59: 3195 | G59: =F59 -> 3195 | H59: 4147 | I59: 2991 | J59: 2500 | K59: 3563 | L59: 3563 | M59: 6068 | N59: 5175 | O59: 3892 | P59: 4320 | Q59: 4320 | R59: 13239 | S59: 8507 | T59: 7047 | U59: 10411 | V59: 10411 | W59: 17420 | X59: 21284 | Y59: 12078 | Z59: 17475 | AA59: =Z59 -> 17475 | AB59: 12083 | AC59: 7765 | AD59: 10695 | AE59: 21410 | AF59: =AE59 -> 21410 | AG59: 15687 | AH59: 16695 | AI59: 14178 | AJ59: 26157 | AK59: =AJ59 -> 26157 | AL59: 23261 | AM59: 41267 | AN59: 20110 | AO59: 19263 | AP59: =AO59 -> 19263 | AQ59: 22227 | AR59: 41466 | AS59: 28907 | AT59: 65827 | AU59: =AT59 -> 65827 | AV59: 23935 | AW59: 105339 | AX59: 109464 | AY59: 93696 | AZ59: =AY59 -> 93696 | BA59: 21810 | BB59: 69839 | BC59: 39882 | BD59: 92112 | BE59: =BD59 -> 92112 | BF59: 9595 | BG59: 3754 | BH59: 52217 | BI59: 42666 | BJ59: =BI59 -> 42666 | BK59: 102107 | BL59: 30158 | BM59: 19583 | BN59: 59714 | BO59: =BN59 -> 59714 | BP59: 19412 | BQ59: 123421
B60: Títulos e valores mobiliários | C60: 0 | D60: 0 | E60: 0 | F60: 0 | G60: =F60 -> 0 | H60: 0 | I60: 0 | J60: 0 | K60: 0 | L60: 0 | M60: 0 | N60: 0 | O60: 0 | P60: 0 | Q60: 0 | R60: 0 | S60: 0 | T60: 0 | U60: 0 | V60: 0 | W60: 0 | X60: 0 | Y60: 0 | Z60: 0 | AA60: =Z60 -> 0 | AB60: 0 | AC60: 0 | AD60: 0 | AE60: 0 | AF60: =AE60 -> 0 | AG60: 0 | AH60: 0 | AI60: 0 | AJ60: 0 | AK60: =AJ60 -> 0 | AL60: 0 | AM60: 0 | AN60: 0 | AO60: 0 | AP60: =AO60 -> 0 | AQ60: 0 | AR60: 0 | AS60: 0 | AT60: 0 | AU60: =AT60 -> 0 | AV60: 0 | AW60: 0 | AX60: 0 | AY60: 0 | AZ60: =AY60 -> 0 | BA60: 0 | BB60: 0 | BC60: 0 | BD60: 0 | BE60: =BD60 -> 0 | BF60: 0 | BG60: 0 | BH60: 0 | BI60: 0 | BJ60: =BI60 -> 0 | BK60: 26331 | BL60: 26893 | BM60: 26531 | BN60: 0 | BO60: =BN60 -> 0 | BP60: 37496 | BQ60: 20120
B61: Instrumentos financeiros derivativos | C61: 0 | D61: 0 | E61: 0 | F61: 0 | G61: =F61 -> 0 | H61: 0 | I61: 0 | J61: 0 | K61: 0 | L61: 0 | M61: 0 | N61: 0 | O61: 0 | P61: 0 | Q61: 0 | R61: 0 | S61: 0 | T61: 0 | U61: 0 | V61: 0 | W61: 0 | X61: 0 | Y61: 0 | Z61: 0 | AA61: 0 | AB61: 0 | AC61: 0 | AD61: 0 | AE61: 0 | AF61: 0 | AG61: 0 | AH61: 0 | AI61: 0 | AJ61: 0 | AK61: 0 | AL61: 0 | AM61: 0 | AN61: 0 | AO61: 0 | AP61: 0 | AQ61: 0 | AR61: 0 | AS61: 0 | AT61: 0 | AU61: 0 | AV61: 0 | AW61: 0 | AX61: 0 | AY61: 0 | AZ61: 0 | BA61: 0 | BB61: 0 | BC61: 0 | BD61: 0 | BE61: 0 | BF61: 0 | BG61: 0 | BH61: 0 | BI61: 0 | BJ61: 0 | BK61: 0 | BL61: 0 | BM61: 0 | BN61: 0 | BO61: 0 | BP61: 0 | BQ61: 0
B62: Contas a receber | C62: 46426 | D62: 55303 | E62: 48241 | F62: 60033 | G62: =F62 -> 60033 | H62: 72789 | I62: 59453 | J62: 58436 | K62: 80259 | L62: 80259 | M62: 74038 | N62: 83418 | O62: 87516 | P62: 109912 | Q62: 109912 | R62: 52779 | S62: 76359 | T62: 59598 | U62: 90643 | V62: 90643 | W62: 79258 | X62: 57733 | Y62: 67017 | Z62: 87435 | AA62: 87435 | AB62: 130123 | AC62: 97776 | AD62: 118005 | AE62: 143108 | AF62: 143108 | AG62: 111795 | AH62: 87183 | AI62: 125786 | AJ62: 131072 | AK62: 131072 | AL62: 179893 | AM62: 132494 | AN62: 161236 | AO62: 154061 | AP62: 154061 | AQ62: 180858 | AR62: 139210 | AS62: 188657 | AT62: 163869 | AU62: 163869 | AV62: 174032 | AW62: 135693 | AX62: 177573 | AY62: 146684 | AZ62: 146684 | BA62: 151932 | BB62: 95759 | BC62: 138169 | BD62: 149321 | BE62: 149321 | BF62: 136450 | BG62: 113425 | BH62: 128471 | BI62: 123010 | BJ62: 123010 | BK62: 117026 | BL62: 151370 | BM62: 171093 | BN62: 167580 | BO62: 167580 | BP62: 157449 | BQ62: 35470
B63: Estoques | C63: 151707 | D63: 151644 | E63: 156779 | F63: 153523 | G63: =F63 -> 153523 | H63: 178948 | I63: 175986 | J63: 169562 | K63: 152307 | L63: 152307 | M63: 149491 | N63: 152259 | O63: 167301 | P63: 168729 | Q63: 168729 | R63: 159140 | S63: 155566 | T63: 152361 | U63: 148487 | V63: 148487 | W63: 180285 | X63: 176802 | Y63: 170490 | Z63: 158391 | AA63: 158391 | AB63: 191419 | AC63: 193610 | AD63: 191805 | AE63: 179217 | AF63: 179217 | AG63: 184258 | AH63: 190548 | AI63: 201127 | AJ63: 190727 | AK63: 190727 | AL63: 212289 | AM63: 204405 | AN63: 194932 | AO63: 175521 | AP63: 175521 | AQ63: 246373 | AR63: 235211 | AS63: 235001 | AT63: 206192 | AU63: 206192 | AV63: 236758 | AW63: 253158 | AX63: 253899 | AY63: 225512 | AZ63: 225512 | BA63: 211601 | BB63: 218398 | BC63: 234020 | BD63: 214643 | BE63: 214643 | BF63: 167124 | BG63: 205750 | BH63: 215813 | BI63: 212615 | BJ63: 212615 | BK63: 112116 | BL63: 136163 | BM63: 146754 | BN63: 139285 | BO63: 139285 | BP63: 108855 | BQ63: 15176
B64: Impostos a recuperar | C64: 43977 | D64: 49321 | E64: 47452 | F64: 46072 | G64: =F64 -> 46072 | H64: 67152 | I64: 63551 | J64: 58902 | K64: 75326 | L64: 75326 | M64: 59144 | N64: 64587 | O64: 56809 | P64: 60657 | Q64: 60657 | R64: 49241 | S64: 56904 | T64: 46554 | U64: 60058 | V64: 60058 | W64: 53149 | X64: 47366 | Y64: 48340 | Z64: 53585 | AA64: 53585 | AB64: 28042 | AC64: 26789 | AD64: 39690 | AE64: 72086 | AF64: 72086 | AG64: 76576 | AH64: 90635 | AI64: 89736 | AJ64: 83607 | AK64: 83607 | AL64: 75110 | AM64: 64617 | AN64: 71043 | AO64: 69893 | AP64: 69893 | AQ64: 52327 | AR64: 53938 | AS64: 69950 | AT64: 64536 | AU64: 64536 | AV64: 43103 | AW64: 45245 | AX64: 49641 | AY64: 47095 | AZ64: 47095 | BA64: 38622 | BB64: 31344 | BC64: 42040 | BD64: 38420 | BE64: 38420 | BF64: 31563 | BG64: 34398 | BH64: 39386 | BI64: 37055 | BJ64: 37055 | BK64: 20072 | BL64: 21338 | BM64: 24819 | BN64: 28841 | BO64: 28841 | BP64: 13621 | BQ64: 3964
B65: Imposto de renda e contribuição social | C65: 0 | D65: 0 | E65: 0 | G65: =F65 -> 0 | H65: 0 | I65: 0 | J65: 0 | K65: 0 | L65: 0 | M65: 0 | N65: 0 | O65: 0 | P65: 0 | Q65: 0 | R65: 0 | S65: 0 | T65: 0 | U65: 0 | V65: 0 | W65: 0 | X65: 0 | Y65: 0 | Z65: 0 | AA65: 0 | AB65: 0 | AC65: 0 | AD65: 0 | AE65: 0 | AF65: 0 | AG65: 0 | AH65: 0 | AI65: 0 | AJ65: 0 | AK65: 0 | AL65: 0 | AM65: 0 | AN65: 0 | AO65: 0 | AP65: 0 | AQ65: 0 | AR65: 0 | AS65: 0 | AT65: 0 | AU65: 0 | AV65: 0 | AW65: 0 | AX65: 0 | AY65: 0 | AZ65: 0 | BA65: 0 | BB65: 0 | BC65: 0 | BD65: 0 | BE65: 0 | BF65: 0 | BG65: 0 | BH65: 0 | BI65: 0 | BJ65: 0 | BK65: 0 | BL65: 0 | BM65: 0 | BN65: 0 | BO65: 0 | BP65: 0 | BQ65: 0
B66: Imposto de renda e contribuição social diferidos | C66: 0 | D66: 0 | E66: 0 | G66: =F66 -> 0 | H66: 0 | I66: 0 | J66: 0 | K66: 0 | L66: 0 | M66: 0 | N66: 0 | O66: 0 | P66: 0 | Q66: 0 | R66: 0 | S66: 0 | T66: 0 | U66: 0 | V66: 0 | W66: 0 | X66: 0 | Y66: 0 | Z66: 0 | AA66: 0 | AB66: 0 | AC66: 0 | AD66: 0 | AE66: 0 | AF66: 0 | AG66: 0 | AH66: 0 | AI66: 0 | AJ66: 0 | AK66: 0 | AL66: 0 | AM66: 0 | AN66: 0 | AO66: 0 | AP66: 0 | AQ66: 0 | AR66: 0 | AS66: 0 | AT66: 0 | AU66: 0 | AV66: 0 | AW66: 0 | AX66: 0 | AY66: 0 | AZ66: 0 | BA66: 0 | BB66: 0 | BC66: 0 | BD66: 0 | BE66: 0 | BF66: 0 | BG66: 0 | BH66: 0 | BI66: 0 | BJ66: 0 | BK66: 0 | BL66: 0 | BM66: 0 | BN66: 0 | BO66: 0 | BP66: 0 | BQ66: 0
B67: Dividendos a receber | C67: 0 | D67: 0 | E67: 0 | F67: 0 | G67: =F67 -> 0 | H67: 0 | I67: 0 | J67: 0 | K67: 0 | L67: 0 | M67: 0 | N67: 0 | O67: 0 | P67: 0 | Q67: 0 | R67: 0 | S67: 0 | T67: 0 | U67: 0 | V67: 0 | W67: 0 | X67: 0 | Y67: 0 | Z67: 0 | AA67: 0 | AB67: 0 | AC67: 0 | AD67: 0 | AE67: 0 | AF67: 0 | AG67: 0 | AH67: 0 | AI67: 0 | AJ67: 0 | AK67: 0 | AL67: 0 | AM67: 0 | AN67: 0 | AO67: 0 | AP67: 0 | AQ67: 1238 | AR67: 0 | AS67: 0 | AT67: 0 | AU67: 0 | AV67: 50 | AW67: 50 | AX67: 50 | AY67: 1238 | AZ67: 1238 | BA67: 13 | BB67: 234 | BC67: 234 | BD67: 50 | BE67: 50 | BF67: 14 | BG67: 13 | BH67: 13 | BI67: 13 | BJ67: 13 | BK67: 13 | BL67: 13 | BM67: 13 | BN67: 13 | BO67: 13 | BP67: 13 | BQ67: 13
B68: Créditos diversos | C68: 4377 | D68: 5739 | E68: 4743 | F68: 5244 | G68: =F68 -> 5244 | H68: 7752 | I68: 6104 | J68: 5184 | K68: 3932 | L68: 3932 | M68: 8912 | N68: 8948 | O68: 6255 | P68: 6835 | Q68: 6835 | R68: 6935 | S68: 6880 | T68: 5680 | U68: 7222 | V68: 7222 | W68: 4996 | X68: 4145 | Y68: 8770 | Z68: 9916 | AA68: 9916 | AB68: 4853 | AC68: 4989 | AD68: 5217 | AE68: 5149 | AF68: 5149 | AG68: 7287 | AH68: 5105 | AI68: 4032 | AJ68: 4144 | AK68: 4144 | AL68: 7756 | AM68: 6583 | AN68: 6591 | AO68: 4634 | AP68: 4634 | AQ68: 12970 | AR68: 9146 | AS68: 8941 | AT68: 8145 | AU68: 8145 | AV68: 16271 | AW68: 17196 | AX68: 19619 | AY68: 11232 | AZ68: 11232 | BA68: 19289 | BB68: 17803 | BC68: 20012 | BD68: 15774 | BE68: 15774 | BF68: 21428 | BG68: 20242 | BH68: 18126 | BI68: 18673 | BJ68: 18673 | BK68: 4064 | BL68: 10642 | BM68: 12527 | BN68: 18085 | BO68: 18085 | BP68: 5344 | BQ68: 1576
B69: Instrumentos financeiros derivativos a receber | C69: 0 | D69: 239 | E69: 0 | F69: 123 | G69: =F69 -> 123 | H69: 0 | I69: 0 | J69: 0 | K69: 0 | L69: 0 | M69: 0 | N69: 0 | O69: 0 | P69: 0 | Q69: 0 | R69: 0 | S69: 0 | T69: 0 | U69: 0 | V69: 0 | W69: 0 | X69: 0 | Y69: 0 | Z69: 0 | AA69: 0 | AB69: 0 | AC69: 0 | AD69: 0 | AE69: 0 | AF69: 0 | AG69: 0 | AH69: 0 | AI69: 0 | AJ69: 0 | AK69: 0 | AL69: 0 | AM69: 0 | AN69: 0 | AO69: 0 | AP69: 0 | AQ69: 0 | AR69: 0 | AS69: 0 | AT69: 0 | AU69: 0 | AV69: 0 | AW69: 0 | AX69: 0 | AY69: 0 | AZ69: 0 | BA69: 0 | BB69: 0 | BC69: 0 | BD69: 0 | BE69: 0 | BF69: 0 | BG69: 0 | BH69: 0 | BI69: 0 | BJ69: 0 | BK69: 0 | BL69: 0 | BM69: 0 | BN69: 0 | BO69: 0 | BP69: 0 | BQ69: 0
B70: Despesas antecipadas | C70: 0 | D70: 0 | G70: =F70 -> 0 | H70: 0 | I70: 0 | J70: 0 | K70: 0 | L70: 0 | M70: 0 | N70: 0 | O70: 0 | P70: 0 | Q70: 0 | R70: 0 | S70: 0 | T70: 0 | U70: 0 | V70: 0 | W70: 0 | X70: 0 | Y70: 0 | Z70: 0 | AA70: 0 | AB70: 0 | AC70: 0 | AD70: 0 | AE70: 0 | AF70: 0 | AG70: 0 | AH70: 0 | AI70: 0 | AJ70: 0 | AK70: 0 | AL70: 0 | AM70: 0 | AN70: 0 | AO70: 0 | AP70: 0 | AQ70: 0 | AR70: 0 | AS70: 0 | AT70: 0 | AU70: 0 | AV70: 0 | AW70: 0 | AX70: 0 | AY70: 0 | AZ70: 0 | BA70: 0 | BB70: 0 | BC70: 0 | BD70: 0 | BE70: 0 | BF70: 0 | BG70: 0 | BH70: 0 | BI70: 0 | BJ70: 0 | BK70: 0 | BL70: 0 | BM70: 0 | BN70: 0 | BO70: 0 | BP70: 0 | BQ70: 0
B71: Dividendos a receber | C71: 14748 | D71: 10795 | E71: 10795 | F71: 22245 | G71: =F71 -> 22245 | H71: 10978 | I71: 7906 | J71: 7906 | K71: 18702 | L71: 18702 | M71: 997 | N71: 997 | O71: 997 | P71: 5988 | Q71: 5988 | R71: 0 | S71: 0 | T71: 0 | U71: 997 | V71: 997 | W71: 0 | X71: 0 | Y71: 0 | Z71: 0 | AA71: 0 | AB71: 0 | AC71: 0 | AD71: 0 | AE71: 0 | AF71: 0 | AG71: 0 | AH71: 0 | AI71: 0 | AJ71: 0 | AK71: 0 | AL71: 0 | AM71: 0 | AN71: 0 | AO71: 0 | AP71: 0 | AQ71: 0 | AR71: 0 | AS71: 0 | AT71: 0 | AU71: 0 | AV71: 0 | AW71: 0 | AX71: 0 | AY71: 0 | AZ71: 0 | BA71: 0 | BB71: 0 | BC71: 0 | BD71: 0 | BE71: 0 | BF71: 0 | BG71: 0 | BH71: 0 | BI71: 0 | BJ71: 0 | BK71: 0 | BL71: 0 | BM71: 0 | BN71: 0 | BO71: 0 | BP71: 0 | BQ71: 0
B72: Ativos classificados como mantidos para venda | C72: 86935 | D72: 96093 | E72: 102783 | F72: 100072 | G72: =F72 -> 100072 | H72: 0 | I72: 0 | J72: 79043 | K72: 82983 | L72: 82983 | M72: 0 | N72: 0 | O72: 0 | P72: 0 | Q72: 0 | R72: 0 | S72: 0 | T72: 0 | U72: 0 | V72: 0 | W72: 0 | X72: 0 | Y72: 0 | Z72: 0 | AA72: 0 | AB72: 0 | AC72: 0 | AD72: 0 | AE72: 0 | AF72: 0 | AG72: 0 | AH72: 0 | AI72: 0 | AJ72: 0 | AK72: 0 | AL72: 0 | AM72: 0 | AN72: 0 | AO72: 0 | AP72: 0 | AQ72: 0 | AR72: 0 | AS72: 0 | AT72: 0 | AU72: 0 | AV72: 0 | AW72: 0 | AX72: 0 | AY72: 0 | AZ72: 0 | BA72: 0 | BB72: 0 | BC72: 0 | BD72: 0 | BE72: 0 | BF72: 0 | BG72: 0 | BH72: 0 | BI72: 0 | BJ72: 0 | BK72: 18807 | BL72: 18807 | BM72: 18807 | BN72: 0 | BO72: 0 | BP72: 18807 | BQ72: 2448
B73: Partes Relacionadas | C73: 0 | D73: 0 | E73: 0 | G73: =F73 -> 0 | H73: 0 | I73: 0 | J73: 0 | K73: 0 | L73: 0 | M73: 0 | N73: 0 | O73: 0 | P73: 0 | Q73: 0 | R73: 0 | S73: 0 | T73: 0 | U73: 0 | V73: 0 | W73: 0 | X73: 0 | Y73: 0 | Z73: 0 | AA73: 0 | AB73: 0 | AC73: 0 | AD73: 0 | AE73: 0 | AF73: 0 | AG73: 0 | AH73: 0 | AI73: 0 | AJ73: 0 | AK73: 0 | AL73: 0 | AM73: 0 | AN73: 0 | AO73: 0 | AP73: 0 | AQ73: 0 | AR73: 0 | AS73: 0 | AT73: 0 | AU73: 0 | AV73: 0 | AW73: 0 | AX73: 0 | AY73: 0 | AZ73: 0 | BA73: 0 | BB73: 0 | BC73: 0 | BD73: 0 | BE73: 0 | BF73: 0 | BG73: 0 | BH73: 0 | BI73: 0 | BJ73: 0 | BK73: 0 | BL73: 0 | BM73: 0 | BN73: 0 | BO73: 0 | BP73: 0 | BQ73: 0
B74: Total do ativo circulante | C74: =SUM(C59:C73) -> 350632 | D74: 371614 | E74: 372920 | F74: =SUM(F59:F73) -> 390507 | G74: =SUM(G59:G73) -> 390507 | H74: 341766 | I74: 315991 | J74: 381533 | K74: =SUM(K59:K73) -> 417072 | L74: 417072 | M74: 298650 | N74: 315384 | O74: 322770 | P74: =SUM(P59:P73) -> 356441 | Q74: 356441 | R74: =SUM(R59:R73) -> 281334 | S74: =SUM(S59:S73) -> 304216 | T74: 271240 | U74: =SUM(U59:U73) -> 317818 | V74: 317818 | W74: =SUM(W59:W73) -> 335108 | X74: 307330 | Y74: 306695 | Z74: 326802 | AA74: 326802 | AB74: 366520 | AC74: =SUM(AC59:AC73) -> 330929 | AD74: 365412 | AE74: 420970 | AF74: 420970 | AG74: 395603 | AH74: 390166 | AI74: 434859 | AJ74: 435707 | AK74: 435707 | AL74: 498309 | AM74: 449366 | AN74: 453912 | AO74: 423372 | AP74: 423372 | AQ74: 515993 | AR74: 478971 | AS74: 531456 | AT74: 508569 | AU74: 508569 | AV74: 494149 | AW74: 556681 | AX74: 610246 | AY74: 525457 | AZ74: 525457 | BA74: 443267 | BB74: 433377 | BC74: 474357 | BD74: 510320 | BE74: 510320 | BF74: 366174 | BG74: 377582 | BH74: 454026 | BI74: 434032 | BJ74: 434032 | BK74: 400536 | BL74: 395384 | BM74: 420127 | BN74: 413518 | BO74: 413518 | BP74: 360997 | BQ74: =SUM(BQ59:BQ73) -> 202188
B77: Ativo não circulante
B78: Realizável a longo prazo
B79: Títulos e valores mobiliários | AK79: =AJ79 -> 0 | AP79: =AO79 -> 0 | AU79: =AT79 -> 0 | AZ79: =AY79 -> 0 | BE79: =BD79 -> 0 | BJ79: =BI79 -> 0 | BO79: =BN79 -> 0
B80: Instrumentos financeiros derivativos | AK80: 0 | AP80: 0 | AU80: 0 | AZ80: 0 | BE80: 0 | BJ80: 0 | BO80: 0
B81: Contas a receber | AK81: 0 | AP81: 0 | AU81: 0 | AZ81: 0 | BE81: 0 | BJ81: 0 | BO81: 0
B82: Impostos a recuperar | C82: 122164 | D82: 112262 | E82: 112860 | F82: 107799 | G82: =F82 -> 107799 | H82: 149436 | I82: 147239 | J82: 142036 | K82: 116078 | L82: 116078 | M82: 168587 | N82: 163428 | O82: 171340 | P82: 158284 | Q82: 158284 | R82: 161675 | S82: 152960 | T82: 172785 | U82: 159556 | V82: 159556 | W82: 162807 | X82: 154851 | Y82: 153702 | Z82: 145011 | AA82: =Z82 -> 145011 | AB82: 57521 | AC82: 58133 | AD82: 71351 | AE82: 144167 | AF82: =AE82 -> 144167 | AG82: 2453 | AH82: 2453 | AI82: 2453 | AJ82: 2453 | AK82: 2453 | AL82: 2453 | AM82: 2453 | AN82: 2453 | AO82: 2453 | AP82: 2453 | AQ82: 4831 | AR82: 4831 | AS82: 4831 | AT82: 2453 | AU82: 2453 | AV82: 4420 | AW82: 4276 | AX82: 4831 | AY82: 4831 | AZ82: 4831 | BA82: 4831 | BB82: 4831 | BC82: 4831 | BD82: 4831 | BE82: 4831 | BF82: 0 | BG82: 0 | BH82: 0 | BI82: 5854 | BJ82: 5854 | BK82: 0 | BL82: 0 | BM82: 0 | BN82: 0 | BO82: 0 | BP82: 0 | BQ82: 0
B83: Depósitos judiciais | C83: 1162 | D83: 1170 | E83: 1116 | F83: 1060 | G83: =F83 -> 1060 | H83: 1838 | I83: 1211 | J83: 1206 | K83: 1125 | L83: 1125 | M83: 3671 | N83: 2972 | O83: 2977 | P83: 2273 | Q83: 2273 | R83: 4060 | S83: 3933 | T83: 3739 | U83: 3681 | V83: 3681 | W83: 5217 | X83: 5182 | Y83: 5066 | Z83: 4378 | AA83: =Z83 -> 4378 | AB83: 5563 | AC83: 6439 | AD83: 6784 | AE83: 5713 | AF83: =AE83 -> 5713 | AG83: 3861 | AH83: 4002 | AI83: 4460 | AJ83: 5448 | AK83: 5448 | AL83: 3387 | AM83: 3628 | AN83: 3584 | AO83: 3970 | AP83: 3970 | AQ83: 4318 | AR83: 3249 | AS83: 3230 | AT83: 3199 | AU83: 3199 | AV83: 4831 | AW83: 4831 | AX83: 4189 | AY83: 4242 | AZ83: 4242 | BA83: 3465 | BB83: 4070 | BC83: 4122 | BD83: 4331 | BE83: 4331 | BF83: 2740 | BG83: 2874 | BH83: 2890 | BI83: 3287 | BJ83: 3287 | BK83: 3666 | BL83: 3780 | BM83: 2643 | BN83: 2485 | BO83: 2485 | BP83: 1767 | BQ83: 165
B84: Imposto de renda e contribuição social | C84: 0 | D84: 0 | E84: 0 | G84: =F84 -> 0 | AA84: 0 | AK84: 0 | AP84: 0 | AU84: 0 | AZ84: 0 | BE84: 0 | BJ84: 0 | BO84: 0
B85: Imposto de renda e contribuição social diferidos | C85: 25905 | D85: 26933 | E85: 27042 | F85: 29015 | G85: =F85 -> 29015 | H85: 26712 | I85: 26593 | J85: 26467 | K85: 28558 | L85: 28558 | M85: 26432 | N85: 27456 | O85: 26197 | P85: 29750 | Q85: 29750 | R85: 23712 | S85: 24650 | T85: 24780 | U85: 28796 | V85: 28796 | W85: 18105 | X85: 20474 | Y85: 22013 | Z85: 25459 | AA85: 25459 | AB85: 8809 | AC85: 10914 | AD85: 12430 | AE85: 17983 | AF85: =AE85 -> 17983 | AG85: 0 | AH85: 8618 | AI85: 8809 | AJ85: 8809 | AK85: 8809 | AL85: 12595 | AM85: 0 | AN85: 0 | AO85: 0 | AP85: 0 | AQ85: 571 | AR85: 432 | AS85: 170 | AT85: 6878 | AU85: 6878 | AV85: 167 | AW85: 120 | AX85: 115 | AY85: 963 | AZ85: 963 | BA85: 0 | BB85: 0 | BC85: 0 | BD85: 183 | BE85: 183 | BF85: 0 | BG85: 0 | BH85: 0 | BI85: 0 | BJ85: 0 | BK85: 9255 | BL85: 0 | BM85: 0 | BN85: 0 | BO85: 0 | BP85: 3884 | BQ85: 14972
B86: Partes relacionadas | C86: 3722 | D86: 3641 | E86: 3656 | F86: 3559 | G86: =F86 -> 3559 | H86: 3781 | I86: 3682 | J86: 3857 | K86: 3625 | L86: 3625 | M86: 3051 | N86: 3025 | O86: 3095 | P86: 2952 | Q86: 2952 | R86: 1940 | S86: 2081 | T86: 2973 | U86: 2931 | V86: 2931 | W86: 1998 | X86: 1587 | Y86: 1778 | Z86: 1765 | AA86: 1765 | AB86: 3908 | AC86: 3701 | AD86: 4463 | AE86: 1472 | AF86: 1472 | AG86: 3140 | AH86: 1995 | AI86: 2548 | AJ86: 2816 | AK86: 2816 | AL86: 4274 | AM86: 5805 | AN86: 8187 | AO86: 1653 | AP86: 1653 | AQ86: 50026 | AR86: 54178 | AS86: 49272 | AT86: 48790 | AU86: 48790 | AV86: 62038 | AW86: 61736 | AX86: 50850 | AY86: 48366 | AZ86: 48366 | BA86: 39430 | BB86: 42948 | BC86: 41148 | BD86: 58154 | BE86: 58154 | BF86: 30087 | BG86: 30593 | BH86: 35791 | BI86: 39485 | BJ86: 39485 | BK86: 15484 | BL86: 19689 | BM86: 33641 | BN86: 29456 | BO86: 29456 | BP86: 25710 | BQ86: 7059
B87: Despesas antecipadas | C87: 0 | D87: 0 | E87: 0 | F87: 0 | G87: =F87 -> 0 | H87: 0 | I87: 0 | J87: 0 | K87: 0 | L87: 0 | M87: 0 | N87: 0 | O87: 0 | P87: 0 | Q87: 0 | R87: 0 | S87: 0 | T87: 0 | U87: 0 | V87: 0 | W87: 0 | X87: 0 | Y87: 0 | Z87: 0 | AA87: 0 | AB87: 0 | AC87: 0 | AD87: 0 | AE87: 0 | AF87: 0 | AK87: 0 | AP87: 0 | AU87: 0 | AZ87: 0 | BE87: 0 | BJ87: 0 | BO87: 0
B88: Outros créditos | C88: 0 | D88: 0 | E88: 0 | F88: 0 | G88: =F88 -> 0 | H88: 0 | I88: 0 | J88: 0 | K88: 0 | L88: 0 | M88: 0 | N88: 0 | O88: 0 | P88: 0 | Q88: 0 | R88: 0 | S88: 0 | T88: 0 | U88: 0 | V88: 0 | W88: 0 | X88: 0 | Y88: 0 | Z88: 0 | AA88: 0 | AB88: 0 | AC88: 0 | AD88: 0 | AE88: 0 | AF88: 0 | AK88: 0 | AP88: 0 | AU88: 0 | AZ88: 0 | BE88: 0 | BJ88: 0 | BO88: 0
B89: Ativos de operações descontinuadas | C89: 0 | D89: 0 | E89: 0 | F89: 0 | G89: =F89 -> 0 | H89: 0 | I89: 0 | J89: 0 | K89: 0 | L89: 0 | M89: 0 | N89: 0 | O89: 0 | P89: 0 | Q89: 0 | R89: 0 | S89: 0 | T89: 0 | U89: 0 | V89: 0 | W89: 0 | X89: 0 | Y89: 0 | Z89: 0 | AA89: 0 | AB89: 0 | AC89: 0 | AD89: 0 | AE89: 0 | AF89: 0 | AK89: 0 | AP89: 0 | AU89: 0 | AZ89: 0 | BE89: 0 | BJ89: 0 | BO89: 0
B90: Fundo para capitalização de concessionárias | C90: 0 | D90: 0 | E90: 0 | F90: 0 | G90: =F90 -> 0 | AA90: 0 | AK90: 0 | AP90: 0 | AU90: 0 | AZ90: 0 | BE90: 0 | BJ90: 0 | BO90: 0
B91: Investimentos | C91: 0 | D91: 0 | E91: 0 | F91: 0 | G91: =F91 -> 0 | H91: 71133 | I91: 77174 | J91: 0 | K91: 0 | L91: 0 | M91: 58434 | N91: 64440 | O91: 70594 | P91: 71201 | Q91: 71201 | R91: 44537 | S91: 48669 | T91: 52016 | U91: 55597 | V91: 55597 | W91: 43754 | X91: 42072 | Y91: 41614 | Z91: 45263 | AA91: 45263 | AB91: 37984 | AC91: 37862 | AD91: 38698 | AE91: 43405 | AF91: =AE91 -> 43405 | AG91: 40269 | AH91: 38923 | AI91: 38633 | AJ91: 38526 | AK91: 38526 | AL91: 34056 | AM91: 32231 | AN91: 32665 | AO91: 40748 | AP91: 40748 | AQ91: 39797 | AR91: 38224 | AS91: 37538 | AT91: 34956 | AU91: 34956 | AV91: 23809 | AW91: 23735 | AX91: 25876 | AY91: 33495 | AZ91: 33495 | BA91: 23866 | BB91: 23580 | BC91: 24295 | BD91: 24875 | BE91: 24875 | BF91: 15712 | BG91: 16336 | BH91: 17277 | BI91: 24936 | BJ91: 24936 | BK91: 0 | BL91: 0 | BM91: 0 | BN91: 1345 | BO91: 1345 | BP91: 0 | BQ91: 52030
B92: Imobilizado | C92: 140145 | D92: 141007 | E92: 138101 | F92: 145255 | G92: =F92 -> 145255 | H92: 144654 | I92: 131485 | J92: 126996 | K92: 128691 | L92: 128691 | M92: 151438 | N92: 155208 | O92: 147202 | P92: 148876 | Q92: 148876 | R92: 162940 | S92: 162676 | T92: 156131 | U92: 158762 | V92: 158762 | W92: 194049 | X92: 181352 | Y92: 176526 | Z92: 161116 | AA92: 161116 | AB92: 222337 | AC92: 213040 | AD92: 203036 | AE92: 208268 | AF92: 208268 | AG92: 89185 | AH92: 82934 | AI92: 79802 | AJ92: 77117 | AK92: 77117 | AL92: 116272 | AM92: 112952 | AN92: 112924 | AO92: 92812 | AP92: 92812 | AQ92: 123416 | AR92: 123170 | AS92: 120906 | AT92: 119641 | AU92: 119641 | AV92: 114804 | AW92: 118076 | AX92: 120902 | AY92: 119973 | AZ92: 119973 | BA92: 109845 | BB92: 114139 | BC92: 119743 | BD92: 110788 | BE92: 110788 | BF92: 99250 | BG92: 104790 | BH92: 93844 | BI92: 100008 | BJ92: 100008 | BK92: 77789 | BL92: 84405 | BM92: 91608 | BN92: 100409 | BO92: 100409 | BP92: 76712 | BQ92: 26864
B93: Intangível | C93: 424230 | D93: 423346 | E93: 422791 | F93: 422745 | G93: =F93 -> 422745 | H93: 426397 | I93: 425694 | J93: 425733 | K93: 425113 | L93: 425113 | M93: 426239 | N93: 425770 | O93: 425927 | P93: 426134 | Q93: 426134 | R93: 431253 | S93: 430219 | T93: 428745 | U93: 426847 | V93: 426847 | W93: 448055 | X93: 441000 | Y93: 437390 | Z93: 434040 | AA93: 434040 | AB93: 484104 | AC93: 480508 | AD93: 477813 | AE93: 450565 | AF93: 450565 | AG93: 492076 | AH93: 491548 | AI93: 489197 | AJ93: 486343 | AK93: 486343 | AL93: 517912 | AM93: 514919 | AN93: 511972 | AO93: 494014 | AP93: 494014 | AQ93: 520657 | AR93: 521061 | AS93: 521373 | AT93: 519931 | AU93: 519931 | AV93: 504377 | AW93: 511899 | AX93: 516589 | AY93: 520527 | AZ93: 520527 | BA93: 253174 | BB93: 489492 | BC93: 490378 | BD93: 502866 | BE93: 502866 | BF93: 250852 | BG93: 252186 | BH93: 253266 | BI93: 484687 | BJ93: 484687 | BK93: 170522 | BL93: 228674 | BM93: 247111 | BN93: 248462 | BO93: 248462 | BP93: 164948 | BQ93: 4207
B94: Ágio | W94: 0 | X94: 0 | Y94: 0 | AA94: 0 | AB94: 0 | AC94: 0 | AD94: 0 | AF94: 0 | AG94: 0 | AH94: 0 | AI94: 0 | AJ94: 0 | AK94: 0 | AL94: 0 | AM94: 0 | AN94: 0 | AO94: 0 | AP94: 0 | AQ94: 0 | AR94: 0 | AS94: 0 | AT94: 0 | AU94: 0 | AV94: 0 | AW94: 0 | AX94: 0 | AY94: 0 | AZ94: 0 | BA94: 233202 | BB94: 0 | BC94: 0 | BD94: 0 | BE94: 0 | BF94: 233202 | BG94: 233202 | BH94: 233202 | BI94: 0 | BJ94: 0 | BK94: 190226 | BL94: 235870 | BM94: 226851 | BN94: 233202 | BO94: 233202 | BP94: 181207 | BQ94: 30435
B95: Total do ativo não circulante | C95: =SUM(C79:C94) -> 717328 | D95: =SUM(D79:D94) -> 708359 | E95: 705566 | F95: 709433 | G95: =SUM(G79:G94) -> 709433 | H95: =SUM(H79:H94) -> 823951 | I95: =SUM(I79:I94) -> 813078 | J95: =SUM(J79:J94) -> 726295 | K95: =SUM(K79:K94) -> 703190 | L95: 703190 | M95: =SUM(M79:M94) -> 837852 | N95: =SUM(N79:N94) -> 842299 | O95: 847332 | P95: 839470 | Q95: 839470 | R95: =SUM(R79:R94) -> 830117 | S95: =SUM(S79:S94) -> 825188 | T95: 841169 | U95: =SUM(U79:U94) -> 836170 | V95: 836170 | W95: =SUM(W79:W94) -> 873985 | X95: 846518 | Y95: 838089 | Z95: 817032 | AA95: 817032 | AB95: 820226 | AC95: =SUM(AC79:AC94) -> 810597 | AD95: =SUM(AD79:AD94) -> 814575 | AE95: =SUM(AE79:AE94) -> 871573 | AF95: =SUM(AF79:AF94) -> 871573 | AG95: 630984 | AH95: 630473 | AI95: 625902 | AJ95: 621512 | AK95: 621512 | AL95: 690949 | AM95: 671988 | AN95: 671785 | AO95: 635650 | AP95: 635650 | AQ95: 743616 | AR95: 745145 | AS95: 737320 | AT95: 735848 | AU95: 735848 | AV95: 714446 | AW95: 724673 | AX95: 723352 | AY95: 732397 | AZ95: 732397 | BA95: 667813 | BB95: 679060 | BC95: 684517 | BD95: 706028 | BE95: 706028 | BF95: 631843 | BG95: 639981 | BH95: 636270 | BI95: 658257 | BJ95: 658257 | BK95: 466942 | BL95: 572418 | BM95: 601854 | BN95: 615359 | BO95: 615359 | BP95: 454228 | BQ95: =SUM(BQ79:BQ94) -> 135732
B97: Total do ativo | C97: =C95+C74 -> 1067960 | D97: =D95+D74 -> 1079973 | E97: 1078486 | F97: 1099940 | G97: =G95+G74 -> 1099940 | H97: =H95+H74 -> 1165717 | I97: =I95+I74 -> 1129069 | J97: =J95+J74 -> 1107828 | K97: =K95+K74 -> 1120262 | L97: 1120262 | M97: =M95+M74 -> 1136502 | N97: =N95+N74 -> 1157683 | O97: 1170102 | P97: 1195911 | Q97: 1195911 | R97: =R95+R74 -> 1111451 | S97: =S95+S74 -> 1129404 | T97: 1112409 | U97: =U95+U74 -> 1153988 | V97: 1153988 | W97: =W95+W74 -> 1209093 | X97: 1153848 | Y97: 1144784 | Z97: 1143834 | AA97: 1143834 | AB97: 1186746 | AC97: =AC95+AC74 -> 1141526 | AD97: 1179987 | AE97: =AE95+AE74 -> 1292543 | AF97: 1292543 | AG97: 1026587 | AH97: 1020639 | AI97: 1060761 | AJ97: 1057219 | AK97: 1057219 | AL97: 1189258 | AM97: 1121354 | AN97: 1125697 | AO97: 1059022 | AP97: 1059022 | AQ97: 1259609 | AR97: 1224116 | AS97: 1268776 | AT97: 1244417 | AU97: 1244417 | AV97: 1208595 | AW97: 1281354 | AX97: 1333598 | AY97: 1257854 | AZ97: 1257854 | BA97: 1111080 | BB97: 1112437 | BC97: 1158874 | BD97: 1216348 | BE97: 1216348 | BF97: 998017 | BG97: 1017563 | BH97: 1090296 | BI97: 1092289 | BJ97: 1092289 | BK97: 867478 | BL97: 967802 | BM97: 1021981 | BN97: 1028877 | BO97: 1028877 | BP97: 815225 | BQ97: =BQ95+BQ74 -> 337920
B100: Passivo circulante
B101: Empréstimos e financiamentos | C101: 110856 | D101: 116477 | E101: 145391 | F101: 156497 | G101: =F101 -> 156497 | H101: 84451 | I101: 91873 | J101: 112372 | K101: 111729 | L101: 111729 | M101: 220335 | N101: 41948 | O101: 34058 | P101: 61990 | Q101: 61990 | R101: 113970 | S101: 133188 | T101: 139377 | U101: 182423 | V101: 182423 | W101: 63364 | X101: 57861 | Y101: 80778 | Z101: 102826 | AA101: =Z101 -> 102826 | AB101: 62848 | AC101: 40374 | AD101: 55971 | AE101: 61810 | AF101: =AE101 -> 61810 | AG101: 508854 | AH101: 524219 | AI101: 47749 | AJ101: 41502 | AK101: =AJ101 -> 41502 | AL101: 103360 | AM101: 114222 | AN101: 207632 | AO101: 509806 | AP101: =AO101 -> 509806 | AQ101: 545265 | AR101: 531546 | AS101: 58881 | AT101: 99246 | AU101: =AT101 -> 99246 | AV101: 185457 | AW101: 305081 | AX101: 404495 | AY101: 552433 | AZ101: =AY101 -> 552433 | BA101: 258006 | BB101: 281772 | BC101: 471381 | BD101: 210278 | BE101: =BD101 -> 210278 | BF101: 369862 | BG101: 383654 | BH101: 227745 | BI101: 238632 | BJ101: =BI101 -> 238632 | BK101: 40566 | BL101: 59203 | BM101: 345148 | BN101: 374202 | BO101: =BN101 -> 374202 | BP101: 177808 | BQ101: 56
B102: Passivo de Arrendamento | C102: 41840 | D102: 42332 | E102: 40994 | F102: 42157 | G102: =F102 -> 42157 | H102: 44011 | I102: 41089 | J102: 38448 | K102: 38668 | L102: 38668 | M102: 45445 | N102: 46379 | O102: 45517 | P102: 44915 | Q102: 44915 | R102: 42372 | S102: 44431 | T102: 44488 | U102: 45231 | V102: 45231 | W102: 44683 | X102: 42785 | Y102: 43461 | Z102: 42418 | AA102: =Z102 -> 42418 | AB102: 40581 | AC102: 40981 | AD102: 41206 | AE102: 46581 | AF102: =AE102 -> 46581 | AG102: 0 | AH102: 0 | AI102: 0 | AJ102: 0 | AK102: =AJ102 -> 0 | AL102: 0 | AM102: 0 | AN102: 0 | AO102: 0 | AP102: 0 | AQ102: 0 | AR102: 0 | AS102: 0 | AT102: 0 | AU102: 0 | AV102: 0 | AW102: 0 | AX102: 0 | AY102: 0 | AZ102: 0 | BA102: 0 | BB102: 0 | BC102: 0 | BD102: 0 | BE102: 0 | BF102: 0 | BG102: 0 | BH102: 0 | BI102: 0 | BJ102: 0 | BK102: 0 | BL102: 0 | BM102: 0 | BN102: 0 | BO102: 0 | BP102: 0 | BQ102: 0
B103: Fornecedores | C103: 14132 | D103: 20651 | E103: 23676 | F103: 18134 | G103: =F103 -> 18134 | H103: 28671 | I103: 22343 | J103: 16399 | K103: 11278 | L103: 11278 | M103: 25060 | N103: 29500 | O103: 37545 | P103: 30482 | Q103: 30482 | R103: 18986 | S103: 20668 | T103: 22031 | U103: 23086 | V103: 23086 | W103: 17500 | X103: 20417 | Y103: 27723 | Z103: 24323 | AA103: 24323 | AB103: 20432 | AC103: 20767 | AD103: 15871 | AE103: 14944 | AF103: 14944 | AG103: 28956 | AH103: 22014 | AI103: 24003 | AJ103: 18680 | AK103: 18680 | AL103: 27899 | AM103: 14199 | AN103: 24023 | AO103: 25015 | AP103: =AO103 -> 25015 | AQ103: 33557 | AR103: 35791 | AS103: 45653 | AT103: 21777 | AU103: =AT103 -> 21777 | AV103: 74061 | AW103: 56923 | AX103: 78126 | AY103: 23033 | AZ103: =AY103 -> 23033 | BA103: 38984 | BB103: 43463 | BC103: 54417 | BD103: 41934 | BE103: =BD103 -> 41934 | BF103: 46260 | BG103: 46665 | BH103: 49839 | BI103: 29987 | BJ103: =BI103 -> 29987 | BK103: 25520 | BL103: 38646 | BM103: 59204 | BN103: 40957 | BO103: =BN103 -> 40957 | BP103: 33127 | BQ103: 3638
B104: Obrigações decorrente de compra de mercadoria e serviços | C104: 939 | D104: 2940 | E104: 2525 | F104: 3738 | G104: =F104 -> 3738 | H104: 8992 | I104: 3346 | J104: 2872 | K104: 1715 | L104: 1715 | M104: 2565 | N104: 4650 | O104: 10122 | P104: 9670 | Q104: 9670 | R104: 2053 | S104: 1704 | T104: 1499 | U104: 5497 | V104: 5497 | W104: 8885 | X104: 7925 | Y104: 4392 | Z104: 2357 | AA104: 2357 | AB104: 1056 | AC104: 9126 | AD104: 17562 | AE104: 17333 | AF104: 17333 | AG104: 1372 | AH104: 1159 | AI104: 817 | AJ104: 1197 | AK104: 1197 | AL104: 11983 | AM104: 0 | AN104: 488 | AO104: 435 | AP104: =AO104 -> 435 | AQ104: 50212 | AR104: 47683 | AS104: 47943 | AT104: 20860 | AU104: =AT104 -> 20860 | AV104: 0 | AW104: 0 | AX104: 0 | AY104: 56573 | AZ104: =AY104 -> 56573 | BA104: 0 | BB104: 0 | BC104: 0 | BD104: 0 | BE104: =BD104 -> 0 | BF104: 0 | BG104: 0 | BH104: 0 | BI104: 0 | BJ104: =BI104 -> 0 | BK104: 0 | BL104: 0 | BM104: 0 | BN104: 0 | BO104: =BN104 -> 0 | BP104: 0 | BQ104: 0
B105: Obrigações trabalhistas | C105: 17580 | D105: 19566 | E105: 21687 | F105: 21650 | G105: =F105 -> 21650 | H105: 20354 | I105: 22078 | J105: 24434 | K105: 22345 | L105: 22345 | M105: 18881 | N105: 21478 | O105: 24094 | P105: 23034 | Q105: 23034 | R105: 19550 | S105: 25456 | T105: 25051 | U105: 21594 | V105: 21594 | W105: 20920 | X105: 20013 | Y105: 30609 | Z105: 24180 | AA105: 24180 | AB105: 23509 | AC105: 25836 | AD105: 28450 | AE105: 25132 | AF105: 25132 | AG105: 38904 | AH105: 45888 | AI105: 34778 | AJ105: 31310 | AK105: 31310 | AL105: 44164 | AM105: 39632 | AN105: 37446 | AO105: 34673 | AP105: 34673 | AQ105: 30030 | AR105: 31644 | AS105: 42244 | AT105: 39963 | AU105: 39963 | AV105: 32106 | AW105: 34123 | AX105: 37882 | AY105: 32836 | AZ105: 32836 | BA105: 36497 | BB105: 36763 | BC105: 42394 | BD105: 33147 | BE105: 33147 | BF105: 24545 | BG105: 31070 | BH105: 36934 | BI105: 33543 | BJ105: 33543 | BK105: 24729 | BL105: 24949 | BM105: 23731 | BN105: 26821 | BO105: 26821 | BP105: 23470 | BQ105: 5876
B106: Impostos a recolher | C106: 13222 | D106: 15981 | E106: 13956 | F106: 26333 | G106: =F106 -> 26333 | H106: 16557 | I106: 16641 | J106: 15025 | K106: 26894 | L106: 26894 | M106: 11172 | N106: 13440 | O106: 15360 | P106: 25174 | Q106: 25174 | R106: 14812 | S106: 11646 | T106: 10003 | U106: 18176 | V106: 18176 | W106: 20593 | X106: 9040 | Y106: 13394 | Z106: 17671 | AA106: 17671 | AB106: 6040 | AC106: 6625 | AD106: 17135 | AE106: 40932 | AF106: 40932 | AG106: 57417 | AH106: 54295 | AI106: 27452 | AJ106: 31324 | AK106: 31324 | AL106: 108757 | AM106: 71294 | AN106: 57639 | AO106: 68317 | AP106: 68317 | AQ106: 18611 | AR106: 43327 | AS106: 71459 | AT106: 98578 | AU106: 98578 | AV106: 22674 | AW106: 25377 | AX106: 34109 | AY106: 30545 | AZ106: 30545 | BA106: 24391 | BB106: 31627 | BC106: 36727 | BD106: 39181 | BE106: 39181 | BF106: 22866 | BG106: 17052 | BH106: 13821 | BI106: 36074 | BJ106: 36074 | BK106: 21231 | BL106: 30422 | BM106: 25975 | BN106: 36627 | BO106: 36627 | BP106: 32279 | BQ106: 5495
B107: Contas a pagar | C107: 22660 | D107: 25846 | E107: 24494 | F107: 32542 | G107: =F107 -> 32542 | H107: 21089 | I107: 20364 | J107: 20763 | K107: 25624 | L107: 25624 | M107: 20571 | N107: 21048 | O107: 21979 | P107: 25493 | Q107: 25493 | R107: 28341 | S107: 35993 | T107: 26433 | U107: 24314 | V107: 24314 | W107: 19736 | X107: 36208 | Y107: 42055 | Z107: 36602 | AA107: 36602 | AB107: 19654 | AC107: 22664 | AD107: 24086 | AE107: 28278 | AF107: 28278 | AG107: 21620 | AH107: 27461 | AI107: 22146 | AJ107: 24318 | AK107: 24318 | AL107: 19744 | AM107: 18855 | AN107: 21706 | AO107: 24619 | AP107: 24619 | AQ107: 43054 | AR107: 42690 | AS107: 34283 | AT107: 25042 | AU107: 25042 | AV107: 43271 | AW107: 45180 | AX107: 75420 | AY107: 55986 | AZ107: 55986 | BA107: 39944 | BB107: 38739 | BC107: 40593 | BD107: 46275 | BE107: 46275 | BF107: 23943 | BG107: 23423 | BH107: 26994 | BI107: 43354 | BJ107: 43354 | BK107: 34973 | BL107: 47101 | BM107: 43016 | BN107: 23653 | BO107: 23653 | BP107: 59479 | BQ107: 6214
B108: Parcelamento de tributos | C108: 23466 | D108: 21639 | E108: 19698 | F108: 21315 | G108: =F108 -> 21315 | H108: 22370 | I108: 21597 | J108: 21229 | K108: 26281 | L108: 26281 | M108: 28868 | N108: 26208 | O108: 25347 | P108: 22962 | Q108: 22962 | R108: 28232 | S108: 30464 | T108: 31536 | U108: 30717 | V108: 30717 | W108: 24087 | X108: 24139 | Y108: 23291 | Z108: 27974 | AA108: 27974 | AB108: 19110 | AC108: 18597 | AD108: 16851 | AE108: 20518 | AF108: 20518 | AG108: 2178 | AH108: 2068 | AI108: 2113 | AJ108: 2083 | AK108: 2083 | AL108: 1930 | AM108: 1964 | AN108: 1913 | AO108: 1936 | AP108: 1936 | AQ108: 2932 | AR108: 2854 | AS108: 1886 | AT108: 1889 | AU108: 1889 | AV108: 3105 | AW108: 3087 | AX108: 3103 | AY108: 2980 | AZ108: 2980 | BA108: 5051 | BB108: 5212 | BC108: 4514 | BD108: 3305 | BE108: 3305 | BF108: 6633 | BG108: 7754 | BH108: 6601 | BI108: 5779 | BJ108: 5779 | BK108: 8879 | BL108: 7996 | BM108: 7888 | BN108: 8720 | BO108: 8720 | BP108: 8109 | BQ108: 1286
B109: Dividendos a pagar | C109: 0 | D109: 0 | E109: 0 | F109: 0 | G109: =F109 -> 0 | H109: 0 | I109: 0 | J109: 0 | K109: 0 | L109: 0 | M109: 0 | N109: 0 | O109: 0 | P109: 0 | Q109: 0 | R109: 0 | S109: 0 | T109: 0 | U109: 0 | V109: 0 | W109: 0 | X109: 0 | Y109: 0 | Z109: 0 | AA109: 0 | AB109: 0 | AC109: 0 | AD109: 0 | AE109: 0 | AF109: 0 | AG109: 0 | AH109: 0 | AI109: 0 | AJ109: 0 | AK109: 0 | AL109: 5689 | AM109: 5689 | AN109: 5689 | AO109: 5689 | AP109: 5689 | AQ109: 6927 | AR109: 5689 | AS109: 5689 | AT109: 5689 | AU109: 5689 | AV109: 10208 | AW109: 10208 | AX109: 10208 | AY109: 6927 | AZ109: 6927 | BA109: 7814 | BB109: 7814 | BC109: 7814 | BD109: 10208 | BE109: 10208 | BF109: 2046 | BG109: 2046 | BH109: 2046 | BI109: 7814 | BJ109: 7814 | BK109: 2046 | BL109: 2046 | BM109: 2046 | BN109: 2046 | BO109: 2046 | BP109: 2046 | BQ109: 5497
B110: Partes relacionadas | C110: 0 | D110: 0 | E110: 0 | F110: 0 | G110: =F110 -> 0 | H110: 0 | I110: 0 | J110: 0 | K110: 0 | L110: 0 | M110: 0 | N110: 0 | O110: 0 | P110: 0 | Q110: 0 | R110: 0 | S110: 0 | T110: 0 | U110: 0 | V110: 0 | W110: 0 | X110: 0 | Y110: 0 | Z110: 0 | AA110: 0 | AB110: 0 | AC110: 0 | AD110: 0 | AE110: 0 | AF110: 0 | AG110: 61 | AH110: 61 | AI110: 0 | AJ110: 0 | AK110: 0 | AL110: 0 | AM110: 0 | AN110: 0 | AO110: 0 | AP110: 0 | AQ110: 0 | AR110: 0 | AS110: 0 | AT110: 0 | AU110: 0 | AV110: 0 | AW110: 0 | AX110: 0 | AY110: 0 | AZ110: 0 | BA110: 3178 | BB110: 0 | BC110: 0 | BD110: 0 | BE110: 0 | BF110: 231 | BG110: 5662 | BH110: 0 | BI110: 0 | BJ110: 0 | BK110: 248 | BL110: 48 | BM110: 0 | BN110: 5967 | BO110: 5967 | BP110: 14 | BQ110: 0
B111: Arrendamento operacional - lojas | C111: 0 | D111: 0 | E111: 0 | F111: 0 | G111: =F111 -> 0 | H111: 0 | I111: 0 | J111: 0 | K111: 0 | L111: 0 | M111: 0 | N111: 0 | O111: 0 | P111: 0 | Q111: 0 | R111: 0 | S111: 0 | T111: 0 | U111: 0 | V111: 0 | W111: 0 | X111: 0 | Y111: 0 | Z111: 0 | AA111: 0 | AB111: 0 | AC111: 0 | AD111: 0 | AE111: 0 | AF111: 0 | AG111: 0 | AH111: 0 | AI111: 0 | AJ111: 0 | AK111: 0 | AL111: 0 | AM111: 0 | AN111: 0 | AO111: 0 | AP111: 0 | AQ111: 0 | AR111: 0 | AS111: 0 | AT111: 0 | AU111: 0 | AV111: 0 | AW111: 0 | AX111: 0 | AY111: 0 | AZ111: 0 | BA111: 0 | BB111: 0 | BC111: 0 | BD111: 0 | BE111: 0 | BF111: 6117 | BG111: 4027 | BH111: 3544 | BI111: 0 | BJ111: 0 | BK111: 9089 | BL111: 8932 | BM111: 8943 | BN111: 7644 | BO111: 7644 | BP111: 12156 | BQ111: 1452
B112: Provisão para imposto de renda e contribuição social | C112: 0 | D112: 0 | E112: 0 | F112: 0 | G112: =F112 -> 0 | H112: 0 | I112: 0 | J112: 0 | K112: 0 | L112: 0 | M112: 0 | N112: 0 | O112: 0 | P112: 0 | Q112: 0 | R112: 0 | S112: 0 | T112: 0 | U112: 0 | V112: 0 | W112: 0 | X112: 0 | Y112: 0 | Z112: 0 | AA112: 0 | AB112: 0 | AC112: 0 | AD112: 0 | AE112: 0 | AF112: 0 | AG112: 0 | AH112: 0 | AI112: 0 | AJ112: 0 | AK112: 0 | AL112: 0 | AM112: 0 | AN112: 0 | AO112: 0 | AP112: 0 | AQ112: 0 | AR112: 0 | AS112: 0 | AT112: 0 | AU112: 0 | AV112: 0 | AW112: 0 | AX112: 0 | AY112: 0 | AZ112: 0 | BA112: 0 | BB112: 0 | BC112: 0 | BD112: 0 | BE112: 0 | BF112: 3175 | BG112: 7909 | BH112: 8626 | BI112: 0 | BJ112: 0 | BK112: 9421 | BL112: 6915 | BM112: 4909 | BN112: 1434 | BO112: 1434 | BP112: 8443 | BQ112: 3786
B113: Passivos diretamente associados a ativos mantidos para venda | C113: 0 | D113: 0 | E113: 0 | F113: 0 | G113: =F113 -> 0 | H113: 0 | I113: 0 | J113: 0 | K113: 0 | L113: 0 | M113: 0 | N113: 0 | O113: 0 | P113: 0 | Q113: 0 | R113: 0 | S113: 0 | T113: 0 | U113: 0 | V113: 0 | W113: 0 | X113: 0 | Y113: 0 | Z113: 0 | AA113: 0 | AB113: 0 | AC113: 0 | AD113: 0 | AE113: 0 | AF113: 0 | AG113: 0 | AH113: 0 | AI113: 0 | AJ113: 0 | AK113: 0 | AL113: 0 | AM113: 0 | AN113: 0 | AO113: 0 | AP113: 0 | AQ113: 0 | AR113: 0 | AS113: 0 | AT113: 0 | AU113: 0 | AV113: 0 | AW113: 0 | AX113: 0 | AY113: 0 | AZ113: 0 | BA113: 0 | BB113: 0 | BC113: 0 | BD113: 0 | BE113: 0 | BF113: 0 | BG113: 0 | BH113: 0 | BI113: 0 | BJ113: 0 | BK113: 18807 | BL113: 18807 | BM113: 18807 | BN113: 0 | BO113: 0 | BP113: 18807 | BQ113: 1139
B114: Adiantamento de clientes | C114: 1625 | D114: 1399 | E114: 1824 | F114: 2345 | G114: =F114 -> 2345 | H114: 287 | I114: 715 | J114: 951 | K114: 1052 | L114: 1052 | M114: 1576 | N114: 2030 | O114: 2153 | P114: 561 | Q114: 561 | R114: 1330 | S114: 1483 | T114: 2050 | U114: 1405 | V114: 1405 | W114: 690 | X114: 1070 | Y114: 1220 | Z114: 1209 | AA114: 1209 | AB114: 879 | AC114: 831 | AD114: 900 | AE114: 955 | AF114: 955 | AG114: 1149 | AH114: 759 | AI114: 997 | AJ114: 804 | AK114: 804 | AL114: 1178 | AM114: 1020 | AN114: 823 | AO114: 573 | AP114: 573 | AQ114: 2588 | AR114: 1767 | AS114: 892 | AT114: 713 | AU114: 713 | AV114: 4039 | AW114: 3967 | AX114: 2508 | AY114: 1228 | AZ114: 1228 | BA114: 10473 | BB114: 8288 | BC114: 8172 | BD114: 3391 | BE114: 3391 | BF114: 8212 | BG114: 8049 | BH114: 10301 | BI114: 8108 | BJ114: 8108 | BK114: 3191 | BL114: 4145 | BM114: 4987 | BN114: 3024 | BO114: 3024 | BP114: 5403 | BQ114: 6167
B115: Instrumentos Financeiro derivativos | C115: 0 | D115: 0 | E115: 0 | F115: 0 | G115: =F115 -> 0 | H115: 0 | I115: 84 | J115: 0 | K115: 0 | L115: 0
B116: Total do passivo circulante | C116: =SUM(C101:C115) -> 246320 | D116: =SUM(D101:D115) -> 266831 | E116: 294245 | F116: 324711 | G116: =SUM(G101:G115) -> 324711 | H116: =SUM(H101:H115) -> 246782 | I116: =SUM(I101:I115) -> 240130 | J116: 252493 | K116: =SUM(K101:K115) -> 265586 | L116: 265586 | M116: =SUM(M101:M115) -> 374473 | N116: =SUM(N101:N115) -> 206681 | O116: 216175 | P116: 244281 | Q116: 244281 | R116: =SUM(R101:R115) -> 269646 | S116: =SUM(S101:S115) -> 305033 | T116: 302468 | U116: =SUM(U101:U115) -> 352443 | V116: 352443 | W116: =SUM(W101:W115) -> 220458 | X116: =SUM(X101:X115) -> 219458 | Y116: 266923 | Z116: 279560 | AA116: 279560 | AB116: =SUM(AB101:AB115) -> 194109 | AC116: 185801 | AD116: 218032 | AE116: 256483 | AF116: 256483 | AG116: 660511 | AH116: 677924 | AI116: 160055 | AJ116: 151218 | AK116: 151218 | AL116: 324704 | AM116: 266875 | AN116: 357359 | AO116: 671063 | AP116: 671063 | AQ116: 733176 | AR116: 742991 | AS116: 308930 | AT116: 313757 | AU116: 313757 | AV116: 374921 | AW116: 483946 | AX116: 645851 | AY116: 762541 | AZ116: 762541 | BA116: 424338 | BB116: 453678 | BC116: 666012 | BD116: 387719 | BE116: 387719 | BF116: 513890 | BG116: 537311 | BH116: 386451 | BI116: 403291 | BJ116: 403291 | BK116: 198700 | BL116: 249210 | BM116: 544654 | BN116: 531095 | BO116: 531095 | BP116: 381141 | BQ116: 40606
B118: Passivo não circulante
B119: Provisão para passivo a descoberto | C119: 6961 | D119: 7346 | E119: 7735 | F119: 7018 | G119: =F119 -> 7018 | H119: 6124 | I119: 6481 | J119: 6836 | K119: 6529 | L119: 6529 | M119: 5277 | N119: 5646 | O119: 7530 | P119: 5776 | Q119: 5776 | R119: 3674 | S119: 3884 | T119: 4137 | U119: 4963 | V119: 4963 | W119: 2848 | X119: 3120 | Y119: 3279 | Z119: 3472 | AA119: =Z119 -> 3472 | AB119: 523 | AC119: 963 | AD119: 1113 | AE119: 2663 | AF119: =AE119 -> 2663 | AG119: 0 | AH119: 0 | AI119: 78 | AJ119: 385 | AK119: =AJ119 -> 385 | AL119: 0 | AM119: 0 | AN119: 0 | AO119: 0 | AP119: =AO119 -> 0 | AQ119: 0 | AR119: 0 | AS119: 0 | AT119: 0 | AU119: =AT119 -> 0 | AV119: 0 | AW119: 0 | AX119: 0 | AY119: 0 | AZ119: =AY119 -> 0 | BA119: 0 | BB119: 0 | BC119: 0 | BD119: 0 | BE119: =BD119 -> 0 | BF119: 0 | BG119: 0 | BH119: 0 | BI119: 0 | BJ119: =BI119 -> 0 | BK119: 0 | BL119: 0 | BM119: 0 | BN119: 0 | BO119: =BN119 -> 0 | BP119: 0 | BQ119: 0
B120: Empréstimos e financiamentos | C120: 473761 | D120: 481623 | E120: 462887 | F120: 457112 | G120: =F120 -> 457112 | H120: 529052 | I120: 514233 | J120: 499189 | K120: 485801 | L120: 485801 | M120: 346774 | N120: 535670 | O120: 551165 | P120: 543633 | Q120: 543633 | R120: 417684 | S120: 400427 | T120: 382601 | U120: 363307 | V120: 363307 | W120: 464243 | X120: 453378 | Y120: 430236 | Z120: 426731 | AA120: =Z120 -> 426731 | AB120: 472883 | AC120: 466765 | AD120: 478884 | AE120: 470874 | AF120: =AE120 -> 470874 | AG120: 0 | AH120: 0 | AI120: 465700 | AJ120: 482783 | AK120: 482783 | AL120: 416631 | AM120: 416320 | AN120: 305124 | AO120: 0 | AP120: 0 | AQ120: 59319 | AR120: 59254 | AS120: 563897 | AT120: 468592 | AU120: 468592 | AV120: 298147 | AW120: 281247 | AX120: 182908 | AY120: 0 | AZ120: 0 | BA120: 173911 | BB120: 172218 | BC120: 65 | BD120: 297771 | BE120: 297771 | BF120: 1676 | BG120: 1878 | BH120: 201267 | BI120: 174750 | BJ120: 174750 | BK120: 257270 | BL120: 250311 | BM120: 1987 | BN120: 840 | BO120: 840 | BP120: 4224 | BQ120: 0
B121: Passivo de Arrendamento | C121: 72220 | D121: 73565 | E121: 72930 | F121: 72640 | G121: =F121 -> 72640 | H121: 77138 | I121: 69031 | J121: 66809 | K121: 64615 | L121: 64615 | M121: 73833 | N121: 80033 | O121: 75647 | P121: 77166 | Q121: 77166 | R121: 78218 | S121: 80732 | T121: 77770 | U121: 79004 | V121: 79004 | W121: 95362 | X121: 91993 | Y121: 91325 | Z121: 73039 | AA121: 73039 | AB121: 111360 | AC121: 106218 | AD121: 99622 | AE121: 101205 | AF121: 101205 | AG121: 0 | AH121: 0 | AI121: 0 | AJ121: 0 | AK121: 0 | AL121: 0 | AM121: 0 | AN121: 0 | AO121: 0 | AP121: 0 | AQ121: 0 | AR121: 0 | AS121: 0 | AT121: 0 | AU121: 0 | AV121: 0 | AW121: 0 | AX121: 0 | AY121: 0 | AZ121: 0 | BA121: 0 | BB121: 0 | BC121: 0 | BD121: 0 | BE121: 0 | BF121: 0 | BG121: 0 | BH121: 0 | BI121: 0 | BJ121: 0 | BK121: 0 | BL121: 0 | BM121: 0 | BN121: 0 | BO121: 0 | BP121: 0 | BQ121: 0
B122: Obrigações trabalhistas | C122: 0 | D122: 0 | E122: 0 | G122: =F122 -> 0 | H122: 0 | I122: 0 | J122: 0 | K122: 0 | L122: 0 | M122: 0 | N122: 0 | O122: 0 | P122: 0 | Q122: 0 | R122: 0 | S122: 0 | T122: 0 | U122: 0 | V122: 0 | W122: 0 | X122: 0 | Y122: 0 | Z122: 0 | AA122: 0 | AB122: 0 | AC122: 0 | AD122: 0 | AE122: 0 | AF122: 0 | AG122: 5114 | AH122: 556 | AI122: 14454 | AJ122: 13763 | AK122: 13763 | AL122: 0 | AM122: 482 | AN122: 5508 | AO122: 5615 | AP122: 5615 | AQ122: 0 | AR122: 0 | AS122: 0 | AT122: 0 | AU122: 0 | AV122: 0 | AW122: 0 | AX122: 0 | AY122: 0 | AZ122: 0 | BA122: 0 | BB122: 0 | BC122: 0 | BD122: 0 | BE122: 0 | BF122: 0 | BG122: 0 | BH122: 0 | BI122: 0 | BJ122: 0 | BK122: 0 | BL122: 0 | BM122: 0 | BN122: 0 | BO122: 0 | BP122: 0 | BQ122: 0
B123: Impostos a recolher | C123: 0 | D123: 0 | E123: 0 | G123: =F123 -> 0 | H123: 0 | I123: 0 | J123: 0 | K123: 0 | L123: 0 | M123: 0 | N123: 0 | O123: 0 | P123: 0 | Q123: 0 | R123: 0 | S123: 0 | T123: 0 | U123: 0 | V123: 0 | W123: 0 | X123: 0 | Y123: 0 | Z123: 0 | AA123: 0 | AB123: 0 | AC123: 0 | AD123: 0 | AE123: 0 | AF123: 0 | AG123: 8774 | AH123: 4464 | AI123: 23131 | AJ123: 21149 | AK123: 21149 | AL123: 0 | AM123: 1049 | AN123: 9521 | AO123: 9179 | AP123: 9179 | AQ123: 0 | AR123: 0 | AS123: 0 | AT123: 0 | AU123: 0 | AV123: 0 | AW123: 0 | AX123: 0 | AY123: 0 | AZ123: 0 | BA123: 0 | BB123: 0 | BC123: 0 | BD123: 0 | BE123: 0 | BF123: 0 | BG123: 0 | BH123: 0 | BI123: 0 | BJ123: 0 | BK123: 0 | BL123: 0 | BM123: 0 | BN123: 0 | BO123: 0 | BP123: 0 | BQ123: 0
B124: Provisão para riscos tributários, cíveis e trabalhistas | C124: 10892 | D124: 11244 | E124: 10195 | F124: 8916 | G124: =F124 -> 8916 | H124: 8842 | I124: 9251 | J124: 9641 | K124: 10803 | L124: 10803 | M124: 8047 | N124: 7587 | O124: 6000 | P124: 6747 | Q124: 6747 | R124: 5443 | S124: 5978 | T124: 6032 | U124: 6799 | V124: 6799 | W124: 7143 | X124: 7221 | Y124: 7212 | Z124: 5460 | AA124: 5460 | AB124: 5488 | AC124: 7050 | AD124: 6721 | AE124: 6339 | AF124: 6339 | AG124: 4190 | AH124: 4249 | AI124: 4605 | AJ124: 4641 | AK124: 4641 | AL124: 3486 | AM124: 4019 | AN124: 4029 | AO124: 3888 | AP124: 3888 | AQ124: 9393 | AR124: 7513 | AS124: 5457 | AT124: 3622 | AU124: 3622 | AV124: 26170 | AW124: 26280 | AX124: 14515 | AY124: 10917 | AZ124: 10917 | BA124: 31537 | BB124: 28988 | BC124: 27313 | BD124: 26079 | BE124: 26079 | BF124: 41702 | BG124: 40559 | BH124: 40905 | BI124: 31058 | BJ124: 31058 | BK124: 27400 | BL124: 39361 | BM124: 41210 | BN124: 41471 | BO124: 41471 | BP124: 30520 | BQ124: 665
B125: Contas a pagar | C125: 0 | D125: 0 | E125: 0 | G125: =F125 -> 0 | H125: 0 | I125: 0 | J125: 0 | K125: 0 | L125: 0 | M125: 0 | N125: 0 | O125: 0 | P125: 0 | Q125: 0 | R125: 0 | S125: 0 | T125: 0 | U125: 0 | V125: 0 | W125: 0 | X125: 0 | Y125: 0 | Z125: 0 | AA125: 0 | AB125: 29 | AC125: 8 | AD125: 0 | AE125: 0 | AF125: 0 | AG125: 429 | AH125: 334 | AI125: 213 | AJ125: 50 | AK125: 50 | AL125: 701 | AM125: 610 | AN125: 625 | AO125: 524 | AP125: 524 | AQ125: 1127 | AR125: 1020 | AS125: 898 | AT125: 785 | AU125: 785 | AV125: 13966 | AW125: 14388 | AX125: 1365 | AY125: 1282 | AZ125: 1282 | BA125: 21068 | BB125: 21285 | BC125: 13631 | BD125: 13585 | BE125: 13585 | BF125: 26838 | BG125: 27047 | BH125: 20667 | BI125: 20874 | BJ125: 20874 | BK125: 2679 | BL125: 30877 | BM125: 31386 | BN125: 31693 | BO125: 31693 | BP125: 2679 | BQ125: 7675
B126: Dividendos a pagar | C126: 5689 | D126: 5689 | E126: 5689 | F126: 5689 | G126: =F126 -> 5689 | H126: 5689 | I126: 5689 | J126: 5689 | K126: 5689 | L126: 5689 | M126: 5689 | N126: 5689 | O126: 5689 | P126: 5689 | Q126: 5689 | R126: 5689 | S126: 5689 | T126: 5689 | U126: 5689 | V126: 5689 | W126: 5689 | X126: 5689 | Y126: 5689 | Z126: 5689 | AA126: 5689 | AB126: 5689 | AC126: 5689 | AD126: 5689 | AE126: 5689 | AF126: 5689 | AG126: 5689 | AH126: 5689 | AI126: 5689 | AJ126: 5689 | AK126: 5689 | AL126: 0 | AM126: 0 | AN126: 0 | AO126: 0 | AP126: 0 | AQ126: 0 | AR126: 0 | AS126: 0 | AT126: 0 | AU126: 0 | AV126: 0 | AW126: 0 | AX126: 0 | AY126: 0 | AZ126: 0 | BA126: 0 | BB126: 0 | BC126: 0 | BD126: 0 | BE126: 0 | BF126: 0 | BG126: 0 | BH126: 0 | BI126: 0 | BJ126: 0 | BK126: 0 | BL126: 0 | BM126: 0 | BN126: 0 | BO126: 0 | BP126: 0 | BQ126: 0
B127: Parcelamento de tributos | C127: 24923 | D127: 21475 | E127: 17863 | F127: 18738 | G127: =F127 -> 18738 | H127: 31356 | I127: 27305 | J127: 23337 | K127: 29923 | L127: 29923 | M127: 48059 | N127: 43780 | O127: 39628 | P127: 35473 | Q127: 35473 | R127: 63842 | S127: 64865 | T127: 60505 | U127: 54234 | V127: 54234 | W127: 60975 | X127: 62271 | Y127: 59897 | Z127: 63409 | AA127: 63409 | AB127: 51616 | AC127: 49383 | AD127: 47525 | AE127: 52845 | AF127: 52845 | AG127: 14777 | AH127: 14423 | AI127: 14192 | AJ127: 13984 | AK127: 13984 | AL127: 16917 | AM127: 16747 | AN127: 15338 | AO127: 15025 | AP127: 15025 | AQ127: 17092 | AR127: 17089 | AS127: 17251 | AT127: 17010 | AU127: 17010 | AV127: 16758 | AW127: 16693 | AX127: 17058 | AY127: 16793 | AZ127: 16793 | BA127: 11545 | BB127: 10981 | BC127: 10218 | BD127: 16485 | BE127: 16485 | BF127: 11740 | BG127: 14006 | BH127: 13181 | BI127: 12372 | BJ127: 12372 | BK127: 15521 | BL127: 14958 | BM127: 13491 | BN127: 11695 | BO127: 11695 | BP127: 17491 | BQ127: 2232
B128: Imposto de renda e contribuição social diferidos | C128: 0 | D128: 0 | E128: 0 | G128: =F128 -> 0 | H128: 0 | I128: 0 | J128: 0 | K128: 0 | L128: 0 | M128: 0 | N128: 0 | O128: 0 | P128: 0 | Q128: 0 | R128: 0 | S128: 0 | T128: 0 | U128: 0 | V128: 0 | W128: 0 | X128: 0 | Y128: 0 | Z128: 0 | AA128: 0 | AB128: 0 | AC128: 0 | AD128: 0 | AF128: 0 | AG128: 495 | AH128: 0 | AI128: 0 | AJ128: 0 | AK128: 0 | AL128: 0 | AM128: 17348 | AN128: 26778 | AO128: 1225 | AP128: 1225 | AQ128: 34982 | AR128: 35264 | AS128: 34595 | AT128: 0 | AU128: 0 | AV128: 39259 | AW128: 29779 | AX128: 35275 | AY128: 32800 | AZ128: 32800 | BA128: 42325 | BB128: 29178 | BC128: 36684 | BD128: 52552 | BE128: 52552 | BF128: 53021 | BG128: 46542 | BH128: 54645 | BI128: 54803 | BJ128: 54803 | BK128: 54362 | BL128: 59782 | BM128: 69126 | BN128: 58530 | BO128: 58530 | BP128: 52517 | BQ128: 9317
B129: Total do passivo não circulante | C129: =SUM(C119:C128) -> 594446 | D129: 600942 | E129: 577299 | F129: =SUM(F119:F128) -> 570113 | G129: =SUM(G119:G128) -> 570113 | H129: 658201 | I129: 631990 | J129: 611501 | K129: 603360 | L129: 603360 | M129: 487679 | N129: =SUM(N119:N128) -> 678405 | O129: 685659 | P129: 674484 | Q129: 674484 | R129: =SUM(R119:R128) -> 574550 | S129: =SUM(S119:S128) -> 561575 | T129: 536734 | U129: =SUM(U119:U128) -> 513996 | V129: 513996 | W129: =SUM(W119:W128) -> 636260 | X129: =SUM(X119:X128) -> 623672 | Y129: 597638 | Z129: 577800 | AA129: 577800 | AB129: =SUM(AB119:AB128) -> 647588 | AC129: 636076 | AD129: 639554 | AE129: 639615 | AF129: 639615 | AG129: 39468 | AH129: 29715 | AI129: 528062 | AJ129: 542444 | AK129: 542444 | AL129: 437735 | AM129: 456575 | AN129: 366923 | AO129: 35456 | AP129: 35456 | AQ129: 121913 | AR129: 120140 | AS129: 622098 | AT129: 490009 | AU129: 490009 | AV129: 394300 | AW129: 368387 | AX129: 251121 | AY129: 61792 | AZ129: 61792 | BA129: 280386 | BB129: 262650 | BC129: 87911 | BD129: 406472 | BE129: 406472 | BF129: 134977 | BG129: 130032 | BH129: 330665 | BI129: 293857 | BJ129: 293857 | BK129: 357232 | BL129: 395289 | BM129: 157200 | BN129: 144229 | BO129: 144229 | BP129: 107431 | BQ129: 19889
B131: Patrimônio líquido
B132: Capital social | C132: 452949 | D132: 452949 | E132: 452949 | F132: 452949 | G132: =F132 -> 452949 | H132: 452949 | I132: 452949 | J132: 452949 | K132: 452949 | L132: 452949 | M132: 452949 | N132: 452949 | O132: 452949 | P132: 452949 | Q132: 452949 | R132: 452949 | S132: 452949 | T132: 452949 | U132: 452949 | V132: 452949 | W132: 452949 | X132: 452949 | Y132: 452949 | Z132: 452949 | AA132: =Z132 -> 452949 | AB132: 442949 | AC132: 442949 | AD132: 452949 | AE132: 452949 | AF132: =AE132 -> 452949 | AG132: 392949 | AH132: 392949 | AI132: 442949 | AJ132: 442949 | AK132: =AJ132 -> 442949 | AL132: 392940 | AM132: 392949 | AN132: 392949 | AO132: 392949 | AP132: =AO132 -> 392949 | AQ132: 286934 | AR132: 286934 | AS132: 286934 | AT132: 390689 | AU132: =AT132 -> 390689 | AV132: 286934 | AW132: 286934 | AX132: 286934 | AY132: 286934 | AZ132: =AY132 -> 286934 | BA132: 285446 | BB132: 285446 | BC132: 285446 | BD132: 285446 | BE132: =BD132 -> 285446 | BF132: 285446 | BG132: 285446 | BH132: 285446 | BI132: 285446 | BJ132: =BI132 -> 285446 | BK132: 265446 | BL132: 290243 | BM132: 290243 | BN132: 285446 | BO132: =BN132 -> 285446 | BP132: 265446 | BQ132: 205304
B133: AFAC - adiantamento para futuro aumento de capital | C133: 0 | D133: 0 | E133: 0 | F133: 0 | G133: =F133 -> 0 | H133: 0 | I133: 0 | J133: 0 | K133: 0 | L133: 0 | M133: 0 | N133: 0 | O133: 0 | P133: 0 | Q133: 0 | R133: 0 | S133: 0 | T133: 0 | U133: 0 | V133: 0 | W133: 0 | X133: 0 | Y133: 0 | Z133: 0 | AA133: =Z133 -> 0 | AB133: 0 | AC133: 10000 | AD133: 0 | AE133: 0 | AF133: =AE133 -> 0 | AG133: 0 | AH133: 0 | AI133: 0 | AJ133: 0 | AK133: 0 | AL133: 0 | AM133: 0 | AN133: 0 | AO133: 0 | AP133: 0 | AQ133: 0 | AR133: 0 | AS133: 0 | AT133: 0 | AU133: 0 | AV133: 0 | AW133: 0 | AX133: 0 | AY133: 0 | AZ133: 0 | BA133: 0 | BB133: 0 | BC133: 0 | BD133: 0 | BE133: 0 | BF133: 0 | BG133: 0 | BH133: 0 | BI133: 0 | BJ133: 0 | BK133: 0 | BL133: 0 | BM133: 0 | BN133: 0 | BO133: 0 | BP133: 0 | BQ133: 0
B134: Reserva especial de ágio | C134: 45157 | D134: 45157 | E134: 45157 | F134: 45157 | G134: =F134 -> 45157 | H134: 45157 | I134: 45157 | J134: 45157 | K134: 45157 | L134: 45157 | M134: 45157 | N134: 45157 | O134: 45157 | P134: 45157 | Q134: 45157 | R134: 45157 | S134: 45157 | T134: 45157 | U134: 45157 | V134: 45157 | W134: 45157 | X134: 45157 | Y134: 45157 | Z134: 45157 | AA134: 45157 | AB134: 45157 | AC134: 45157 | AD134: 45157 | AE134: 45157 | AF134: 45157 | AG134: 45157 | AH134: 45157 | AI134: 45157 | AJ134: 45157 | AK134: 45157 | AL134: 49954 | AM134: 45157 | AN134: 45157 | AO134: 45157 | AP134: 45157 | AQ134: 49954 | AR134: 49954 | AS134: 49954 | AT134: 49954 | AU134: 49954 | AV134: 49954 | AW134: 49954 | AX134: 49954 | AY134: 49954 | AZ134: 49954 | BA134: 49954 | BB134: 49954 | BC134: 49954 | BD134: 49954 | BE134: 49954 | BF134: 49954 | BG134: 49954 | BH134: 49954 | BI134: 49954 | BJ134: 49954 | BK134: 45157 | BL134: 45157 | BM134: 45157 | BN134: 49954 | BO134: 49954 | BP134: 45157 | BQ134: 45157
B135: Plano de opções de compra de ações | C135: 0 | D135: 0 | E135: 0 | F135: 0 | G135: =F135 -> 0 | H135: 0 | I135: 0 | J135: 0 | K135: 0 | L135: 0 | M135: 0 | N135: 0 | O135: 0 | P135: 0 | Q135: 0 | R135: 0 | S135: 0 | T135: 0 | U135: 0 | V135: 0 | W135: 0 | X135: 0 | Y135: 0 | Z135: 0 | AA135: 0 | AB135: 335 | AC135: 0 | AD135: 0 | AE135: 0 | AF135: 0 | AG135: 4629 | AH135: 676 | AI135: 335 | AJ135: 335 | AK135: 335 | AL135: 24994 | AM135: 24994 | AN135: 24994 | AO135: 24994 | AP135: 24994 | AQ135: 24993 | AR135: 24994 | AS135: 24994 | AT135: 24994 | AU135: 24994 | AV135: 0 | AW135: 0 | AX135: 0 | AY135: 0 | AZ135: 0 | BA135: 0 | BB135: 0 | BC135: 0 | BD135: 0 | BE135: 0 | BF135: 0 | BG135: 0 | BH135: 0 | BI135: 0 | BJ135: 0 | BK135: 0 | BL135: 0 | BM135: 0 | BN135: 0 | BO135: 0 | BP135: 0 | BQ135: 0
B136: Reservas de lucros | C136: 0 | D136: 0 | E136: 0 | F136: 0 | G136: =F136 -> 0 | AA136: 0 | AB136: 0 | AC136: 0 | AD136: 0 | AE136: 0 | AF136: 0 | AG136: 0 | AH136: 0 | AI136: 0 | AJ136: 0 | AK136: 0 | AL136: 0 | AM136: 0 | AN136: 0 | AO136: 0 | AP136: 0 | AQ136: 49182 | AR136: 5531 | AS136: 78019 | AT136: 0 | AU136: 0 | AV136: 107163 | AW136: 96816 | AX136: 105147 | AY136: 103003 | AZ136: 103003 | BA136: 74270 | BB136: 64644 | BC136: 74338 | BD136: 91141 | BE136: 91141 | BF136: 7732 | BG136: 16687 | BH136: 42996 | BI136: 63676 | BJ136: 63676 | BK136: 16697 | BL136: 19077 | BM136: 20794 | BN136: 464 | BO136: 464 | BP136: 5405 | BQ136: 15524
B137: Prejuízos acumulados | C137: -251187 | D137: -265058 | E137: -269962 | F137: -270730 | G137: =F137 -> -270730 | H137: -220029 | I137: -222952 | J137: -235528 | K137: -226285 | L137: -226285 | M137: -208314 | N137: -209266 | O137: -213091 | P137: -202635 | Q137: -202635 | R137: -217944 | S137: -221748 | T137: -211062 | U137: -194706 | V137: -194706 | W137: -133597 | X137: -175258 | Y137: -205188 | Z137: -198064 | AA137: -198064 | AB137: -132823 | AC137: -167524 | AD137: -164439 | AE137: -88489 | AF137: -88489 | AG137: -107412 | AH137: -116437 | AI137: -106269 | AJ137: -114298 | AK137: -114298 | AL137: -33762 | AM137: -57590 | AN137: -53853 | AO137: -102396 | AP137: -102396 | AQ137: 0 | AR137: 0 | AS137: -95486 | AT137: -17769 | AU137: -17769 | AV137: 0 | AW137: 0 | AX137: 0 | AY137: 0 | AZ137: 0 | BA137: 0 | BB137: 0 | BC137: 0 | BD137: 0 | BE137: 0 | BF137: 0 | BG137: -7642 | BH137: 0 | BI137: 0 | BJ137: 0 | BK137: -26239 | BL137: -41609 | BM137: -46368 | BN137: 11610 | BO137: 11610 | BP137: 0 | BQ137: 10722
B138: Outros resultados abrangentes | C138: -331 | D138: -770 | E138: -400 | F138: -1138 | G138: =F138 -> -1138 | H138: -424 | I138: -641 | J138: -514 | K138: -1778 | L138: -1778 | M138: -804 | N138: -1075 | O138: -1010 | P138: -2154 | Q138: -2154 | R138: -22 | S138: -350 | T138: -243 | U138: -1685 | V138: -1685 | W138: -713 | X138: -385 | Y138: -657 | Z138: -997 | AA138: -997 | AB138: -929 | AC138: -821 | AD138: -809 | AE138: -2056 | AF138: -2056 | AG138: -129 | AH138: -334 | AI138: -445 | AJ138: -1214 | AK138: -1214 | AL138: 0 | AM138: 0 | AN138: 0 | AO138: 0 | AP138: 0 | AQ138: 0 | AR138: 0 | AS138: 0 | AT138: 0 | AU138: 0 | AV138: 0 | AW138: 0 | AX138: 0 | AY138: 0 | AZ138: 0 | BA138: 0 | BB138: 0 | BC138: 0 | BD138: 0 | BE138: 0 | BF138: 0 | BG138: 0 | BH138: 0 | BI138: 0 | BJ138: 0 | BK138: 0 | BL138: 0 | BM138: 0 | BN138: 0 | BO138: 0 | BP138: 0 | BQ138: 0
B139: Ajustes de avaliação patrimonial | C139: 0 | D139: 0 | E139: 0 | F139: 0 | G139: =F139 -> 0 | AB139: 0 | AC139: 0 | AD139: 0 | AE139: 0 | AF139: 0 | AG139: 0 | AH139: 0 | AI139: 0 | AJ139: 0 | AK139: =AJ139 -> 0 | AL139: 0 | AM139: 0 | AN139: 0 | AO139: 0 | AP139: =AO139 -> 0 | AQ139: 0 | AR139: 0 | AS139: 0 | AT139: 0 | AU139: =AT139 -> 0 | AV139: 0 | AW139: 0 | AX139: 0 | AY139: 0 | AZ139: =AY139 -> 0 | BA139: 0 | BB139: 0 | BC139: 0 | BD139: 0 | BE139: =BD139 -> 0 | BF139: 10505 | BG139: 10481 | BH139: 0 | BI139: 0 | BJ139: =BI139 -> 0 | BK139: 10601 | BL139: 10577 | BM139: 10553 | BN139: 10529 | BO139: =BN139 -> 10529 | BP139: 10625 | BQ139: 2046
B140: Patrimônio líquido atribuído aos controladores | C140: =SUM(C131:C139) -> 246588 | D140: =SUM(D131:D139) -> 232278 | E140: 227744 | F140: 226238 | G140: =SUM(G131:G139) -> 226238 | H140: =SUM(H131:H139) -> 277653 | I140: =SUM(I131:I139) -> 274513 | J140: 262064 | K140: =SUM(K131:K139) -> 270043 | L140: 270043 | M140: =SUM(M131:M139) -> 288988 | N140: =SUM(N131:N139) -> 287765 | O140: 284005 | P140: 293317 | Q140: 293317 | R140: =SUM(R131:R139) -> 280140 | S140: =SUM(S131:S139) -> 276008 | T140: 286801 | U140: =SUM(U131:U139) -> 301715 | V140: 301715 | W140: =SUM(W131:W139) -> 363796 | X140: 322463 | Y140: 292261 | Z140: 299045 | AA140: 299045 | AB140: 354689 | AC140: =SUM(AC131:AC139) -> 329761 | AD140: 332858 | AE140: 407561 | AF140: 407561 | AG140: 335194 | AH140: 322011 | AI140: 381727 | AJ140: 372929 | AK140: 372929 | AL140: 434126 | AM140: 405510 | AN140: 409247 | AO140: 360704 | AP140: 360704 | AQ140: 411063 | AR140: 367413 | AS140: 344415 | AT140: 447868 | AU140: 447868 | AV140: 444051 | AW140: 433704 | AX140: 442035 | AY140: 439891 | AZ140: 439891 | BA140: 409670 | BB140: 400044 | BC140: 409738 | BD140: 426541 | BE140: 426541 | BF140: 353637 | BG140: 354926 | BH140: 378396 | BI140: 399076 | BJ140: 399076 | BK140: 311662 | BL140: 323445 | BM140: 320379 | BN140: 358003 | BO140: 358003 | BP140: 326633 | BQ140: =SUM(BQ131:BQ139) -> 278753
B142: Participação dos acionistas não controladores | C142: -19394 | D142: -20078 | E142: -20802 | F142: -21122 | G142: =F142 -> -21122 | H142: -16919 | I142: -17564 | J142: -18230 | K142: -18727 | L142: -18727 | M142: -14638 | N142: -15168 | O142: -15737 | P142: -16171 | Q142: -16171 | R142: -12885 | S142: -13212 | T142: -13594 | U142: -14166 | V142: -14166 | W142: -11421 | X142: -11745 | Y142: -12038 | Z142: -12571 | AA142: =Z142 -> -12571 | AB142: -9640 | AC142: -10112 | AD142: -10457 | AE142: -11116 | AF142: =AE142 -> -11116 | AG142: -8586 | AH142: -9011 | AI142: -9083 | AJ142: -9372 | AK142: =AJ142 -> -9372 | AL142: -7307 | AM142: -7606 | AN142: -7832 | AO142: -8201 | AP142: =AO142 -> -8201 | AQ142: -6543 | AR142: -6428 | AS142: -6667 | AT142: -7217 | AU142: =AT142 -> -7217 | AV142: -4677 | AW142: -4683 | AX142: -5409 | AY142: -6370 | AZ142: =AY142 -> -6370 | BA142: -3314 | BB142: -3935 | BC142: -4787 | BD142: -4384 | BE142: =BD142 -> -4384 | BF142: -4487 | BG142: -4706 | BH142: -5216 | BI142: -3935 | BJ142: =BI142 -> -3935 | BK142: -116 | BL142: -142 | BM142: -252 | BN142: -4450 | BO142: =BN142 -> -4450 | BP142: 20 | BQ142: -1328
B144: Total do patrimônio líquido | C144: =C140+C142 -> 227194 | D144: =D140+D142 -> 212200 | E144: =E140+E142 -> 206942 | F144: 205116 | G144: =G140+G142 -> 205116 | H144: =H140+H142 -> 260734 | I144: =I140+I142 -> 256949 | J144: 243834 | K144: =K140+K142 -> 251316 | L144: 251316 | M144: =M140+M142 -> 274350 | N144: =N140+N142 -> 272597 | O144: 268268 | P144: 277146 | Q144: 277146 | R144: =R140+R142 -> 267255 | S144: =S140+S142 -> 262796 | T144: 273207 | U144: =U140+U142 -> 287549 | V144: 287549 | W144: =W140+W142 -> 352375 | X144: 310718 | Y144: 280223 | Z144: 286474 | AA144: 286474 | AB144: 345049 | AC144: =AC140+AC142 -> 319649 | AD144: 322401 | AE144: 396445 | AF144: 396445 | AG144: 326608 | AH144: 313000 | AI144: 372644 | AJ144: 363557 | AK144: 363557 | AL144: 426819 | AM144: 397904 | AN144: 401415 | AO144: 352503 | AP144: 352503 | AQ144: 404520 | AR144: 360985 | AS144: 337748 | AT144: 440651 | AU144: 440651 | AV144: 439374 | AW144: 429021 | AX144: 436626 | AY144: 433521 | AZ144: 433521 | BA144: 406356 | BB144: 396109 | BC144: 404951 | BD144: 422157 | BE144: 422157 | BF144: 349150 | BG144: 350220 | BH144: 373180 | BI144: 395141 | BJ144: 395141 | BK144: 311546 | BL144: 323303 | BM144: 320127 | BN144: 353553 | BO144: 353553 | BP144: 326653 | BQ144: =BQ140+BQ142 -> 277425
B146: Total do passivo e patrimônio líquido | C146: =C144+C129+C116 -> 1067960 | D146: =D144+D129+D116 -> 1079973 | E146: =E144+E129+E116 -> 1078486 | F146: 1099940 | G146: =G144+G129+G116 -> 1099940 | H146: =H144+H129+H116 -> 1165717 | I146: =I144+I129+I116 -> 1129069 | J146: 1107828 | K146: =K144+K129+K116 -> 1120262 | L146: 1120262 | M146: =M144+M129+M116 -> 1136502 | N146: =N144+N129+N116 -> 1157683 | O146: =O144+O129+O116 -> 1170102 | P146: 1195911 | Q146: 1195911 | R146: =R144+R129+R116 -> 1111451 | S146: =S144+S129+S116 -> 1129404 | T146: =T144+T129+T116 -> 1112409 | U146: 1153988 | V146: 1153988 | W146: =W144+W129+W116 -> 1209093 | X146: =X144+X129+X116 -> 1153848 | Y146: =Y144+Y129+Y116 -> 1144784 | Z146: 1143834 | AA146: 1143834 | AB146: =AB144+AB129+AB116 -> 1186746 | AC146: 1141526 | AD146: 1179987 | AE146: 1292543 | AF146: 1292543 | AG146: 1026587 | AH146: 1020639 | AI146: 1060761 | AJ146: 1057219 | AK146: 1057219 | AL146: 1189258 | AM146: 1121354 | AN146: 1125697 | AO146: 1059022 | AP146: 1059022 | AQ146: 1259609 | AR146: 1224116 | AS146: 1268776 | AT146: 1244417 | AU146: 1244417 | AV146: 1208595 | AW146: 1281354 | AX146: 1333598 | AY146: 1257854 | AZ146: 1257854 | BA146: 1111080 | BB146: 1112437 | BC146: 1158874 | BD146: 1216348 | BE146: 1216348 | BF146: 998017 | BG146: 1017563 | BH146: 1090296 | BI146: 1092289 | BJ146: 1092289 | BK146: 867478 | BL146: 967802 | BM146: 1021981 | BN146: 1028877 | BO146: 1028877 | BP146: 815225 | BQ146: 337920
C147: =C146-C97 -> 0 | D147: =D146-D97 -> 0 | E147: =E146-E97 -> 0 | F147: =F146-F97 -> 0 | G147: =G146-G97 -> 0 | H147: =H146-H97 -> 0 | I147: =I146-I97 -> 0 | J147: 0 | K147: =K146-K97 -> 0 | L147: 0 | M147: =M146-M97 -> 0 | N147: =N146-N97 -> 0 | O147: =O146-O97 -> 0 | P147: 0 | Q147: 0 | R147: =R146-R97 -> 0 | S147: =S146-S97 -> 0 | T147: =T146-T97 -> 0 | U147: 0 | V147: 0 | W147: =W146-W97 -> 0 | X147: =X146-X97 -> 0 | Y147: =Y146-Y97 -> 0 | Z147: 0 | AA147: 0 | AB147: =AB146-AB97 -> 0 | AC147: 0 | AD147: 0 | AE147: 0 | AF147: 0 | AG147: 0 | AH147: 0 | AI147: 0 | AJ147: 0 | AK147: 0 | AL147: 0 | AM147: 0 | AN147: 0 | AO147: 0 | AP147: 0 | AQ147: 0 | AR147: 0 | AS147: 0 | AT147: 0 | AU147: 0 | AV147: 0 | AW147: 0 | AX147: 0 | AY147: 0 | AZ147: 0 | BA147: 0 | BB147: 0 | BC147: 0 | BD147: 0 | BE147: 0 | BF147: 0 | BG147: 0 | BH147: 0 | BI147: 0 | BJ147: 0 | BK147: 0 | BL147: 0 | BM147: 0 | BN147: 0 | BO147: 0 | BP147: 0 | BQ147: 0
B154: Consolidado (R$ milhares) - DFC - Fluxo de Caixa | C154: 1T24 | D154: 2T24 | E154: 3T24 | F154: 4T23 | G154: 2024 | H154: 1T23 | I154: 2T23 | J154: 3T23 | K154: 3T23 | L154: 2023 | M154: 1T22 | N154: 2T22 | O154: 3T22 | P154: 4T22 | Q154: 2022 | R154: 1T21 | S154: 2T21 | T154: 3T21 | U154: 4T21 | V154: 2021 | W154: 1T20 | X154: 2T20 | Y154: 3T20 | Z154: 4T20 | AA154: 2020 | AB154: 1T19 | AC154: 2T19 | AD154: 3T19 | AE154: 4T19 | AF154: 2019 | AG154: 1T18 | AH154: 2T18 | AI154: 3T18 | AJ154: 4T18 | AK154: 2018 | AL154: 1T17 | AM154: 2T17 | AN154: 3T17 | AO154: 4T17 | AP154: 2017 | AQ154: 1T16 | AR154: 2T16 | AS154: 3T16 | AT154: 4T16 | AU154: 2016 | AV154: 1T15 | AW154: 2T15 | AX154: 3T15 | AY154: 4T15 | AZ154: 2015 | BA154: 1T14 | BB154: 2T14 | BC154: 3T14 | BD154: 4T14 | BE154: 2014 | BF154: 1T13 | BG154: 2T13 | BH154: 3T13 | BI154: 4T13 | BJ154: 2013 | BK154: 1T12 | BL154: 2T12 | BM154: 3T12 | BN154: 4T12 | BO154: 2012 | BP154: 2011 | BQ154: 2010
B156: Fluxo de caixa das atividades operacionais | C156: =C158+C157 -> 10892 | D156: 17704 | E156: 24595 | F156: 29459 | G156: =G158+G157 -> 82650 | H156: 27978 | I156: 36762 | J156: 30434 | K156: =K158+K157 -> 42977 | L156: 138151 | M156: 22329 | N156: 32947 | O156: 37942 | P156: 48446 | Q156: 141664 | R156: 180 | S156: 20032 | T156: 27537 | U156: =U158+U157 -> 47439 | V156: 95188 | W156: 27 | X156: -14188 | Y156: 1290 | Z156: 30652 | AA156: =SUM(W156:Z156) -> 17781 | AB156: =AB158+AB157 -> 30733 | AC156: =AC158+AC157 -> 5319 | AD156: 48553 | AE156: 147494 | AF156: =SUM(AB156:AE156) -> 232099 | AG156: 8706 | AH156: -4012 | AI156: 24649 | AJ156: 17796 | AK156: 47139 | AL156: 20250 | AM156: -6294 | AN156: 36287 | AO156: 16811 | AP156: 67054 | AQ156: 15886 | AR156: -7425 | AS156: 23697 | AT156: -18343 | AU156: 13814 | AV156: 38587 | AW156: 8370 | AX156: 39699 | AY156: 33987 | AZ156: 120415 | BA156: 30247 | BB156: 268 | BC156: 46280 | BD156: 70725 | BE156: 147520 | BF156: 11566 | BG156: 7689 | BH156: 44285 | BI156: 50213 | BJ156: 113753 | BK156: -2413 | BL156: 13522 | BM156: 13166 | BN156: 46794 | BO156: 71069 | BP156: 39542 | BQ156: =BQ158+BQ157 -> 40061
B157: (Prejuízo) lucro antes do imposto de renda e da contribuição social | C157: -23595 | D157: -15373 | E157: -9505 | F157: =G157-SUM(C157:E157) -> -3060 | G157: -51533 | H157: -14753 | I157: -2720 | J157: -13116 | K157: =L157-SUM(H157:J157) -> 6656 | L157: -23933 | M157: -20778 | N157: -2495 | O157: -1648 | P157: =Q157-SUM(M157:O157) -> 8803 | Q157: -16118 | R157: -27805 | S157: -5069 | T157: -1091 | U157: 11769 | V157: =SUM(R157:U157) -> -22196 | W157: -45535 | X157: -44355 | Y157: -31762 | Z157: 3145 | AA157: =SUM(W157:Z157) -> -118507 | AB157: -18793 | AC157: -37467 | AD157: 5861 | AE157: 80119 | AF157: =SUM(AB157:AE157) -> 29720 | AG157: -23085 | AH157: -36911 | AI157: 9564 | AJ157: -8318 | AK157: -58750 | AL157: -20765 | AM157: -44079 | AN157: 7048 | AO157: -74158 | AP157: -131954 | AQ157: -25464 | AR157: -42493 | AS157: -23341 | AT157: -42155 | AU157: -133453 | AV157: 3583 | AW157: -19093 | AX157: 14290 | AY157: -1629 | AZ157: -2849 | BA157: -363 | BB157: -21961 | BC157: 18923 | BD157: 39280 | BE157: 35879 | BF157: -7194 | BG157: -5619 | BH157: 30046 | BI157: 28779 | BJ157: 46012 | BK157: -12136 | BL157: -1848 | BM157: -8293 | BN157: 26356 | BO157: 4079 | BP157: 28183 | BQ157: 34854
B158: Ajustes para reconciliar o lucro antes do imposto de renda e da contribuição social com o caixa líquido aplicados nas atividades operacionais | C158: =SUM(C159:C185) -> 34487 | D158: 33077 | E158: 34100 | F158: =SUM(F159:F185) -> 32519 | G158: =SUM(G159:G185) -> 134183 | H158: 42731 | I158: 39482 | J158: =SUM(J159:J185) -> 43550 | K158: =SUM(K159:K185) -> 36321 | L158: =SUM(L159:L185) -> 162084 | M158: =SUM(M159:M183) -> 43107 | N158: =SUM(N159:N184) -> 35442 | O158: =SUM(O159:O184) -> 39590 | P158: =SUM(P159:P184) -> 39643 | Q158: =SUM(Q159:Q184) -> 157782 | R158: =SUM(R159:R183) -> 27985 | S158: =SUM(S159:S183) -> 25101 | T158: 28628 | U158: =SUM(U159:U183) -> 35670 | V158: 117384 | W158: =SUM(W159:W183) -> 45562 | X158: 30167 | Y158: 33052 | Z158: 27507 | AA158: 136288 | AB158: 49526 | AC158: =SUM(AC159:AC183) -> 42786 | AD158: 42692 | AE158: 67375 | AF158: 202379 | AG158: 31791 | AH158: 32899 | AI158: 15085 | AJ158: 26114 | AK158: 105889 | AL158: 41015 | AM158: 37785 | AN158: 29239 | AO158: 90969 | AP158: 199008 | AQ158: 41350 | AR158: 35068 | AS158: 47038 | AT158: 23812 | AU158: 147267 | AV158: 35004 | AW158: 27463 | AX158: 25409 | AY158: 35616 | AZ158: 123264 | BA158: 30610 | BB158: 22229 | BC158: 27357 | BD158: 31445 | BE158: 111641 | BF158: 18760 | BG158: 13308 | BH158: 14239 | BI158: 21434 | BJ158: 67741 | BK158: 9723 | BL158: 15370 | BM158: 21459 | BN158: 20438 | BO158: 66990 | BP158: 11359 | BQ158: =SUM(BQ159:BQ183) -> 5207
B159: Depreciações e amortizações | C159: 20381 | D159: 20048 | E159: 20004 | F159: =G159-SUM(C159:E159) -> 19422 | G159: 79855 | H159: 20548 | I159: 20248 | J159: 20119 | K159: =L159-SUM(H159:J159) -> 21635 | L159: 82550 | M159: 22003 | N159: 21354 | O159: 21093 | P159: =Q159-SUM(M159:O159) -> 21050 | Q159: 85500 | R159: 22847 | S159: 20418 | T159: 21612 | U159: 23624 | V159: =SUM(R159:U159) -> 88501 | W159: 25592 | X159: 24976 | Y159: 24564 | Z159: 25181 | AA159: =SUM(W159:Z159) -> 100313 | AB159: 25820 | AC159: 25380 | AD159: 24700 | AE159: 31805 | AF159: =SUM(AB159:AE159) -> 107705 | AG159: 13637 | AH159: 13294 | AI159: 13389 | AJ159: 13467 | AK159: 53787 | AL159: 13982 | AM159: 14203 | AN159: 14079 | AO159: 13661 | AP159: 55925 | AQ159: 13430 | AR159: 13705 | AS159: 13699 | AT159: 13418 | AU159: 54252 | AV159: 11928 | AW159: 12281 | AX159: 12846 | AY159: 12296 | AZ159: 49351 | BA159: 9371 | BB159: 10085 | BC159: 10726 | BD159: 11183 | BE159: 41365 | BF159: 5535 | BG159: 9080 | BH159: 8477 | BI159: 9224 | BJ159: 32316 | BK159: 3178 | BL159: 3820 | BM159: 4185 | BN159: 6085 | BO159: 17268 | BP159: 5888 | BQ159: 3218
B160: Provisão para créditos de liquidação duvidosa | C160: -234 | D160: 1656 | E160: 614 | F160: =G160-SUM(C160:E160) -> 125 | G160: 2161 | H160: 413 | I160: 130 | J160: 205 | K160: 115 | L160: 863 | M160: 442 | N160: -199 | O160: -543 | P160: 1246 | Q160: 946 | R160: -1125 | S160: 902 | T160: 57 | U160: -363 | V160: -529 | W160: 1055 | X160: 1215 | Y160: 1744 | Z160: 4383 | AA160: =SUM(W160:Z160) -> 8397 | AB160: 1667 | AC160: -1086 | AD160: 875 | AE160: 659 | AF160: =SUM(AB160:AE160) -> 2115 | AG160: 2704 | AH160: 696 | AI160: 6315 | AJ160: -267 | AK160: 9448 | AL160: 1001 | AM160: 1032 | AN160: 893 | AO160: 19491 | AP160: 22417 | AQ160: 1150 | AR160: 1410 | AS160: 902 | AT160: -4878 | AU160: -1416 | AV160: 1547 | AW160: -5392 | AX160: 235 | AY160: 2006 | AZ160: -1604 | BA160: 1941 | BB160: 1360 | BC160: 1505 | BD160: 2879 | BE160: 7685 | BF160: 1769 | BG160: -603 | BH160: 1257 | BI160: 2246 | BJ160: 4669 | BK160: -3366 | BL160: -1490 | BM160: 2131 | BN160: -5539 | BO160: -8264 | BP160: 5503 | BQ160: 3401
B161: Provisão para devolução de venda | C161: 131 | D161: -32 | E161: -18 | F161: =G161-SUM(C161:E161) -> -9 | G161: 72 | H161: -506 | I161: 67 | J161: -141 | K161: -146 | L161: -726 | M161: 101 | N161: -118 | O161: 115 | P161: 482 | Q161: 580 | R161: -266 | S161: 295 | T161: -41 | U161: -271 | V161: -283 | W161: 596 | X161: -560 | Y161: 122 | Z161: 158 | AA161: 316 | AB161: 13 | AC161: 69 | AD161: -5 | AE161: -27 | AF161: 50 | AG161: -144 | AH161: -31 | AI161: -46 | AJ161: -38 | AK161: -259 | AL161: 69 | AM161: 1505 | AN161: -1483 | AO161: 231 | AP161: 322 | AQ161: 342 | AR161: 244 | AS161: -234 | AT161: -375 | AU161: -23 | AV161: 121 | AW161: 108 | AX161: 0 | AY161: 0 | AZ161: 0 | BA161: 517 | BB161: -517 | BC161: 0 | BD161: 124 | BE161: 124 | BF161: 0 | BG161: 0 | BH161: 0 | BI161: 979 | BJ161: 979 | BK161: 0 | BL161: 0 | BM161: 0 | BN161: 5315 | BO161: 5315 | BP161: 0 | BQ161: 0
B162: Resultado de equivalência patrimonial | C162: 432 | D162: 385 | E162: 389 | F162: =G162-SUM(C162:E162) -> -717 | G162: 489 | H162: -4444 | I162: -6381 | J162: 11885 | K162: -307 | L162: 753 | M162: -2523 | N162: -5637 | O162: -5800 | P162: -5691 | Q162: -19651 | R162: 928 | S162: -3922 | T162: -3094 | U162: -3726 | V162: -9814 | W162: -164 | X162: 1954 | Y162: 617 | Z162: -3456 | AA162: -1049 | AB162: 680 | AC162: 561 | AD162: -685 | AE162: -3157 | AF162: -2601 | AG162: 479 | AH162: 1100 | AI162: 368 | AJ162: 414 | AK162: 2361 | AL162: 900 | AM162: 1825 | AN162: -434 | AO162: 1917 | AP162: 4208 | AQ162: 1198 | AR162: 1573 | AS162: 686 | AT162: 2582 | AU162: 6039 | AV162: 1066 | AW162: 74 | AX162: -2140 | AY162: 899 | AZ162: -101 | BA162: 1070 | BB162: 65 | BC162: -715 | BD162: -631 | BE162: -211 | BF162: 662 | BG162: -653 | BH162: -941 | BI162: -159 | BJ162: -1091 | BK162: 0 | BL162: 0 | BM162: 0 | BN162: 153 | BO162: 153 | BP162: 7474 | BQ162: 375
B163: Plano de opção de ações | C163: 0 | D163: 0 | E163: 0 | F163: =G163-SUM(C163:E163) -> 0 | G163: 0 | H163: 0 | I163: 0 | J163: 0 | K163: 0 | L163: 0 | M163: 0 | N163: 0 | O163: 0 | P163: 0 | Q163: 0 | R163: 0 | S163: 0 | T163: 0 | U163: 0 | V163: 0 | W163: 0 | X163: 0 | Y163: 0 | Z163: 0 | AA163: 0 | AB163: 0 | AC163: 0 | AD163: 0 | AE163: 0 | AF163: 0 | AG163: 0 | AH163: 0 | AI163: 0 | AJ163: 0 | AK163: 0 | AL163: 0 | AM163: 0 | AN163: 0 | AO163: 0 | AP163: 0 | AQ163: 9 | AR163: 1 | AS163: 0 | AT163: 0 | AU163: 10 | AV163: 130 | AW163: 43 | AX163: 16 | AY163: -1079 | AZ163: -890 | BA163: 614 | BB163: 327 | BC163: 164 | BD163: 157 | BE163: 1262 | BF163: 1518 | BG163: 937 | BH163: 648 | BI163: 627 | BJ163: 3730 | BK163: 3784 | BL163: 2380 | BM163: 1717 | BN163: 1717 | BO163: 9598 | BP163: 10196 | BQ163: 0
B164: Ganho na venda de imobilizado | C164: 0 | D164: 0 | E164: 0 | F164: =G164-SUM(C164:E164) -> 0 | G164: 0 | H164: 0 | I164: 0 | J164: 0 | K164: 0 | L164: 0 | M164: 0 | N164: 0 | O164: 0 | P164: 0 | Q164: 0 | R164: 0 | S164: 0 | T164: 0 | U164: 0 | V164: 0 | W164: 0 | X164: 0 | Y164: 0 | Z164: 0 | AA164: 0 | AB164: 0 | AC164: 0 | AD164: 0 | AE164: 0 | AF164: 0 | AG164: 0 | AH164: 0 | AI164: 0 | AJ164: 0 | AK164: 0 | AL164: 0 | AM164: 0 | AN164: 0 | AO164: 0 | AP164: 0 | AQ164: 0 | AR164: -3697 | AS164: 0 | AT164: 0 | AU164: -3697 | AV164: 0 | AW164: 0 | AX164: 0 | AY164: 198 | AZ164: 198 | BA164: 0 | BB164: 0 | BC164: 0 | BD164: 0 | BE164: 0 | BF164: 0 | BG164: 0 | BH164: -8917 | BI164: 6 | BJ164: -8911 | BK164: 0 | BL164: 0 | BM164: 0 | BN164: 0 | BO164: 0 | BP164: 0 | BQ164: -179
B165: Baixa de intangível e imobilizado | C165: 308 | D165: 54 | E165: 620 | F165: =G165-SUM(C165:E165) -> 233 | G165: 1215 | H165: 151 | I165: 301 | J165: 67 | K165: 0 | L165: 519 | M165: 204 | N165: 434 | O165: 116 | P165: -4 | Q165: 750 | R165: 2325 | S165: 1735 | T165: 178 | U165: 349 | V165: 4587 | W165: 2474 | X165: 3561 | Y165: -25 | Z165: 2753 | AA165: 8763 | AB165: 1510 | AC165: 2019 | AD165: 103 | AE165: 2378 | AF165: 6010 | AG165: 22 | AH165: 2360 | AI165: 155 | AJ165: 99 | AK165: 2636 | AL165: 1454 | AM165: 2077 | AN165: -2153 | AO165: 16608 | AP165: 17986 | AQ165: 1234 | AR165: 2700 | AS165: 2999 | AT165: 1523 | AU165: 8456 | AV165: 486 | AW165: 649 | AX165: 680 | AY165: -1815 | AZ165: 0 | BA165: 12 | BB165: 1064 | BC165: 1005 | BD165: 1 | BE165: 2082 | BF165: 28 | BG165: 815 | BH165: -50 | BI165: 6814 | BJ165: 7607 | BK165: 498 | BL165: 781 | BM165: 4908 | BN165: 426 | BO165: 6613 | BP165: 1668 | BQ165: 363
B166: Baixa por redução do valor recuperável | C166: 0 | D166: 0 | E166: 0 | F166: =G166-SUM(C166:E166) -> 0 | G166: 0 | H166: 0 | I166: 0 | J166: 0 | K166: 0 | L166: 0 | M166: 0 | N166: 0 | O166: 0 | P166: 0 | Q166: 0 | R166: 0 | S166: 0 | T166: 0 | U166: 0 | V166: 0 | W166: 0 | X166: 0 | Y166: 0 | Z166: 0 | AA166: 0 | AB166: 0 | AC166: 0 | AD166: 0 | AE166: 25033 | AF166: 25033 | AG166: 0 | AH166: 0 | AI166: 0 | AJ166: 0 | AK166: 0 | AL166: 0 | AM166: 0 | AN166: 0 | AO166: 0 | AP166: 0 | AQ166: 0 | AR166: 0 | AS166: 0 | AT166: 0 | AU166: 0 | AV166: 0 | AW166: 0 | AX166: 0 | AY166: 0 | AZ166: 0 | BA166: 0 | BB166: 0 | BC166: 0 | BD166: 0 | BE166: 0 | BF166: 0 | BG166: 0 | BH166: 0 | BI166: 0 | BJ166: 0 | BK166: 0 | BL166: 0 | BM166: 0 | BN166: 0 | BO166: 0 | BP166: 0 | BQ166: 0
B167: Constituição (reversão) de provisão para riscos tributários, cíveis e trabalhistas | C167: 89 | D167: 352 | E167: -1049 | F167: =G167-SUM(C167:E167) -> -1279 | G167: -1887 | H167: 2095 | I167: 409 | J167: 390 | K167: 1162 | L167: 4056 | M167: 1248 | N167: -460 | O167: -57 | P167: -783 | Q167: -52 | R167: -17 | S167: 535 | T167: 54 | U167: 767 | V167: 1339 | W167: 804 | X167: 78 | Y167: -9 | Z167: -1752 | AA167: -879 | AB167: 847 | AC167: 1562 | AD167: -329 | AE167: -382 | AF167: 1698 | AG167: 302 | AH167: 59 | AI167: 356 | AJ167: 36 | AK167: 753 | AL167: -136 | AM167: 533 | AN167: 10 | AO167: -141 | AP167: 266 | AQ167: -1524 | AR167: -1880 | AS167: -2056 | AT167: -1835 | AU167: -7295 | AV167: 91 | AW167: 110 | AX167: -11765 | AY167: 14648 | AZ167: 3084 | BA167: 479 | BB167: -2549 | BC167: -1675 | BD167: -1234 | BE167: -4979 | BF167: 231 | BG167: -1143 | BH167: 346 | BI167: -9847 | BJ167: -10413 | BK167: -3120 | BL167: 376 | BM167: 1849 | BN167: 261 | BO167: -634 | BP167: 1606 | BQ167: 665
B168: Juros provisionados sobre empréstimos e financiamentos | C168: 16016 | D168: 15637 | E168: 16434 | F168: =G168-SUM(C168:E168) -> 16967 | G168: 65054 | H168: 19776 | I168: 19682 | J168: 19797 | K168: 17591 | L168: 76846 | M168: 17980 | N168: 16218 | O168: 19869 | P168: 19692 | Q168: 73759 | R168: 4645 | S168: 6112 | T168: 8841 | U168: 12029 | V168: 31627 | W168: 9252 | X168: 2783 | Y168: 4555 | Z168: 4759 | AA168: 21349 | AB168: 10106 | AC168: 8788 | AD168: 10592 | AE168: 7472 | AF168: 36958 | AG168: 14398 | AH168: 15244 | AI168: 3811 | AJ168: 12197 | AK168: 45650 | AL168: 23304 | AM168: 18498 | AN168: 18028 | AO168: 15167 | AP168: 74997 | AQ168: 25493 | AR168: 21376 | AS168: 32354 | AT168: 12177 | AU168: 91399 | AV168: 19215 | AW168: 18905 | AX168: 26778 | AY168: -80060 | AZ168: -15162 | BA168: 16221 | BB168: 12158 | BC168: 16729 | BD168: 19421 | BE168: 64529 | BF168: 7877 | BG168: 8721 | BH168: 12101 | BI168: 12030 | BJ168: 40729 | BK168: 8938 | BL168: 6368 | BM168: 7695 | BN168: 17458 | BO168: 40459 | BP168: 835 | BQ168: 490
B169: Juros provisionados sobre contas a pagar | C169: 32 | D169: 33 | E169: 34 | F169: =G169-SUM(C169:E169) -> 36 | G169: 135 | H169: 35 | I169: 35 | J169: 38 | K169: 33 | L169: 141 | M169: 24 | N169: 28 | O169: 34 | P169: 34 | Q169: 120 | R169: 9 | S169: 27 | T169: -13 | U169: 18 | V169: 41 | W169: 4 | X169: 10 | Y169: 4 | Z169: 5 | AA169: 23 | AB169: 26 | AC169: 13 | AD169: 14 | AE169: 11 | AF169: 64 | AG169: 13 | AH169: 12 | AI169: 14 | AJ169: 0 | AK169: 39 | AL169: 22 | AM169: 19 | AN169: 17 | AO169: 14 | AP169: 72 | AQ169: 521 | AR169: 548 | AS169: 490 | AT169: 187 | AU169: 1746 | AV169: 662 | AW169: 1307 | AX169: -369 | AY169: 86012 | AZ169: 87612 | BA169: 690 | BB169: 683 | BC169: 537 | BD169: 768 | BE169: 2678 | BF169: 920 | BG169: 285 | BH169: 574 | BI169: 627 | BJ169: 2406 | BK169: 571 | BL169: 2298 | BM169: 3501 | BN169: 381 | BO169: 6751 | BP169: 5139 | BQ169: 0
B170: Receita financeira sobre mútuo com partes relacionadas | C170: 0 | D170: 0 | E170: 0 | F170: =G170-SUM(C170:E170) -> 0 | G170: 0 | H170: 0 | I170: 0 | J170: 0 | K170: 0 | L170: 0 | M170: 0 | N170: 0 | O170: 0 | P170: 0 | Q170: 0 | R170: 0 | S170: 0 | T170: 0 | U170: 0 | V170: 0 | W170: 0 | X170: 0 | Y170: 0 | Z170: 0 | AA170: 0 | AB170: 0 | AC170: 0 | AD170: 0 | AE170: 0 | AF170: 0 | AG170: 0 | AH170: 0 | AI170: 0 | AJ170: 0 | AK170: 0 | AL170: 0 | AM170: 0 | AN170: 0 | AO170: 0 | AP170: 0 | AQ170: -1307 | AR170: -1393 | AS170: -1487 | AT170: -1461 | AU170: -5648 | AV170: -982 | AW170: -1087 | AX170: -1405 | AY170: -1308 | AZ170: -4781 | BA170: -677 | BB170: -727 | BC170: -820 | BD170: -1103 | BE170: -3327 | BF170: -258 | BG170: -289 | BH170: -274 | BI170: -846 | BJ170: -1667 | BK170: -301 | BL170: -257 | BM170: -309 | BN170: -1206 | BO170: -2073 | BP170: -8651 | BQ170: -3767
B171: Juros sobre parcelamento de impostos | C171: 1216 | D171: 1056 | E171: 873 | F171: =G171-SUM(C171:E171) -> 1958 | G171: 5103 | H171: 2073 | I171: 2164 | J171: 1708 | K171: 6940 | L171: 12885 | M171: 2933 | N171: 3533 | O171: 2800 | P171: 2309 | Q171: 11575 | R171: 1603 | S171: 1863 | T171: 2098 | U171: 2380 | V171: 7944 | W171: 2613 | X171: 2550 | Y171: 2229 | Z171: 1994 | AA171: 9386 | AB171: 4163 | AC171: 3039 | AD171: 2982 | AE171: 2434 | AF171: 12618 | AG171: 380 | AH171: 165 | AI171: 345 | AJ171: 334 | AK171: 1224 | AL171: 419 | AM171: 345 | AN171: 282 | AO171: 201 | AP171: 1247 | AQ171: 804 | AR171: 481 | AS171: 675 | AT171: 247 | AU171: 2207 | AV171: 740 | AW171: 465 | AX171: 533 | AY171: 200 | AZ171: 1938 | BA171: 372 | BB171: 343 | BC171: 58 | BD171: -120 | BE171: 653 | BF171: 478 | BG171: 321 | BH171: 1018 | BI171: 216 | BJ171: 2033 | BK171: 922 | BL171: 504 | BM171: 371 | BN171: 376 | BO171: 2173 | BP171: 530 | BQ171: 363
B172: Juros sobre Arrendamento mercantil | C172: 2969 | D172: 3104 | E172: 3176 | F172: =G172-SUM(C172:E172) -> 3443 | G172: 12692 | H172: 3206 | I172: 3009 | J172: 2958 | K172: 3262 | L172: 12435 | M172: 2687 | N172: 2754 | O172: 3016 | P172: 3059 | Q172: 11516 | R172: 2479 | S172: 2428 | T172: 2553 | U172: 2909 | V172: 10369 | W172: 3441 | X172: 3344 | Y172: 3046 | Z172: 3216 | AA172: 13047 | AB172: 4694 | AC172: 3867 | AD172: 4092 | AE172: 2521 | AF172: 15174 | AG172: 0 | AH172: 0 | AI172: 0 | AJ172: 0 | AK172: 0 | AL172: 0 | AM172: 0 | AN172: 0 | AO172: 0 | AP172: 0 | AQ172: 0 | AR172: 0 | AS172: 0 | AT172: 0 | AU172: 0 | AV172: 0 | AW172: 0 | AX172: 0 | AY172: 0 | AZ172: 0 | BA172: 0 | BB172: 0 | BC172: 0 | BD172: 0 | BE172: 0 | BF172: 0 | BG172: 0 | BH172: 0 | BI172: 0 | BJ172: 0 | BK172: 0 | BL172: 0 | BM172: 0 | BN172: 0 | BO172: 0 | BP172: 0 | BQ172: 0
B173: Baixa Arrendamento mercantil | C173: 83 | D173: 0 | E173: -186 | F173: =G173-SUM(C173:E173) -> -113 | G173: -216 | H173: 0 | I173: -163 | J173: -77 | K173: 1 | L173: -239 | M173: -290 | N173: -209 | O173: -214 | P173: 0 | Q173: -713 | R173: -255 | S173: -251 | T173: 29 | U173: -149 | V173: -626 | W173: -105 | X173: -141 | Y173: -82 | Z173: -2185 | AA173: -2513 | AB173: 0 | AC173: -1426 | AD173: 353 | AE173: -1345 | AF173: -2418 | AG173: 0 | AH173: 0 | AI173: 0 | AJ173: 0 | AK173: 0 | AL173: 0 | AM173: 0 | AN173: 0 | AO173: 0 | AP173: 0 | AQ173: 0 | AR173: 0 | AS173: 0 | AT173: 0 | AU173: 0 | AV173: 0 | AW173: 0 | AX173: 0 | AY173: 0 | AZ173: 0 | BA173: 0 | BB173: 0 | BC173: 0 | BD173: 0 | BE173: 0 | BF173: 0 | BG173: 0 | BH173: 0 | BI173: 0 | BJ173: 0 | BK173: 0 | BL173: 0 | BM173: 0 | BN173: 0 | BO173: 0 | BP173: 0 | BQ173: 0
B174: Baixa de parcelamento de tributos - consolidação dos débitos pela Receita Federal | C174: 0 | D174: 0 | E174: 0 | F174: =G174-SUM(C174:E174) -> 0 | G174: 0 | H174: 0 | I174: 0 | J174: 0 | K174: 0 | L174: 0 | M174: 0 | N174: 0 | O174: 0 | P174: 0 | Q174: 0 | R174: 0 | S174: 0 | T174: 0 | U174: 0 | V174: 0 | W174: 0 | X174: 0 | Y174: 0 | Z174: 0 | AA174: 0 | AB174: 0 | AC174: 0 | AD174: 0 | AE174: 0 | AF174: 0 | AG174: 0 | AH174: 0 | AI174: 0 | AJ174: 0 | AK174: 0 | AL174: 0 | AM174: 0 | AN174: 0 | AO174: 0 | AP174: 0 | AQ174: 0 | AR174: 0 | AS174: -990 | AT174: -25 | AU174: -1015 | AV174: 0 | AW174: 0 | AX174: 0 | AY174: 0 | AZ174: 0 | BA174: 0 | BB174: 0 | BC174: 0 | BD174: 0 | BE174: 0 | BF174: 0 | BG174: 0 | BH174: 0 | BI174: 0 | BJ174: 0 | BK174: 0 | BL174: 0 | BM174: 0 | BN174: 0 | BO174: 0 | BP174: 0 | BQ174: 0
B175: Provisão para perda nos estoques | C175: -487 | D175: 0 | E175: 0 | F175: =G175-SUM(C175:E175) -> 892 | G175: 405 | H175: -616 | I175: -19 | J175: 0 | K175: 487 | L175: -148 | M175: -421 | N175: -92 | O175: 0 | P175: 635 | Q175: 122 | R175: -240 | S175: -536 | T175: -190 | U175: 513 | V175: -453 | W175: 0 | X175: 0 | Y175: 0 | Z175: 967 | AA175: 967 | AB175: 0 | AC175: 0 | AD175: 0 | AE175: -27 | AF175: -27 | AG175: 0 | AH175: 0 | AI175: -9622 | AJ175: -128 | AK175: -9750 | AL175: 0 | AM175: 0 | AN175: 0 | AO175: 0 | AP175: 0 | AQ175: 0 | AR175: 0 | AS175: 0 | AT175: 0 | AU175: 0 | AV175: 0 | AW175: 0 | AX175: 0 | AY175: 0 | AZ175: 0 | BA175: 0 | BB175: -63 | BC175: -157 | BD175: 0 | BE175: -220 | BF175: 0 | BG175: -4163 | BH175: 0 | BI175: -483 | BJ175: -4646 | BK175: -578 | BL175: 1152 | BM175: -4068 | BN175: -981 | BO175: -4475 | BP175: 2133 | BQ175: 726
B176: Receita financeira sobre títulos e valores mobiliários | C176: 0 | D176: 0 | E176: 0 | F176: =G176-SUM(C176:E176) -> 0 | G176: 0 | H176: 0 | I176: 0 | J176: 0 | K176: 0 | L176: 0 | M176: 0 | N176: 0 | O176: 0 | P176: 0 | Q176: 0 | R176: 0 | S176: 0 | T176: 0 | U176: 0 | V176: 0 | W176: 0 | X176: 0 | Y176: 0 | Z176: 0 | AA176: 0 | AB176: 0 | AC176: 0 | AD176: 0 | AE176: 0 | AF176: 0 | AG176: 0 | AH176: 0 | AI176: 0 | AJ176: 0 | AK176: 0 | AL176: 0 | AM176: 0 | AN176: 0 | AO176: 0 | AP176: 0 | AQ176: 0 | AR176: 0 | AS176: 0 | AT176: 0 | AU176: 0 | AV176: 0 | AW176: 0 | AX176: 0 | AY176: 3619 | AZ176: 3619 | BA176: 0 | BB176: 0 | BC176: 0 | BD176: 0 | BE176: 0 | BF176: 0 | BG176: 0 | BH176: 0 | BI176: 0 | BJ176: 0 | BK176: -803 | BL176: -562 | BM176: -521 | BN176: -47 | BO176: -1933 | BP176: -9470 | BQ176: -3005
B177: Ganho na remensuração de participação | C177: 0 | D177: 0 | E177: 0 | F177: =G177-SUM(C177:E177) -> 0 | G177: 0 | H177: 0 | I177: 0 | J177: 0 | K177: 0 | L177: 0 | M177: 0 | N177: 0 | O177: 0 | P177: 0 | Q177: 0 | R177: 0 | S177: 0 | T177: 0 | U177: 0 | V177: 0 | W177: 0 | X177: 0 | Y177: 0 | Z177: 0 | AA177: 0 | AB177: 0 | AC177: 0 | AD177: 0 | AE177: 0 | AF177: 0 | AG177: 0 | AH177: 0 | AI177: 0 | AJ177: 0 | AK177: 0 | AL177: 0 | AM177: 0 | AN177: 0 | AO177: 0 | AP177: 0 | AQ177: 0 | AR177: 0 | AS177: 0 | AT177: 0 | AU177: 0 | AV177: 0 | AW177: 0 | AX177: 0 | AY177: 0 | AZ177: 0 | BA177: 0 | BB177: 0 | BC177: 0 | BD177: 0 | BE177: 0 | BF177: 0 | BG177: 0 | BH177: 0 | BI177: 0 | BJ177: 0 | BK177: 0 | BL177: 0 | BM177: 0 | BN177: 0 | BO177: 0 | BP177: -13161 | BQ177: 0
B178: Outras provisões | C178: 0 | D178: 0 | E178: 0 | F178: =G178-SUM(C178:E178) -> 0 | G178: 0 | H178: 0 | I178: 0 | J178: 0 | K178: 0 | L178: 0 | M178: 0 | N178: 0 | O178: 0 | P178: 0 | Q178: 0 | R178: 0 | S178: 0 | T178: 0 | U178: 0 | V178: 0 | W178: 0 | X178: 0 | Y178: 0 | Z178: 0 | AA178: 0 | AB178: 0 | AC178: 0 | AD178: 0 | AE178: 0 | AF178: 0 | AG178: 0 | AH178: 0 | AI178: 0 | AJ178: 0 | AK178: 0 | AL178: 0 | AM178: 0 | AN178: 0 | AO178: 0 | AP178: 0 | AQ178: 0 | AR178: 0 | AS178: 0 | AT178: 0 | AU178: 0 | AV178: 0 | AW178: 0 | AX178: 0 | AY178: 0 | AZ178: 0 | BA178: 0 | BB178: 0 | BC178: 0 | BD178: 0 | BE178: 0 | BF178: 0 | BG178: 0 | BH178: 0 | BI178: 0 | BJ178: 0 | BK178: 0 | BL178: 0 | BM178: 0 | BN178: 0 | BO178: 0 | BP178: 666 | BQ178: 1486
B179: Efeito de segmento descontinuado (constituição cancelamento) | C179: 0 | D179: 0 | E179: 0 | F179: =G179-SUM(C179:E179) -> 0 | G179: 0 | H179: 0 | I179: 0 | J179: 0 | K179: 0 | L179: 0 | M179: 0 | N179: 0 | O179: 0 | P179: 0 | Q179: 0 | R179: 0 | S179: 0 | T179: 0 | U179: 0 | V179: 0 | W179: 0 | X179: 0 | Y179: 0 | Z179: 0 | AA179: 0 | AB179: 0 | AC179: 0 | AD179: 0 | AE179: 0 | AF179: 0 | AG179: 0 | AH179: 0 | AI179: 0 | AJ179: 0 | AK179: 0 | AL179: 0 | AM179: 0 | AN179: 0 | AO179: 0 | AP179: 0 | AQ179: 0 | AR179: 0 | AS179: 0 | AT179: 0 | AU179: 0 | AV179: 0 | AW179: 0 | AX179: 0 | AY179: 0 | AZ179: 0 | BA179: 0 | BB179: 0 | BC179: 0 | BD179: 0 | BE179: 0 | BF179: 0 | BG179: 0 | BH179: 0 | BI179: 0 | BJ179: 0 | BK179: 0 | BL179: 0 | BM179: 0 | BN179: -3961 | BO179: -3961 | BP179: 0 | BQ179: 0
B180: Desconto arrendamento mercantil | C180: 0 | D180: 0 | E180: 0 | F180: =G180-SUM(C180:E180) -> 0 | G180: 0 | H180: 0 | I180: 0 | J180: 0 | K180: 0 | L180: 0 | M180: -1281 | N180: -1021 | O180: -839 | P180: -774 | Q180: -3915 | R180: -4948 | S180: -4505 | T180: -3456 | U180: -2410 | V180: -15319 | W180: 0 | X180: -9603 | Y180: -3713 | Z180: -8516 | AA180: -21832 | AB180: 0 | AC180: 0 | AD180: 0 | AE180: 0 | AF180: 0 | AG180: 0 | AH180: 0 | AI180: 0 | AJ180: 0 | AK180: 0 | AL180: 0 | AM180: 0 | AN180: 0 | AO180: 0 | AP180: 0 | AQ180: 0 | AR180: 0 | AS180: 0 | AT180: 0 | AU180: 0 | AV180: 0 | AW180: 0 | AX180: 0 | AY180: 0 | AZ180: 0 | BA180: 0 | BB180: 0 | BC180: 0 | BD180: 0 | BE180: 0 | BF180: 0 | BG180: 0 | BH180: 0 | BI180: 0 | BJ180: 0 | BK180: 0 | BL180: 0 | BM180: 0 | BN180: 0 | BO180: 0 | BP180: 0 | BQ180: 0
B181: Provisão para perdas em investimento em coligada | C181: 0 | D181: 0 | E181: 0 | F181: =G181-SUM(C181:E181) -> 0 | G181: 0 | H181: 0 | I181: 0 | J181: 0 | K181: 0 | L181: 0 | M181: 0 | N181: 0 | O181: 0 | P181: 0 | Q181: 0 | R181: 0 | S181: 0 | T181: 0 | U181: 0 | V181: 0 | W181: 0 | X181: 0 | Y181: 0 | Z181: 0 | AA181: 0 | AB181: 0 | AC181: 0 | AD181: 0 | AE181: 0 | AF181: 0 | AG181: 0 | AH181: 0 | AI181: 0 | AJ181: 0 | AK181: 0 | AL181: 0 | AM181: 0 | AN181: 0 | AO181: 0 | AP181: 0 | AQ181: 0 | AR181: 0 | AS181: 0 | AT181: 0 | AU181: 0 | AV181: 0 | AW181: 0 | AX181: 0 | AY181: 0 | AZ181: 0 | BA181: 0 | BB181: 0 | BC181: 0 | BD181: 0 | BE181: 0 | BF181: 0 | BG181: 0 | BH181: 0 | BI181: 0 | BJ181: 0 | BK181: 0 | BL181: 0 | BM181: 0 | BN181: 0 | BO181: 0 | BP181: 0 | BQ181: 1071
B182: Provisão para perda nos estoques | C182: 0 | D182: 0 | E182: 0 | F182: =G182-SUM(C182:E182) -> 0 | G182: 0 | H182: 0 | I182: 0 | J182: 0 | K182: 0 | L182: 0 | M182: 0 | N182: 0 | O182: 0 | P182: 0 | Q182: 0 | R182: 0 | S182: 0 | T182: 0 | U182: 0 | V182: 0 | W182: 0 | X182: 0 | Y182: 0 | Z182: 0 | AA182: 0 | AB182: 0 | AC182: 0 | AD182: 0 | AE182: 0 | AF182: 0 | AG182: 0 | AH182: 0 | AI182: 0 | AJ182: 0 | AK182: 0 | AL182: 0 | AM182: -2252 | AN182: 0 | AO182: 9754 | AP182: 7502 | AQ182: 0 | AR182: 0 | AS182: 0 | AT182: 2252 | AU182: 2252 | AV182: 0 | AW182: 0 | AX182: 0 | AY182: 0 | AZ182: 0 | BA182: 0 | BB182: 0 | BC182: 0 | BD182: 0 | BE182: 0 | BF182: 0 | BG182: 0 | BH182: 0 | BI182: 0 | BJ182: 0 | BK182: 0 | BL182: 0 | BM182: 0 | BN182: 0 | BO182: 0 | BP182: 0 | BQ182: 0
B183: Provisão para perda no imobilizado/intangível "impairment" | C183: 0 | D183: 0 | E183: 0 | F183: =G183-SUM(C183:E183) -> 0 | G183: 0 | H183: 0 | I183: 0 | J183: 0 | K183: 0 | L183: 0 | M183: 0 | N183: 0 | O183: 0 | P183: 0 | Q183: 0 | R183: 0 | S183: 0 | T183: 0 | U183: 0 | V183: 0 | W183: 0 | X183: 0 | Y183: 0 | Z183: 0 | AA183: 0 | AB183: 0 | AC183: 0 | AD183: 0 | AE183: 0 | AF183: 0 | AG183: 0 | AH183: 0 | AI183: 0 | AJ183: 0 | AK183: 0 | AL183: 0 | AM183: 0 | AN183: 0 | AO183: 14066 | AP183: 14066 | AQ183: 0 | AR183: 0 | AS183: 0 | AT183: 0 | AU183: 0 | AV183: 0 | AW183: 0 | AX183: 0 | AY183: 0 | AZ183: 0 | BA183: 0 | BB183: 0 | BC183: 0 | BD183: 0 | BE183: 0 | BF183: 0 | BG183: 0 | BH183: 0 | BI183: 0 | BJ183: 0 | BK183: 0 | BL183: 0 | BM183: 0 | BN183: 0 | BO183: 0 | BP183: 1003 | BQ183: 0
B184: Baixa de Parcelamento de Tributos - consolidação dos débitos pela Receita Federal | C184: -2496 | D184: -57 | E184: -102 | F184: =G184-SUM(C184:E184) -> 0 | G184: -2655 | H184: 0 | I184: 0 | J184: 0 | K184: 0 | L184: 0 | M184: 0 | N184: -1143 | O184: 0 | P184: -1612 | Q184: -2755
B185: Lucro proveniente de operações descontinuadas | C185: -3953 | D185: -9159 | E185: -6689 | F185: =G185-SUM(C185:E185) -> -8439 | G185: -28240 | H185: 0 | I185: 0 | J185: -13399 | K185: -14452 | L185: -27851 | M185: 0 | N185: 0 | O185: 0 | P185: 0 | Q185: 0 | R185: 0 | S185: 0 | T185: 0 | U185: 0 | V185: 0 | W185: 0 | X185: 0 | Y185: 0 | Z185: 0 | AA185: 0 | AB185: 0 | AC185: 0 | AD185: 0 | AE185: 0 | AF185: 0 | AG185: 0 | AH185: 0 | AI185: 0 | AJ185: 0 | AK185: 0 | AL185: 0 | AM185: 0 | AN185: 0 | AO185: 0 | AP185: 0 | AQ185: 0 | AR185: 0 | AS185: 0 | AT185: 0 | AU185: 0 | AV185: 0 | AW185: 0 | AX185: 0 | AY185: 0 | AZ185: 0 | BA185: 0 | BB185: 0 | BC185: 0 | BD185: 0 | BE185: 0 | BF185: 0 | BG185: 0 | BH185: 0 | BI185: 0 | BJ185: 0 | BK185: 0 | BL185: 0 | BM185: 0 | BN185: 0 | BO185: 0 | BP185: 0 | BQ185: 0
AD186: 0 | AE186: 0 | AF186: 0
B187: Variação nos ativos e passivos operacionais | C187: =SUM(C188:C207) -> 40471 | D187: =SUM(D188:D207) -> 5815 | E187: 3433 | F187: 12466 | G187: =SUM(G188:G207) -> 62185 | H187: =SUM(H188:H207) -> 6954 | I187: =SUM(I188:I207) -> 10428 | J187: 7626 | K187: =SUM(K188:K207) -> 17655 | L187: 42663 | M187: =SUM(M188:M207) -> -9722 | N187: =SUM(N188:N207) -> -8654 | O187: -6376 | P187: -22943 | Q187: -47695 | R187: =SUM(R188:R207) -> 14486 | S187: =SUM(S188:S207) -> -6060 | T187: 7284 | U187: =SUM(U188:U207) -> -32720 | V187: -17010 | W187: =SUM(W188:W207) -> 32728 | X187: 55247 | Y187: 9633 | Z187: -18026 | AA187: 79582 | AB187: -23084 | AC187: =SUM(AC188:AC207) -> 39579 | AD187: -39827 | AE187: -91081 | AF187: -114413 | AG187: 11467 | AH187: 13773 | AI187: -54523 | AJ187: 3570 | AK187: -25713 | AL187: -31617 | AM187: 42206 | AN187: -12680 | AO187: 18244 | AP187: 16153 | AQ187: -87938 | AR187: 78387 | AS187: -18829 | AT187: 41942 | AU187: 13562 | AV187: -43961 | AW187: 13489 | AX187: 16784 | AY187: 41577 | AZ187: 28117 | BA187: -31719 | BB187: 58498 | BC187: -49099 | BD187: -12494 | BE187: -34814 | BF187: -24994 | BG187: 2974 | BH187: -31090 | BI187: 1109 | BJ187: -52001 | BK187: 8759 | BL187: -27758 | BM187: -24607 | BN187: 265 | BO187: -43341 | BP187: -56976 | BQ187: =SUM(BQ188:BQ207) -> -6155
B188: Contas a receber | C188: 35383 | D188: -10940 | E188: 6836 | F188: =G188-SUM(C188:E188) -> -12646 | G188: 18633 | H188: 38946 | I188: 12922 | J188: 1080 | K188: =L188-SUM(H188:J188) -> -23056 | L188: 29892 | M188: 16943 | N188: -9334 | O188: -3605 | P188: =Q188-SUM(M188:O188) -> -25268 | Q188: -21264 | R188: 37022 | S188: -25105 | T188: 16852 | U188: -31853 | V188: =SUM(R188:U188) -> -3084 | W188: 63542 | X188: 21198 | Y188: -11422 | Z188: -25299 | AA188: =SUM(W188:Z188) -> 48019 | AB188: -446 | AC188: 33472 | AD188: -21087 | AE188: -26982 | AF188: -15043 | AG188: 36500 | AH188: 23742 | AI188: -44983 | AJ188: -5750 | AK188: 9509 | AL188: -17094 | AM188: 44862 | AN188: -28152 | AO188: -12547 | AP188: -12931 | AQ188: -35666 | AR188: 43691 | AS188: -53812 | AT188: 30041 | AU188: -15746 | AV188: -26379 | AW188: 43623 | AX188: -42115 | AY188: 28984 | AZ188: 4342 | BA188: -31380 | BB188: 55330 | BC188: -43915 | BD188: -14155 | BE188: -34120 | BF188: 29361 | BG188: 23628 | BH188: -16303 | BI188: 2236 | BJ188: 38922 | BK188: 43586 | BL188: -22648 | BM188: -21854 | BN188: 5837 | BO188: 4921 | BP188: -68062 | BQ188: -8903
B189: Estoques | C189: 1087 | D189: 63 | E189: -5135 | F189: =G189-SUM(C189:E189) -> 2364 | G189: -1621 | H189: -9603 | I189: 2981 | J189: 6424 | K189: 16768 | L189: 16570 | M189: -583 | N189: -2676 | O189: -15042 | P189: -2063 | Q189: -20364 | R189: -509 | S189: 4109 | T189: 3396 | U189: 3361 | V189: 10357 | W189: -1068 | X189: 3483 | Y189: 6312 | Z189: 11132 | AA189: =SUM(W189:Z189) -> 19859 | AB189: -692 | AC189: -2191 | AD189: 1805 | AE189: 12615 | AF189: 11537 | AG189: -8737 | AH189: -6290 | AI189: -957 | AJ189: 10528 | AK189: -5456 | AL189: -6097 | AM189: 10136 | AN189: 9473 | AO189: 9657 | AP189: 23169 | AQ189: -20861 | AR189: 11162 | AS189: 210 | AT189: 26557 | AU189: 17068 | AV189: -22115 | AW189: -16400 | AX189: -741 | AY189: 28387 | AZ189: -10869 | BA189: 1014 | BB189: -6734 | BC189: -15465 | BD189: 19377 | BE189: -1808 | BF189: -27839 | BG189: -34463 | BH189: -10063 | BI189: 3681 | BJ189: -68684 | BK189: -2683 | BL189: -6097 | BM189: -8016 | BN189: 8450 | BO189: -8346 | BP189: -11980 | BQ189: -1287
B190: Impostos a recuperar | C190: 25263 | D190: 4558 | E190: 5038 | F190: =G190-SUM(C190:E190) -> 6441 | G190: 41300 | H190: 2353 | I190: 5798 | J190: 9852 | K190: 9534 | L190: 27537 | M190: 946 | N190: -284 | O190: -134 | P190: 9208 | Q190: 9736 | R190: -2361 | S190: 1052 | T190: 1790 | U190: -275 | V190: 206 | W190: 297 | X190: 13739 | Y190: 175 | Z190: 3446 | AA190: 17657 | AB190: 497 | AC190: 641 | AD190: -26119 | AE190: -105212 | AF190: -130193 | AG190: -6683 | AH190: -14059 | AI190: 899 | AJ190: 6129 | AK190: -13714 | AL190: -10574 | AM190: 10493 | AN190: -6426 | AO190: -8233 | AP190: -14740 | AQ190: -5232 | AR190: -1958 | AS190: -15676 | AT190: 7803 | AU190: -15063 | AV190: -4683 | AW190: -2655 | AX190: -4753 | AY190: 1596 | AZ190: -10495 | BA190: -544 | BB190: 7278 | BC190: -10696 | BD190: 1501 | BE190: -2461 | BF190: -2722 | BG190: -2835 | BH190: -4987 | BI190: -3524 | BJ190: -14068 | BK190: -5973 | BL190: -80 | BM190: -3754 | BN190: -2822 | BO190: -12629 | BP190: -5202 | BQ190: -904
B191: Créditos diversos | C191: -445 | D191: -1362 | E191: 996 | F191: =G191-SUM(C191:E191) -> -800 | G191: -1611 | H191: -1048 | I191: 1630 | J191: 920 | K191: 970 | L191: 2472 | M191: -1690 | N191: -36 | O191: 2693 | P191: -711 | Q191: 256 | R191: 2980 | S191: 56 | T191: 1200 | U191: -1568 | V191: 2668 | W191: 152 | X191: 851 | Y191: -4624 | Z191: -1146 | AA191: -4767 | AB191: -709 | AC191: -136 | AD191: -228 | AE191: 68 | AF191: -1005 | AG191: -2653 | AH191: 2182 | AI191: 1073 | AJ191: -112 | AK191: 490 | AL191: 389 | AM191: 1173 | AN191: -8 | AO191: 1957 | AP191: 3511 | AQ191: -1740 | AR191: 3822 | AS191: 212 | AT191: 792 | AU191: 3086 | AV191: -497 | AW191: -977 | AX191: -2419 | AY191: 8422 | AZ191: 4529 | BA191: -772 | BB191: 1642 | BC191: -2208 | BD191: 4261 | BE191: 2923 | BF191: -3348 | BG191: 1192 | BH191: 2117 | BI191: -555 | BJ191: -594 | BK191: 1958 | BL191: -4401 | BM191: -2484 | BN191: -4027 | BO191: -8954 | BP191: -3302 | BQ191: 763
B192: Dividendos recebidos de controladas | C192: 3953 | D192: 3954 | E192: 0 | F192: =G192-SUM(C192:E192) -> 0 | G192: 7907 | H192: 0 | I192: 3787 | J192: 0 | K192: 0 | L192: 3787 | M192: 0 | N192: 0 | O192: 0 | P192: 0 | Q192: 0 | R192: 0 | S192: 0 | T192: 0 | U192: 0 | V192: 0 | W192: 0 | X192: 0 | Y192: 0 | Z192: 0 | AA192: 0 | AB192: 0 | AC192: 0 | AD192: 0 | AE192: 0 | AF192: 0 | AG192: 0 | AH192: 0 | AI192: 0 | AJ192: 0 | AK192: 0 | AL192: 0 | AM192: 0 | AN192: 0 | AO192: 0 | AP192: 0 | AQ192: 0 | AR192: 0 | AS192: 0 | AT192: 0 | AU192: 0 | AV192: 0 | AW192: 0 | AX192: 0 | AY192: 50 | AZ192: 50 | BA192: 0 | BB192: 0 | BC192: 0 | BD192: 221 | BE192: 221 | BF192: 0 | BG192: 0 | BH192: 0 | BI192: 0 | BJ192: 0 | BK192: 0 | BL192: 0 | BM192: 0 | BN192: 0 | BO192: 0 | BP192: 0 | BQ192: 0
B193: Depósitos judiciais | C193: -37 | D193: -8 | E193: 54 | F193: =G193-SUM(C193:E193) -> 56 | G193: 65 | H193: 435 | I193: 627 | J193: 5 | K193: 81 | L193: 1148 | M193: 10 | N193: 699 | O193: -5 | P193: 704 | Q193: 1408 | R193: 318 | S193: 127 | T193: 194 | U193: 58 | V193: 697 | W193: 496 | X193: 35 | Y193: 116 | Z193: 688 | AA193: 1335 | AB193: -115 | AC193: -876 | AD193: -345 | AE193: 1071 | AF193: -265 | AG193: 109 | AH193: -141 | AI193: -458 | AJ193: -988 | AK193: -1478 | AL193: -188 | AM193: -241 | AN193: 44 | AO193: -386 | AP193: -771 | AQ193: -76 | AR193: 1069 | AS193: 19 | AT193: 31 | AU193: 1043 | AV193: -89 | AW193: 144 | AX193: 87 | AY193: -53 | AZ193: 89 | BA193: -178 | BB193: -605 | BC193: -52 | BD193: -209 | BE193: -1044 | BF193: -255 | BG193: -135 | BH193: -16 | BI193: -396 | BJ193: -802 | BK193: -1899 | BL193: -114 | BM193: 1137 | BN193: 158 | BO193: -718 | BP193: -220 | BQ193: -165
B194: Instrumentos financeiros derivativos a receber | C194: 0 | D194: -239 | E194: 239 | F194: -123 | G194: -123 | H194: 0 | I194: 0 | J194: 0 | K194: 0 | L194: 0 | M194: 0 | N194: 0 | O194: 0 | P194: 0 | Q194: 0 | R194: 0 | S194: 0 | T194: 0 | U194: 0 | V194: 0 | W194: 0 | X194: 0 | Y194: 0 | Z194: 0 | AA194: 0 | AB194: 0 | AC194: 0 | AD194: 0 | AE194: 0 | AF194: 0 | AG194: 0 | AH194: 0 | AI194: 0 | AJ194: 0 | AK194: 0 | AL194: 0 | AM194: 0 | AN194: 0 | AO194: 0 | AP194: 0 | AQ194: 0 | AR194: 0 | AS194: 0 | AT194: 0 | AU194: 0 | AV194: 0 | AW194: 0 | AX194: 0 | AY194: 0 | AZ194: 0 | BA194: 0 | BB194: 0 | BC194: 0 | BD194: 0 | BE194: 0 | BF194: 0 | BG194: 0 | BH194: 0 | BI194: 0 | BJ194: 0 | BK194: 0 | BL194: 0 | BM194: 0 | BN194: 0 | BO194: 0 | BP194: 0 | BQ194: 0
B195: Partes relacionadas | C195: -97 | D195: 81 | E195: -15 | F195: =G195-SUM(C195:E195) -> 97 | G195: 66 | H195: -829 | I195: 99 | J195: -175 | K195: 232 | L195: -673 | M195: -120 | N195: 26 | O195: -70 | P195: 143 | Q195: -21 | R195: -175 | S195: -141 | T195: -892 | U195: 42 | V195: -1166 | W195: -526 | X195: 411 | Y195: -191 | Z195: 13 | AA195: -293 | AB195: -1092 | AC195: 207 | AD195: -762 | AE195: 2991 | AF195: 1344 | AG195: -1426 | AH195: 1145 | AI195: -614 | AJ195: -268 | AK195: -1163 | AL195: -3233 | AM195: -1531 | AN195: -2382 | AO195: 6534 | AP195: -612 | AQ195: -353 | AR195: -2759 | AS195: 6393 | AT195: 1943 | AU195: 5224 | AV195: -2902 | AW195: 1389 | AX195: 12291 | AY195: 3792 | AZ195: 14569 | BA195: 3910 | BB195: -5969 | BC195: 2620 | BD195: -15903 | BE195: -15342 | BF195: -5349 | BG195: 10034 | BH195: -10745 | BI195: 1777 | BJ195: -4283 | BK195: 0 | BL195: 0 | BM195: 0 | BN195: 6295 | BO195: 6295 | BP195: 0 | BQ195: 726
B196: Fornecedores | C196: 2854 | D196: 6519 | E196: 3025 | F196: =G196-SUM(C196:E196) -> -5542 | G196: 6856 | H196: -1811 | I196: -6328 | J196: -5944 | K196: -5121 | L196: -19204 | M196: 1974 | N196: 4440 | O196: 8045 | P196: -7063 | Q196: 7396 | R196: -5337 | S196: 1682 | T196: 1363 | U196: 1055 | V196: -1237 | W196: 2556 | X196: 2917 | Y196: 7306 | Z196: -3400 | AA196: 9379 | AB196: 1752 | AC196: 335 | AD196: -4896 | AE196: -927 | AF196: -3736 | AG196: 4111 | AH196: -6942 | AI196: 1989 | AJ196: -5493 | AK196: -6335 | AL196: 6122 | AM196: -13700 | AN196: 9824 | AO196: 992 | AP196: 3238 | AQ196: 10524 | AR196: 2234 | AS196: 9862 | AT196: -23876 | AU196: -1256 | AV196: 32127 | AW196: -17138 | AX196: 21203 | AY196: -39550 | AZ196: -3358 | BA196: 8997 | BB196: 4479 | BC196: 10954 | BD196: -12483 | BE196: 11947 | BF196: 5303 | BG196: 405 | BH196: 3174 | BI196: -19852 | BJ196: -10970 | BK196: -7607 | BL196: -2980 | BM196: 20558 | BN196: -19367 | BO196: -9396 | BP196: 6729 | BQ196: -303
B197: Obrigações Decorrente de Compra de Mercadoria e Serviços | C197: -776 | D197: 2001 | E197: -415 | F197: =G197-SUM(C197:E197) -> 1213 | G197: 2023 | H197: -678 | I197: -5646 | J197: -474 | K197: -1157 | L197: -7955 | M197: -2932 | N197: 2085 | O197: 5472 | P197: -452 | Q197: 4173 | R197: -304 | S197: -349 | T197: -205 | U197: 3998 | V197: 3140 | W197: -8448 | X197: -960 | Y197: -3533 | Z197: -2035 | AA197: -14976 | AB197: -141 | AC197: 8070 | AD197: 8436 | AE197: -229 | AF197: 16136 | AG197: 767 | AH197: -213 | AI197: -342 | AJ197: 550 | AK197: 762 | AL197: -8877 | AM197: -11983 | AN197: 488 | AO197: -53 | AP197: -20425 | AQ197: -6361 | AR197: -2529 | AS197: 260 | AT197: -27083 | AU197: -35713 | AV197: 0 | AW197: 0 | AX197: 0 | AY197: 34391 | AZ197: 34391 | BA197: 0 | BB197: 0 | BC197: 0 | BD197: 0 | BE197: 0 | BF197: 0 | BG197: 0 | BH197: 0 | BI197: 0 | BJ197: 0 | BK197: 0 | BL197: 0 | BM197: 0 | BN197: 0 | BO197: 0 | BP197: 0 | BQ197: 0
B198: Salários, provisões e contribuições sociais | C198: -4765 | D198: 1986 | E198: 2121 | F198: =G198-SUM(C198:E198) -> -37 | G198: -695 | H198: -2680 | I198: 1724 | J198: 2356 | K198: -2089 | L198: -689 | M198: -2713 | N198: 2597 | O198: 2616 | P198: -1060 | Q198: 1440 | R198: -4630 | S198: 5906 | T198: -405 | U198: -3457 | V198: -2586 | W198: -4212 | X198: -907 | Y198: 10596 | Z198: -6429 | AA198: -952 | AB198: -3410 | AC198: 2327 | AD198: 2614 | AE198: -3318 | AF198: -1787 | AG198: 3730 | AH198: 2426 | AI198: 2788 | AJ198: -4159 | AK198: 4785 | AL198: 4201 | AM198: 5966 | AN198: 2840 | AO198: -1228 | AP198: 11779 | AQ198: -2806 | AR198: 1614 | AS198: 10600 | AT198: -2281 | AU198: 7127 | AV198: 447 | AW198: 2017 | AX198: 3759 | AY198: -5046 | AZ198: 1177 | BA198: 2954 | BB198: 266 | BC198: 5631 | BD198: -9247 | BE198: -396 | BF198: -2276 | BG198: 6525 | BH198: 5864 | BI198: -3391 | BJ198: 6722 | BK198: 1203 | BL198: -2283 | BM198: -1218 | BN198: 2319 | BO198: 21 | BP198: 3147 | BQ198: 931
B199: Impostos a recolher | C199: -12993 | D199: 2549 | E199: -2025 | F199: =G199-SUM(C199:E199) -> 12377 | G199: -92 | H199: -6809 | I199: 241 | J199: -886 | K199: 11869 | L199: 4415 | M199: -7004 | N199: 2255 | O199: 444 | P199: 8971 | Q199: 4666 | R199: -3460 | S199: -2565 | T199: -1643 | U199: 8173 | V199: 505 | W199: -20336 | X199: -1172 | Y199: 4360 | Z199: 4282 | AA199: -12866 | AB199: -9783 | AC199: 585 | AD199: 5873 | AE199: 18055 | AF199: 14730 | AG199: -11334 | AH199: 7210 | AI199: -8175 | AJ199: 1887 | AK199: -10412 | AL199: 9143 | AM199: -1332 | AN199: 709 | AO199: 19494 | AP199: 28014 | AQ199: -12568 | AR199: 24445 | AS199: 27488 | AT199: 27158 | AU199: 66523 | AV199: -16891 | AW199: 2745 | AX199: 8206 | AY199: -2984 | AZ199: -8924 | BA199: -12987 | BB199: 6775 | BC199: 4934 | BD199: 8591 | BE199: 7313 | BF199: -15138 | BG199: -3094 | BH199: -1976 | BI199: 14383 | BJ199: -5825 | BK199: -11048 | BL199: 6234 | BM199: -4447 | BN199: 10350 | BO199: 1089 | BP199: 15148 | BQ199: 1267
B200: Contas a pagar | C200: -2996 | D200: 3153 | E200: -1386 | F200: =G200-SUM(C200:E200) -> 8012 | G200: 6783 | H200: -4266 | I200: -933 | J200: 361 | K200: 4828 | L200: -10 | M200: -3767 | N200: 449 | O200: 897 | P200: 3480 | Q200: 1059 | R200: -8270 | S200: 7625 | T200: -9547 | U200: -2137 | V200: -12329 | W200: -8546 | X200: 16462 | Y200: 5843 | Z200: -5458 | AA200: 8301 | AB200: -4711 | AC200: 2976 | AD200: 1400 | AE200: 4181 | AF200: 3846 | AG200: -3107 | AH200: 5734 | AI200: -5450 | AJ200: 2009 | AK200: -814 | AL200: -5404 | AM200: -999 | AN200: 2849 | AO200: 2798 | AP200: -756 | AQ200: -13608 | AR200: -1019 | AS200: -3019 | AT200: 1497 | AU200: -16149 | AV200: -2960 | AW200: 1361 | AX200: 22877 | AY200: -14544 | AZ200: 6734 | BA200: -3171 | BB200: -1033 | BC200: 734 | BD200: 5154 | BE200: 1684 | BF200: -4198 | BG200: -3745 | BH200: 2069 | BI200: 12668 | BJ200: 6794 | BK200: -1377 | BL200: 7894 | BM200: -5566 | BN200: 2501 | BO200: 3452 | BP200: 2620 | BQ200: 378
B201: Adiantamento de clientes | C201: 575 | D201: -226 | E201: 424 | F201: =G201-SUM(C201:E201) -> 520 | G201: 1293 | H201: -274 | I201: 430 | J201: 235 | K201: 98 | L201: 489 | M201: 171 | N201: 454 | O201: 126 | P201: -1595 | Q201: -844 | R201: 124 | S201: 151 | T201: 567 | U201: -647 | V201: 195 | W201: -262 | X201: 392 | Y201: 146 | Z201: -24 | AA201: 252 | AB201: 74 | AC201: -46 | AD201: 68 | AE201: 53 | AF201: 149 | AG201: 576 | AH201: -392 | AI201: 238 | AJ201: -191 | AK201: 231 | AL201: 466 | AM201: -157 | AN201: -197 | AO201: -250 | AP201: -138 | AQ201: 1360 | AR201: -821 | AS201: -875 | AT201: -180 | AU201: -516 | AV201: 648 | AW201: -72 | AX201: -1459 | AY201: -1280 | AZ201: -2163 | BA201: 2365 | BB201: -2185 | BC201: -116 | BD201: -4781 | BE201: -4717 | BF201: 5188 | BG201: -163 | BH201: 2252 | BI201: -2193 | BJ201: 5084 | BK201: -2212 | BL201: 954 | BM201: 842 | BN201: -9333 | BO201: -9749 | BP201: 4737 | BQ201: 2346
B202: Instrumento Financeiro derivativo a pagar | C202: 0 | D202: 0 | E202: 0 | F202: =G202-SUM(C202:E202) -> 0 | G202: 0 | H202: 0 | I202: 84 | J202: -84 | K202: 0 | L202: 0 | M202: 0 | N202: 0 | O202: 0 | P202: 0 | Q202: 0 | R202: 0 | S202: 0 | T202: 0 | U202: 0 | V202: 0 | W202: 0 | X202: 0 | Y202: 0 | Z202: 0 | AA202: 0 | AB202: 0 | AC202: 0 | AD202: 0 | AE202: 0 | AF202: 0 | AG202: 0 | AH202: 0 | AI202: 0 | AJ202: 0 | AK202: 0 | AL202: 0 | AM202: 0 | AN202: 0 | AO202: 0 | AP202: 0 | AQ202: 0 | AR202: 0 | AS202: 0 | AT202: 0 | AU202: 0 | AV202: 0 | AW202: 0 | AX202: 0 | AY202: 0 | AZ202: 0 | BA202: 0 | BB202: 0 | BC202: 0 | BD202: 0 | BE202: 0 | BF202: 0 | BG202: 0 | BH202: 0 | BI202: 0 | BJ202: 0 | BK202: 0 | BL202: 0 | BM202: 0 | BN202: 0 | BO202: 0 | BP202: 0 | BQ202: 0
B203: Adição de Parcelamento de Tributos | C203: 966 | D203: 331 | E203: 0 | F203: =G203-SUM(C203:E203) -> 6243 | G203: 7540 | H203: 157 | I203: 0 | J203: 565 | K203: 8037 | L203: 8759 | M203: 0 | N203: 0 | O203: 0 | P203: 0 | Q203: 0 | R203: 6270 | S203: 9181 | T203: 3860 | U203: 1263 | V203: 20574 | W203: 15895 | X203: 1 | Y203: 1475 | Z203: 17009 | AA203: 34380 | AB203: 6937 | AC203: 0 | AD203: 1321 | AE203: 13205 | AF203: 21463 | AG203: 0 | AH203: 0 | AI203: 0 | AJ203: 0 | AK203: 0 | AL203: 0 | AM203: 0 | AN203: 0 | AO203: 0 | AP203: 0 | AQ203: 0 | AR203: 0 | AS203: 0 | AT203: 0 | AU203: 0 | AV203: 0 | AW203: 0 | AX203: 436 | AY203: 0 | AZ203: 436 | BA203: 0 | BB203: 837 | BC203: 19 | BD203: 10390 | BE203: 11246 | BF203: 0 | BG203: 5867 | BH203: -12305 | BI203: 12582 | BJ203: 6144 | BK203: 0 | BL203: 0 | BM203: 0 | BN203: 0 | BO203: 0 | BP203: 0 | BQ203: 0
B204: Pagamento de parcelamento de tributos | C204: -7501 | D204: -6605 | E204: -6324 | F204: =G204-SUM(C204:E204) -> -5709 | G204: -26139 | H204: -6939 | I204: -6988 | J204: -6609 | K204: -3339 | L204: -23875 | M204: -10957 | N204: -9329 | O204: -7813 | P204: -7237 | Q204: -35336 | R204: -7182 | S204: -7789 | T204: -9246 | U204: -10733 | V204: -34950 | W204: -6812 | X204: -1203 | Y204: -6926 | Z204: -10805 | AA204: -25746 | AB204: -11245 | AC204: -5785 | AD204: -7907 | AE204: -6652 | AF204: -31589 | AG204: -386 | AH204: -629 | AI204: -531 | AJ204: -572 | AK204: -2118 | AL204: -471 | AM204: -481 | AN204: -1742 | AO204: -491 | AP204: -3185 | AQ204: -551 | AR204: -564 | AS204: -491 | AT204: -460 | AU204: -2066 | AV204: -667 | AW204: -548 | AX204: -588 | AY204: 1803 | AZ204: 0 | BA204: -1927 | BB204: -1583 | BC204: -1539 | BD204: -1297 | BE204: -6346 | BF204: -2194 | BG204: -1769 | BH204: 9829 | BI204: -16307 | BJ204: -10441 | BK204: -2122 | BL204: -4080 | BM204: -1946 | BN204: -3477 | BO204: -11625 | BP204: -754 | BQ204: -1001
B205: Parcelamento de Tributo | C205: 0 | D205: 0 | E205: 0 | F205: =G205-SUM(C205:E205) -> 0 | G205: 0 | H205: 0 | I205: 0 | J205: 0 | K205: 0 | L205: 0 | M205: 0 | N205: 0 | O205: 0 | P205: 0 | Q205: 0 | R205: 0 | S205: 0 | T205: 0 | U205: 0 | V205: 0 | W205: 0 | X205: 0 | Y205: 0 | Z205: 0 | AA205: 0 | AB205: 0 | AC205: 0 | AD205: 0 | AE205: 0 | AF205: 0 | AG205: 0 | AH205: 0 | AI205: 0 | AJ205: 0 | AK205: 0 | AL205: 0 | AM205: 0 | AN205: 0 | AO205: 0 | AP205: 0 | AQ205: 0 | AR205: 0 | AS205: 0 | AT205: 0 | AU205: 0 | AV205: 0 | AW205: 0 | AX205: 0 | AY205: 0 | AZ205: 0 | BA205: 0 | BB205: 0 | BC205: 0 | BD205: 0 | BE205: 0 | BF205: 0 | BG205: 0 | BH205: 0 | BI205: 0 | BJ205: 0 | BK205: 0 | BL205: 0 | BM205: 2130 | BN205: 290 | BO205: 2420 | BP205: 0 | BQ205: 0
B206: Baixa de Parcelamento de Tributos | C206: 0 | D206: 0 | E206: 0 | F206: =G206-SUM(C206:E206) -> 0 | G206: 0 | H206: 0 | I206: 0 | J206: 0 | K206: 0 | L206: 0 | M206: 0 | N206: 0 | O206: 0 | P206: 0 | Q206: 0 | R206: 0 | S206: 0 | T206: 0 | U206: 0 | V206: 0 | W206: 0 | X206: 0 | Y206: 0 | Z206: 0 | AA206: 0 | AB206: 0 | AC206: 0 | AD206: 0 | AE206: 0 | AF206: 0 | AG206: 0 | AH206: 0 | AI206: 0 | AJ206: 0 | AK206: 0 | AL206: 0 | AM206: 0 | AN206: 0 | AO206: 0 | AP206: 0 | AQ206: 0 | AR206: 0 | AS206: 0 | AT206: 0 | AU206: 0 | AV206: 0 | AW206: 0 | AX206: 0 | AY206: -2391 | AZ206: -2391 | BA206: 0 | BB206: 0 | BC206: 0 | BD206: -3914 | BE206: -3914 | BF206: 0 | BG206: 0 | BH206: 0 | BI206: 0 | BJ206: 0 | BK206: 0 | BL206: 0 | BM206: 0 | BN206: -122 | BO206: -122 | BP206: 0 | BQ206: 0
B207: Arrendamento operacional - lojas | C207: 0 | D207: 0 | E207: 0 | F207: =G207-SUM(C207:E207) -> 0 | G207: 0 | H207: 0 | I207: 0 | J207: 0 | K207: 0 | L207: 0 | M207: 0 | N207: 0 | O207: 0 | P207: 0 | Q207: 0 | R207: 0 | S207: 0 | T207: 0 | U207: 0 | V207: 0 | W207: 0 | X207: 0 | Y207: 0 | Z207: 0 | AA207: 0 | AB207: 0 | AC207: 0 | AD207: 0 | AE207: 0 | AF207: 0 | AG207: 0 | AH207: 0 | AI207: 0 | AJ207: 0 | AK207: 0 | AL207: 0 | AM207: 0 | AN207: 0 | AO207: 0 | AP207: 0 | AQ207: 0 | AR207: 0 | AS207: 0 | AT207: 0 | AU207: 0 | AV207: 0 | AW207: 0 | AX207: 0 | AY207: 0 | AZ207: 0 | BA207: 0 | BB207: 0 | BC207: 0 | BD207: 0 | BE207: 0 | BF207: -1527 | BG207: 1527 | BH207: 0 | BI207: 0 | BJ207: 0 | BK207: -3067 | BL207: -157 | BM207: 11 | BN207: 3213 | BO207: 0 | BP207: 163 | BQ207: -3
B208: Caixa gerado pelas (aplicado nas) atividades operacionais | C208: =C157+C158+C187 -> 51363 | D208: =D157+D158+D187 -> 23519 | E208: 28028 | F208: 41925 | G208: =G157+G158+G187 -> 144835 | H208: =H157+H158+H187 -> 34932 | I208: =I157+I158+I187 -> 47190 | J208: 38060 | K208: =K157+K158+K187 -> 60632 | L208: 180814 | M208: =M157+M158+M187 -> 12607 | N208: =N157+N158+N187 -> 24293 | O208: 31566 | P208: 25503 | Q208: 93969 | R208: =R157+R158+R187 -> 14666 | S208: =S157+S158+S187 -> 13972 | T208: 34821 | U208: =U157+U158+U187 -> 14719 | V208: 78178 | W208: =W157+W158+W187 -> 32755 | X208: 41059 | Y208: 10923 | Z208: 12626 | AA208: 97363 | AB208: 7649 | AC208: =AC157+AC158+AC187 -> 44898 | AD208: 8726 | AE208: 56413 | AF208: 117686 | AG208: 20173 | AH208: 9761 | AI208: -29874 | AJ208: 21366 | AK208: 21426 | AL208: -11367 | AM208: 35912 | AN208: 23607 | AO208: 35055 | AP208: 83207 | AQ208: -72052 | AR208: 70962 | AS208: 4868 | AT208: 23599 | AU208: 27376 | AV208: -5374 | AW208: 21859 | AX208: 56483 | AY208: 75564 | AZ208: 148532 | BA208: -1472 | BB208: 58766 | BC208: -2819 | BD208: 58231 | BE208: 112706 | BF208: -13428 | BG208: 10663 | BH208: 13195 | BI208: 51322 | BJ208: 61752 | BK208: 6346 | BL208: -14236 | BM208: -11441 | BN208: 47059 | BO208: 27728 | BP208: -17434 | BQ208: =BQ157+BQ158+BQ187 -> 33906
B209: Juros pagos | C209: 0 | D209: 0 | E209: 0 | F209: =G209-SUM(C209:E209) -> 0 | G209: 0 | H209: 0 | I209: 0 | J209: 0 | K209: =L209-SUM(H209:J209) -> 0 | L209: 0 | M209: 0 | N209: 0 | O209: 0 | P209: 0 | Q209: 0 | R209: 0 | S209: 0 | T209: 0 | U209: 0 | V209: 0 | W209: 0 | X209: 0 | Y209: 0 | Z209: 0 | AA209: =SUM(W209:Z209) -> 0 | AB209: 0 | AE209: 0 | AF209: 0 | AG209: 0 | AH209: 0 | AI209: 0 | AJ209: 0 | AK209: 0 | AL209: 0 | AM209: 0 | AN209: 0 | AO209: 0 | AP209: 0 | AQ209: 0 | AR209: 0 | AS209: 0 | AT209: 0 | AU209: 0 | AV209: 0 | AW209: 0 | AX209: 0 | AY209: 0 | AZ209: 0 | BA209: 0 | BB209: 0 | BC209: 0 | BD209: 0 | BE209: 0 | BF209: 0 | BG209: 0 | BH209: 0 | BI209: 0 | BJ209: 0 | BK209: 0 | BL209: 0 | BM209: 0 | BN209: 0 | BO209: 0 | BP209: -230 | BQ209: 0
B210: Imposto de renda e contribuição social pagos | C210: 0 | D210: 0 | E210: 0 | F210: =G210-SUM(C210:E210) -> 0 | G210: 0 | H210: -2332 | I210: -714 | J210: -729 | K210: 0 | L210: -3775 | M210: 0 | N210: 0 | O210: -13 | P210: -1487 | Q210: -1500 | R210: 0 | S210: -601 | T210: 0 | U210: 0 | V210: -601 | W210: 0 | X210: -10379 | Y210: 0 | Z210: 0 | AA210: =SUM(W210:Z210) -> -10379 | AB210: 0 | AE210: -4637 | AF210: -4637 | AG210: -305 | AH210: 0 | AI210: 0 | AJ210: 0 | AK210: -305 | AL210: 0 | AM210: 0 | AN210: 0 | AO210: -1520 | AP210: -1520 | AQ210: -338 | AR210: 0 | AS210: -1 | AT210: -45 | AU210: -384 | AV210: -877 | AW210: -213 | AX210: -322 | AY210: -829 | AZ210: -2241 | BA210: -306 | BB210: -1459 | BC210: -2317 | BD210: -2413 | BE210: -6495 | BF210: -1117 | BG210: 1117 | BH210: 0 | BI210: -2276 | BJ210: -2276 | BK210: -3662 | BL210: -7282 | BM210: -3152 | BN210: -449 | BO210: -14545 | BP210: -5665 | BQ210: -5715
B211: Caixa líquido aplicado nas atividades operacionais | C211: =C208+C209+C210 -> 51363 | D211: =D208+D209+D210 -> 23519 | E211: 28028 | F211: 41925 | G211: =G208+G209+G210 -> 144835 | H211: =H208+H209+H210 -> 32600 | I211: =I208+I209+I210 -> 46476 | J211: 37331 | K211: =K208+K209+K210 -> 60632 | L211: 177039 | M211: =M208+M209+M210 -> 12607 | N211: =N208+N209+N210 -> 24293 | O211: 31553 | P211: 24016 | Q211: 92469 | R211: =R208+R209+R210 -> 14666 | S211: =S208+S209+S210 -> 13371 | T211: 34821 | U211: =U208+U209+U210 -> 14719 | V211: 77577 | W211: =W208+W209+W210 -> 32755 | X211: 30680 | Y211: 10923 | Z211: 12626 | AA211: 86984 | AB211: 7649 | AC211: =AC208+AC209+AC210 -> 44898 | AD211: 8726 | AE211: 51776 | AF211: 113049 | AG211: 19868 | AH211: 9761 | AI211: -29874 | AJ211: 21366 | AK211: 21121 | AL211: -11367 | AM211: 35912 | AN211: 23607 | AO211: 33535 | AP211: 81687 | AQ211: -72390 | AR211: 70962 | AS211: 4867 | AT211: 23554 | AU211: 26992 | AV211: -6251 | AW211: 21646 | AX211: 56161 | AY211: 74735 | AZ211: 146291 | BA211: -1778 | BB211: 57307 | BC211: -5136 | BD211: 55818 | BE211: 106211 | BF211: -14545 | BG211: 11780 | BH211: 13195 | BI211: 49046 | BJ211: 59476 | BK211: 2684 | BL211: -21518 | BM211: -14593 | BN211: 46610 | BO211: 13183 | BP211: -23329 | BQ211: =BQ208+BQ209+BQ210 -> 28191
B213: FLUXO DE CAIXA DAS ATIVIDADES DE INVESTIMENTO
B214: Adições do ativo imobilizado | C214: -4314 | D214: -2410 | E214: -2651 | F214: =G214-SUM(C214:E214) -> -5758 | G214: -15133 | H214: -616 | I214: -1453 | J214: -3780 | K214: =L214-SUM(H214:J214) -> -3264 | L214: -9113 | M214: -1445 | N214: -740 | O214: -1207 | P214: =Q214-SUM(M214:O214) -> -708 | Q214: -4100 | R214: -2682 | S214: -105 | T214: -599 | U214: -2152 | V214: =SUM(R214:U214) -> -5538 | W214: -482 | X214: -469 | Y214: -102 | Z214: -5621 | AA214: =SUM(W214:Z214) -> -6674 | AB214: -1296 | AC214: -2145 | AD214: -2201 | AE214: -1816 | AF214: =SUM(AB214:AE214) -> -7458 | AG214: -648 | AH214: -222 | AI214: -1101 | AJ214: -1490 | AK214: -3461 | AL214: -2551 | AM214: -3167 | AN214: -1952 | AO214: 505 | AP214: -7165 | AQ214: -8267 | AR214: -5269 | AS214: -4547 | AT214: -4456 | AU214: -22539 | AV214: -8658 | AW214: -11239 | AX214: -9978 | AY214: -7424 | AZ214: -37299 | BA214: -12655 | BB214: -8558 | BC214: -9318 | BD214: -7530 | BE214: -38061 | BF214: -2558 | BG214: -7000 | BH214: -8586 | BI214: -13630 | BJ214: -31774 | BK214: -3926 | BL214: -3367 | BM214: -13575 | BN214: -11471 | BO214: -32339 | BP214: -8279 | BQ214: -2914
B215: Adições do ativo intangível | C215: -4352 | D215: -4429 | E215: -4724 | F215: =G215-SUM(C215:E215) -> -4995 | G215: -18500 | H215: -5145 | I215: -4588 | J215: -5059 | K215: -4617 | L215: -19409 | M215: -4760 | N215: -4670 | O215: -5050 | P215: -5031 | Q215: -19511 | R215: -4879 | S215: -4736 | T215: -4058 | U215: -3896 | V215: -17569 | W215: -6979 | X215: -2390 | Y215: -4765 | Z215: -4657 | AA215: =SUM(W215:Z215) -> -18791 | AB215: -7233 | AC215: -7203 | AD215: -6926 | AE215: -7802 | AF215: -29164 | AG215: -7160 | AH215: -8513 | AI215: -6725 | AJ215: -6421 | AK215: -28819 | AL215: -7123 | AM215: -6646 | AN215: -6680 | AO215: -6634 | AP215: -27083 | AQ215: -9553 | AR215: -10784 | AS215: -9709 | AT215: -7512 | AU215: -37558 | AV215: -8905 | AW215: -12010 | AX215: -10620 | AY215: -8951 | AZ215: -40486 | BA215: -7124 | BB215: -9705 | BC215: -8903 | BD215: -6655 | BE215: -32387 | BF215: -5353 | BG215: -7971 | BH215: -5803 | BI215: -6371 | BJ215: -25498 | BK215: -6401 | BL215: -5399 | BM215: -11123 | BN215: -5747 | BO215: -28670 | BP215: -2664 | BQ215: -325
B216: Aplicação de títulos e valores mobiliários | C216: 0 | D216: 0 | E216: 0 | F216: =G216-SUM(C216:E216) -> 0 | G216: 0 | H216: 0 | I216: 0 | J216: 0 | K216: 0 | L216: 0 | M216: 0 | N216: 0 | O216: 0 | P216: 0 | Q216: 0 | R216: 0 | S216: 0 | T216: 0 | U216: 0 | V216: 0 | W216: 0 | X216: 0 | Y216: 0 | Z216: 0 | AA216: 0 | AB216: 0 | AC216: 0 | AD216: 0 | AE216: 0 | AF216: 0 | AG216: 0 | AH216: 0 | AI216: 0 | AJ216: 0 | AK216: 0 | AL216: 0 | AM216: 0 | AN216: 0 | AO216: 0 | AP216: 0 | AQ216: 0 | AR216: 0 | AS216: 0 | AT216: 0 | AU216: 0 | AV216: 0 | AW216: 0 | AX216: 0 | AY216: 0 | AZ216: 0 | BA216: 0 | BB216: 0 | BC216: 0 | BD216: 0 | BE216: 0 | BF216: 0 | BG216: 0 | BH216: 0 | BI216: 0 | BJ216: 0 | BK216: -25790 | BL216: 0 | BM216: 0 | BN216: 0 | BO216: -25790 | BP216: -96392 | BQ216: -9200
B217: Resgate de títulos e valores mobiliários | C217: 0 | D217: 0 | E217: 0 | F217: =G217-SUM(C217:E217) -> 0 | G217: 0 | H217: 0 | I217: 0 | J217: 0 | K217: 0 | L217: 0 | M217: 0 | N217: 0 | O217: 0 | P217: 0 | Q217: 0 | R217: 0 | S217: 0 | T217: 0 | U217: 0 | V217: 0 | W217: 0 | X217: 0 | Y217: 0 | Z217: 0 | AA217: 0 | AB217: 0 | AC217: 0 | AD217: 0 | AE217: 0 | AF217: 0 | AG217: 0 | AH217: 0 | AI217: 0 | AJ217: 0 | AK217: 0 | AL217: 0 | AM217: 0 | AN217: 0 | AO217: 0 | AP217: 0 | AQ217: 0 | AR217: 0 | AS217: 0 | AT217: 0 | AU217: 0 | AV217: 0 | AW217: 0 | AX217: 0 | AY217: 0 | AZ217: 0 | BA217: 0 | BB217: 0 | BC217: 0 | BD217: 0 | BE217: 0 | BF217: 0 | BG217: 0 | BH217: 0 | BI217: 0 | BJ217: 0 | BK217: 37758 | BL217: 0 | BM217: 883 | BN217: 26578 | BO217: 65219 | BP217: 88273 | BQ217: 43744
B218: Integralização de capital em controladas | C218: 0 | D218: 0 | E218: 0 | F218: =G218-SUM(C218:E218) -> 0 | G218: 0 | H218: 0 | I218: 0 | J218: 0 | K218: 0 | L218: 0 | M218: 0 | N218: 0 | O218: 0 | P218: 0 | Q218: 0 | R218: 0 | S218: 0 | T218: 0 | U218: 0 | V218: 0 | W218: 0 | X218: 0 | Y218: 0 | Z218: 0 | AA218: 0 | AB218: 0 | AC218: 0 | AD218: 0 | AE218: 0 | AF218: 0 | AG218: 0 | AH218: 0 | AI218: 0 | AJ218: 0 | AK218: 0 | AL218: 0 | AM218: 0 | AN218: 0 | AO218: 0 | AP218: 0 | AQ218: 0 | AR218: 0 | AS218: 0 | AT218: 0 | AU218: 0 | AV218: 0 | AW218: 0 | AX218: 0 | AY218: 0 | AZ218: 0 | BA218: 0 | BB218: 0 | BC218: 0 | BD218: 0 | BE218: 0 | BF218: 0 | BG218: 0 | BH218: 0 | BI218: 0 | BJ218: 0 | BK218: 0 | BL218: 0 | BM218: 0 | BN218: 0 | BO218: 0 | BP218: 0 | BQ218: 0
B219: Recebimento na venda de imobilizado | C219: 0 | D219: 0 | E219: 0 | F219: =G219-SUM(C219:E219) -> 0 | G219: 0 | H219: 0 | I219: 0 | J219: 0 | K219: 0 | L219: 0 | M219: 0 | N219: 0 | O219: 0 | P219: 0 | Q219: 0 | R219: 0 | S219: 0 | T219: 0 | U219: 0 | V219: 0 | W219: 0 | X219: 0 | Y219: 0 | Z219: 0 | AA219: 0 | AB219: 0 | AC219: 0 | AD219: 0 | AE219: 0 | AF219: 0 | AG219: 0 | AH219: 0 | AI219: 0 | AJ219: 0 | AK219: 0 | AL219: 0 | AM219: 0 | AN219: 0 | AO219: 0 | AP219: 0 | AQ219: 0 | AR219: 0 | AS219: 3697 | AT219: 0 | AU219: 3697 | AV219: 0 | AW219: 0 | AX219: 0 | AY219: 0 | AZ219: 0 | BA219: 0 | BB219: 0 | BC219: 0 | BD219: 0 | BE219: 0 | BF219: 0 | BG219: 0 | BH219: 25000 | BI219: 0 | BJ219: 25000 | BK219: 0 | BL219: 0 | BM219: 0 | BN219: 598 | BO219: 598 | BP219: 0 | BQ219: 410
B220: Empréstimo concedido a partes relacionadas | C220: 0 | D220: 0 | E220: 0 | F220: =G220-SUM(C220:E220) -> 0 | G220: 0 | H220: 0 | I220: 0 | J220: 0 | K220: 0 | L220: 0 | M220: 0 | N220: 0 | O220: 0 | P220: 0 | Q220: 0 | R220: 0 | S220: 0 | T220: 0 | U220: 0 | V220: 0 | W220: 0 | X220: 0 | Y220: 0 | Z220: 0 | AA220: 0 | AB220: 0 | AC220: 0 | AD220: 0 | AE220: 0 | AF220: 0 | AG220: 0 | AH220: 0 | AI220: 0 | AJ220: 0 | AK220: 0 | AL220: 0 | AM220: 0 | AN220: 0 | AO220: 0 | AP220: 0 | AQ220: 0 | AR220: 0 | AS220: 0 | AT220: 0 | AU220: 0 | AV220: 0 | AW220: 0 | AX220: 0 | AY220: 0 | AZ220: 0 | BA220: 0 | BB220: 0 | BC220: 0 | BD220: 0 | BE220: 0 | BF220: -757 | BG220: -4823 | BH220: 159 | BI220: -4624 | BJ220: -10045 | BK220: -3221 | BL220: -4547 | BM220: 672 | BN220: 4417 | BO220: -2679 | BP220: -11956 | BQ220: -46993
B221: Aquisição de empresa | C221: 0 | D221: 0 | E221: 0 | F221: =G221-SUM(C221:E221) -> 0 | G221: 0 | H221: 0 | I221: 0 | J221: 0 | K221: 0 | L221: 0 | M221: 0 | N221: 0 | O221: 0 | P221: 0 | Q221: 0 | R221: 0 | S221: 0 | T221: 0 | U221: 0 | V221: 0 | W221: 0 | X221: 0 | Y221: 0 | Z221: 0 | AA221: 0 | AB221: 0 | AC221: 0 | AD221: 0 | AE221: 0 | AF221: 0 | AG221: 0 | AH221: 0 | AI221: 0 | AJ221: 0 | AK221: 0 | AL221: 0 | AM221: 0 | AN221: 0 | AO221: 0 | AP221: 0 | AQ221: 0 | AR221: 0 | AS221: 0 | AT221: 0 | AU221: 0 | AV221: 0 | AW221: 0 | AX221: 0 | AY221: 0 | AZ221: 0 | BA221: 0 | BB221: 0 | BC221: 0 | BD221: 0 | BE221: 0 | BF221: 0 | BG221: 0 | BH221: 0 | BI221: 0 | BJ221: 0 | BK221: 0 | BL221: -21710 | BM221: 0 | BN221: 21710 | BO221: 0 | BP221: 0 | BQ221: 0
B222: Aumento de capital em controlada | C222: 0 | D222: 0 | E222: 0 | F222: =G222-SUM(C222:E222) -> 0 | G222: 0 | H222: 0 | I222: 0 | J222: 0 | K222: 0 | L222: 0 | M222: 0 | N222: 0 | O222: 0 | P222: 0 | Q222: 0 | R222: 0 | S222: 0 | T222: 0 | U222: 0 | V222: 0 | W222: 0 | X222: 0 | Y222: 0 | Z222: 0 | AA222: 0 | AB222: 0 | AC222: 0 | AD222: 0 | AE222: 0 | AF222: 0 | AG222: 0 | AH222: 0 | AI222: 0 | AJ222: 0 | AK222: 0 | AL222: 0 | AM222: 0 | AN222: 0 | AO222: -10000 | AP222: -10000 | AQ222: -7500 | AR222: 0 | AS222: 0 | AT222: 0 | AU222: -7500 | AV222: 0 | AW222: 0 | AX222: 0 | AY222: -7730 | AZ222: -7730 | BA222: 0 | BB222: 0 | BC222: 0 | BD222: 0 | BE222: 0 | BF222: -15029 | BG222: 29 | BH222: 0 | BI222: -7500 | BJ222: -22500 | BK222: 0 | BL222: 0 | BM222: 0 | BN222: -1498 | BO222: -1498 | BP222: 0 | BQ222: 0
B223: Adiantamento para futuro aumento de capital em controladas | C223: 0 | D223: 0 | E223: 0 | F223: =G223-SUM(C223:E223) -> 0 | G223: 0 | H223: 0 | I223: 0 | J223: 0 | K223: 0 | L223: 0 | M223: 0 | N223: 0 | O223: 0 | P223: 0 | Q223: 0 | R223: 0 | S223: 0 | T223: 0 | U223: 0 | V223: 0 | W223: 0 | X223: 0 | Y223: 0 | Z223: 0 | AA223: 0 | AB223: 0 | AC223: 0 | AD223: 0 | AE223: 0 | AF223: 0 | AG223: 0 | AH223: 0 | AI223: 0 | AJ223: 0 | AK223: 0 | AL223: 0 | AM223: 0 | AN223: 0 | AO223: 0 | AP223: 0 | AQ223: 0 | AR223: 0 | AS223: 0 | AT223: 0 | AU223: 0 | AV223: 0 | AW223: 0 | AX223: 0 | AY223: 0 | AZ223: 0 | BA223: 0 | BB223: 0 | BC223: 0 | BD223: 0 | BE223: 0 | BF223: 0 | BG223: 0 | BH223: 0 | BI223: 0 | BJ223: 0 | BK223: 0 | BL223: 0 | BM223: 0 | BN223: 0 | BO223: 0 | BP223: 0 | BQ223: 0
B224: Caixa na descontinuidade de controlada e controlada em conjunto | C224: 0 | D224: 0 | E224: 0 | F224: =G224-SUM(C224:E224) -> 0 | G224: 0 | H224: 0 | I224: 0 | J224: 0 | K224: 0 | L224: 0 | M224: 0 | N224: 0 | O224: 0 | P224: 0 | Q224: 0 | R224: 0 | S224: 0 | T224: 0 | U224: 0 | V224: 0 | W224: 0 | X224: 0 | Y224: 0 | Z224: 0 | AA224: 0 | AB224: 0 | AC224: 0 | AD224: 0 | AE224: 0 | AF224: 0 | AG224: 0 | AH224: 0 | AI224: 0 | AJ224: 0 | AK224: 0 | AL224: 0 | AM224: 0 | AN224: 0 | AO224: 0 | AP224: 0 | AQ224: 0 | AR224: 0 | AS224: 0 | AT224: 0 | AU224: 0 | AV224: 0 | AW224: 0 | AX224: 0 | AY224: 0 | AZ224: 0 | BA224: 0 | BB224: 0 | BC224: 0 | BD224: 0 | BE224: 0 | BF224: 0 | BG224: 0 | BH224: 0 | BI224: 0 | BJ224: 0 | BK224: 0 | BL224: 0 | BM224: 0 | BN224: 0 | BO224: 0 | BP224: 0 | BQ224: -22
B225: Caixa líquido na aquisição de empresa | C225: 0 | D225: 0 | E225: 0 | F225: =G225-SUM(C225:E225) -> 0 | G225: 0 | H225: 0 | I225: 0 | J225: 0 | K225: 0 | L225: 0 | M225: 0 | N225: 0 | O225: 0 | P225: 0 | Q225: 0 | R225: 0 | S225: 0 | T225: 0 | U225: 0 | V225: 0 | W225: 0 | X225: 0 | Y225: 0 | Z225: 0 | AA225: 0 | AB225: 0 | AC225: 0 | AD225: 0 | AE225: 0 | AF225: 0 | AG225: 0 | AH225: 0 | AI225: 0 | AJ225: 0 | AK225: 0 | AL225: 0 | AM225: 0 | AN225: 0 | AO225: 0 | AP225: 0 | AQ225: 0 | AR225: 0 | AS225: 0 | AT225: 0 | AU225: 0 | AV225: 0 | AW225: 0 | AX225: 0 | AY225: 0 | AZ225: 0 | BA225: 0 | BB225: 0 | BC225: 0 | BD225: 0 | BE225: 0 | BF225: 0 | BG225: 0 | BH225: 0 | BI225: 0 | BJ225: 0 | BK225: 0 | BL225: 781 | BM225: 0 | BN225: 1462 | BO225: 2243 | BP225: 8289 | BQ225: 0
B226: Aumento/(Redução) da participação dos acionistas não controladores | C226: 0 | D226: 0 | E226: 0 | F226: =G226-SUM(C226:E226) -> 0 | G226: 0 | H226: 0 | I226: 0 | J226: 0 | K226: 0 | L226: 0 | M226: 0 | N226: 0 | O226: 0 | P226: 0 | Q226: 0 | R226: 0 | S226: 0 | T226: 0 | U226: 0 | V226: 0 | W226: 0 | X226: 0 | Y226: 0 | Z226: 0 | AA226: 0 | AB226: 0 | AC226: -146 | AD226: 0 | AE226: 0 | AF226: -146 | AG226: 0 | AH226: 0 | AI226: 0 | AJ226: 0 | AK226: 0 | AL226: 0 | AM226: 0 | AN226: 0 | AO226: 0 | AP226: 0 | AQ226: 0 | AR226: 0 | AS226: 0 | AT226: 0 | AU226: 0 | AV226: 0 | AW226: 0 | AX226: 0 | AY226: 0 | AZ226: 0 | BA226: 0 | BB226: 0 | BC226: 0 | BD226: 0 | BE226: 0 | BF226: 0 | BG226: 0 | BH226: 0 | BI226: 0 | BJ226: 0 | BK226: 0 | BL226: 0 | BM226: 0 | BN226: 0 | BO226: 0 | BP226: 0 | BQ226: 0
B227: Caixa líquido (aplicado nas) gerado pelas atividades de investimento | C227: =SUM(C214:C225) -> -8666 | D227: =SUM(D214:D225) -> -6839 | E227: -7375 | F227: -10753 | G227: =SUM(G214:G225) -> -33633 | H227: =SUM(H214:H225) -> -5761 | I227: =SUM(I214:I225) -> -6041 | J227: -8839 | K227: =SUM(K214:K225) -> -7881 | L227: -28522 | M227: =SUM(M214:M225) -> -6205 | N227: =SUM(N214:N225) -> -5410 | O227: -6257 | P227: -5739 | Q227: -23611 | R227: =SUM(R214:R225) -> -7561 | S227: =SUM(S214:S225) -> -4841 | T227: =SUM(T214:T225) -> -4657 | U227: -6048 | V227: -23107 | W227: =SUM(W214:W225) -> -7461 | X227: -2859 | Y227: -4867 | Z227: -10278 | AA227: -25465 | AB227: -8529 | AC227: =SUM(AC214:AC226) -> -9494 | AD227: =SUM(AD214:AD226) -> -9127 | AE227: =SUM(AE214:AE226) -> -9618 | AF227: =SUM(AF214:AF226) -> -36768 | AG227: =SUM(AG214:AG226) -> -7808 | AH227: =SUM(AH214:AH225) -> -8735 | AI227: -7826 | AJ227: -7911 | AK227: -32280 | AL227: -9674 | AM227: -9813 | AN227: -8632 | AO227: -16129 | AP227: -44248 | AQ227: -25320 | AR227: -16053 | AS227: -10559 | AT227: -11968 | AU227: -63900 | AV227: -17563 | AW227: -23249 | AX227: -20598 | AY227: -24105 | AZ227: -85515 | BA227: -19779 | BB227: -18263 | BC227: -18221 | BD227: -14185 | BE227: -70448 | BF227: -23697 | BG227: -19765 | BH227: 10770 | BI227: -32125 | BJ227: -64817 | BK227: -1580 | BL227: =SUM(BL214:BL226) -> -34242 | BM227: =SUM(BM214:BM226) -> -23143 | BN227: =SUM(BN214:BN226) -> 36049 | BO227: =SUM(BO214:BO225) -> -22916 | BP227: =SUM(BP214:BP225) -> -22729 | BQ227: =SUM(BQ214:BQ225) -> -15300
B229: FLUXO DE CAIXA DAS ATIVIDADES DE FINANCIAMENTO
B230: Pagamento de empréstimos | C230: -45739 | D230: -43050 | E230: -43399 | F230: =G230-SUM(C230:E230) -> -43006 | G230: -175194 | H230: -30763 | I230: -49261 | J230: -37789 | K230: =L230-SUM(H230:J230) -> -46362 | L230: -164175 | M230: -23510 | N230: -39799 | O230: -26996 | P230: =Q230-SUM(M230:O230) -> -25564 | Q230: -115869 | R230: -26631 | S230: -30726 | T230: -25039 | U230: -18663 | V230: =SUM(R230:U230) -> -101059 | W230: -42348 | X230: -24843 | Y230: -15001 | Z230: -17402 | AA230: =SUM(W230:Z230) -> -99594 | AB230: -14175 | AC230: -28290 | AD230: -33827 | AE230: -51166 | AF230: =SUM(AB230:AE230) -> -127458 | AG230: -7441 | AH230: -16010 | AI230: -18869 | AJ230: -32124 | AK230: -74444 | AL230: -32814 | AM230: -6733 | AN230: -33074 | AO230: -19361 | AP230: -91982 | AQ230: -23927 | AR230: -146125 | AS230: -501555 | AT230: -112397 | AU230: -784004 | AV230: -40090 | AW230: -66106 | AX230: -19854 | AY230: -45770 | AZ230: -171820 | BA230: -49957 | BB230: -58589 | BC230: -38005 | BD230: -172556 | BE230: -319107 | BF230: -38170 | BG230: -45487 | BH230: -26957 | BI230: -93908 | BJ230: -204522 | BK230: -142530 | BL230: -4029 | BM230: -23257 | BN230: -43640 | BO230: -213456 | BP230: -21530 | BQ230: -1051
B231: Captação de empréstimos | C231: 32034 | D231: 46802 | E231: 42924 | F231: =G231-SUM(C231:E231) -> 37223 | G231: 158983 | H231: 37791 | I231: 40589 | J231: 44093 | K231: 42492 | L231: 164965 | M231: 26851 | N231: 34059 | O231: 14733 | P231: 38285 | Q231: 113928 | R231: 24334 | S231: 26857 | T231: 4714 | U231: 30504 | V231: 86409 | W231: 34562 | X231: 8607 | Y231: 11903 | Z231: 31532 | AA231: =SUM(W231:Z231) -> 86604 | AB231: 15747 | AC231: 40753 | AD231: 60457 | AE231: 49553 | AF231: 166510 | AG231: 20203 | AH231: 16780 | AI231: 4779 | AJ231: 31165 | AK231: 72927 | AL231: 6000 | AM231: 0 | AN231: 31180 | AO231: 2000 | AP231: 39180 | AQ231: 68261 | AR231: 130814 | AS231: 539300 | AT231: 30915 | AU231: 769290 | AV231: 13249 | AW231: 167353 | AX231: 15795 | AY231: 3282 | AZ231: 199679 | BA231: 54819 | BB231: 89110 | BC231: 43606 | BD231: 214895 | BE231: 402430 | BF231: 27521 | BG231: 64913 | BH231: 61536 | BI231: 85101 | BJ231: 239071 | BK231: 250515 | BL231: 2881 | BM231: 57392 | BN231: 61867 | BO231: 372655 | BP231: 9540 | BQ231: 0
B232: Juros Pagos | C232: -15418 | D232: -6000 | E232: -6000 | F232: =G232-SUM(C232:E232) -> -6000 | G232: -33418 | H232: -19168 | I232: -18514 | J232: -20938 | K232: -27919 | L232: -86539 | M232: -101 | N232: -58 | O232: -268 | P232: -12183 | Q232: -12610 | R232: -323 | S232: -317 | T232: -240 | U232: -183 | V232: -1063 | W232: -6669 | X232: -2937 | Y232: -1754 | Z232: -387 | AA232: -11747 | AB232: -424 | AC232: -49936 | AD232: -9681 | AE232: -8113 | AF232: -68154 | AG232: -28398 | AH232: -788 | AI232: -727 | AJ232: -517 | AK232: -30430 | AL232: -44711 | AM232: -1369 | AN232: -36733 | AO232: -892 | AP232: -83705 | AQ232: -18093 | AR232: -20359 | AS232: -40880 | AT232: 9540 | AU232: -69791 | AV232: -17274 | AW232: -17992 | AX232: -20942 | AY232: -15500 | AZ232: -71708 | BA232: -3474 | BB232: -21211 | BC232: -6407 | BD232: -25751 | BE232: -56843 | BF232: 0 | BG232: -16811 | BH232: -4862 | BI232: -17431 | BJ232: -39104 | BK232: -2374 | BL232: -14838 | BM232: -6018 | BN232: -12677 | BO232: -35907 | BP232: -6220 | BQ232: 0
B233: Aumento de capital em controladora | C233: 0 | D233: 0 | E233: 0 | F233: =G233-SUM(C233:E233) -> 0 | G233: 0 | H233: 0 | I233: 0 | J233: 0 | K233: 0 | L233: 0 | M233: 0 | N233: 0 | O233: 0 | P233: 0 | Q233: 0 | R233: 0 | S233: 0 | T233: 0 | U233: 0 | V233: 0 | W233: 0 | X233: 0 | Y233: 0 | Z233: 0 | AA233: 0 | AB233: 0 | AC233: 0 | AD233: 10000 | AE233: 0 | AF233: 10000 | AG233: 0 | AH233: 0 | AI233: 50000 | AJ233: 0 | AK233: 50000 | AL233: 2251 | AM233: 9 | AN233: 0 | AO233: 0 | AP233: 2260 | AQ233: 0 | AR233: 0 | AS233: 0 | AT233: 103755 | AU233: 103755 | AV233: 0 | AW233: 0 | AX233: 0 | AY233: 0 | AZ233: 0 | BA233: 0 | BB233: 0 | BC233: 0 | BD233: 0 | BE233: 0 | BF233: 0 | BG233: 0 | BH233: 0 | BI233: 0 | BJ233: 0 | BK233: 0 | BL233: 0 | BM233: 0 | BN233: 0 | BO233: 0 | BP233: 0 | BQ233: 0
B234: Captação de partes relacionadas | C234: 0 | D234: 0 | E234: 0 | F234: =G234-SUM(C234:E234) -> 0 | G234: 0 | H234: 0 | I234: 0 | J234: 0 | K234: 0 | L234: 0 | M234: 0 | N234: 0 | O234: 0 | P234: 0 | Q234: 0 | R234: 0 | S234: 0 | T234: 0 | U234: 0 | V234: 0 | W234: 0 | X234: 0 | Y234: 0 | Z234: 0 | AA234: 0 | AB234: 0 | AC234: 0 | AD234: 0 | AE234: 0 | AF234: 0 | AG234: 0 | AH234: 0 | AI234: 0 | AJ234: 0 | AK234: 0 | AL234: 47749 | AM234: 0 | AN234: 0 | AO234: 0 | AP234: 47749 | AQ234: 0 | AR234: 0 | AS234: 0 | AT234: 0 | AU234: 0 | AV234: 0 | AW234: 0 | AX234: 0 | AY234: 0 | AZ234: 0 | BA234: 0 | BB234: 0 | BC234: 0 | BD234: 0 | BE234: 0 | BF234: 0 | BG234: 0 | BH234: 0 | BI234: 0 | BJ234: 0 | BK234: 0 | BL234: 0 | BM234: 0 | BN234: 0 | BO234: 0 | BP234: 0 | BQ234: 0
B235: AFAC - adiantamento futuro aumento capital | C235: 0 | D235: 0 | E235: 0 | F235: =G235-SUM(C235:E235) -> 0 | G235: 0 | H235: 0 | I235: 0 | J235: 0 | K235: 0 | L235: 0 | M235: 0 | N235: 0 | O235: 0 | P235: 0 | Q235: 0 | R235: 0 | S235: 0 | T235: 0 | U235: 0 | V235: 0 | W235: 0 | X235: 0 | Y235: 0 | Z235: 0 | AA235: 0 | AB235: 0 | AC235: 10000 | AD235: -10000 | AE235: 0 | AF235: 0 | AG235: 0 | AH235: 0 | AI235: 0 | AJ235: 0 | AK235: 0 | AL235: 0 | AM235: 0 | AN235: 0 | AO235: 0 | AP235: 0 | AQ235: 0 | AR235: 0 | AS235: 0 | AT235: 0 | AU235: 0 | AV235: 0 | AW235: 0 | AX235: 0 | AY235: 0 | AZ235: 0 | BA235: 0 | BB235: 0 | BC235: 0 | BD235: 0 | BE235: 0 | BF235: 0 | BG235: 0 | BH235: 0 | BI235: 0 | BJ235: 0 | BK235: 0 | BL235: 0 | BM235: 0 | BN235: 0 | BO235: 0 | BP235: 0 | BQ235: 0
B236: Pagamentos na aquisição de controladas | C236: 0 | D236: 0 | E236: 0 | F236: =G236-SUM(C236:E236) -> 0 | G236: 0 | H236: 0 | I236: 0 | J236: 0 | K236: 0 | L236: 0 | M236: 0 | N236: 0 | O236: 0 | P236: 0 | Q236: 0 | R236: 0 | S236: 0 | T236: 0 | U236: 0 | V236: 0 | W236: 0 | X236: 0 | Y236: 0 | Z236: 0 | AA236: 0 | AB236: 0 | AC236: 0 | AD236: 0 | AE236: 0 | AF236: 0 | AG236: 0 | AH236: 0 | AI236: 0 | AJ236: 0 | AK236: 0 | AL236: 0 | AM236: 0 | AN236: 0 | AO236: 0 | AP236: 0 | AQ236: 0 | AR236: 0 | AS236: -3732 | AT236: -6479 | AU236: -10211 | AV236: -248 | AW236: -248 | AX236: -6437 | AY236: -1229 | AZ236: -8162 | BA236: -687 | BB236: -325 | BC236: -5794 | BD236: -223 | BE236: -7029 | BF236: -1228 | BG236: -471 | BH236: -5218 | BI236: -235 | BJ236: -7152 | BK236: -24020 | BL236: -203 | BM236: -956 | BN236: -48078 | BO236: -73257 | BP236: -39741 | BQ236: -1235
B237: Dividendos distribuídos por controlada | C237: 0 | D237: 0 | E237: 0 | F237: =G237-SUM(C237:E237) -> 0 | G237: 0 | H237: 0 | I237: 0 | J237: 0 | K237: 0 | L237: 0 | M237: 0 | N237: 0 | O237: 0 | P237: 0 | Q237: 0 | R237: 0 | S237: 0 | T237: 0 | U237: 0 | V237: 0 | W237: 0 | X237: 0 | Y237: 0 | Z237: 0 | AA237: 0 | AB237: 0 | AC237: 0 | AD237: 0 | AE237: 0 | AF237: 0 | AG237: 0 | AH237: 0 | AI237: 0 | AJ237: 0 | AK237: 0 | AL237: 0 | AM237: 0 | AN237: 0 | AO237: 0 | AP237: 0 | AQ237: 0 | AR237: 0 | AS237: 0 | AT237: 0 | AU237: 0 | AV237: 0 | AW237: 0 | AX237: 0 | AY237: -7181 | AZ237: -7181 | BA237: 0 | BB237: 0 | BC237: 0 | BD237: -5768 | BE237: -5768 | BF237: 0 | BG237: 0 | BH237: 0 | BI237: 0 | BJ237: 0 | BK237: 0 | BL237: 0 | BM237: 0 | BN237: 0 | BO237: 0 | BP237: 0 | BQ237: -1684
B238: Juros sobre o capital próprio e dividendos pagos | C238: 0 | D238: 0 | E238: 0 | F238: =G238-SUM(C238:E238) -> 0 | G238: 0 | H238: 0 | I238: 0 | J238: 0 | K238: 0 | L238: 0 | M238: 0 | N238: 0 | O238: 0 | P238: 0 | Q238: 0 | R238: 0 | S238: 0 | T238: 0 | U238: 0 | V238: 0 | W238: 0 | X238: 0 | Y238: 0 | Z238: 0 | AA238: 0 | AB238: 0 | AC238: 0 | AD238: 0 | AE238: 0 | AF238: 0 | AG238: 0 | AH238: 0 | AI238: 0 | AJ238: 0 | AK238: 0 | AL238: 0 | AM238: 0 | AN238: 0 | AO238: 0 | AP238: 0 | AQ238: 0 | AR238: 0 | AS238: 0 | AT238: 0 | AU238: 0 | AV238: 0 | AW238: 0 | AX238: 0 | AY238: 0 | AZ238: 0 | BA238: 0 | BB238: 0 | BC238: 0 | BD238: 0 | BE238: 0 | BF238: 0 | BG238: 0 | BH238: 0 | BI238: 0 | BJ238: 0 | BK238: 0 | BL238: 0 | BM238: 0 | BN238: 0 | BO238: 0 | BP238: 0 | BQ238: 0
B239: Ganho recompra debêntures | C239: 0 | D239: 0 | E239: 0 | F239: =G239-SUM(C239:E239) -> 0 | G239: 0 | H239: 0 | I239: 0 | J239: 0 | K239: 0 | L239: 0 | M239: 0 | N239: 0 | O239: 0 | P239: 0 | Q239: 0 | R239: 0 | S239: 0 | T239: 0 | U239: 0 | V239: 0 | W239: 0 | X239: 0 | Y239: 0 | Z239: 0 | AA239: 0 | AB239: 0 | AC239: 0 | AD239: 0 | AE239: 0 | AF239: 0 | AG239: 0 | AH239: 0 | AI239: 0 | AJ239: 0 | AK239: 0 | AL239: 0 | AM239: 0 | AN239: 2495 | AO239: 0 | AP239: 2495 | AQ239: 0 | AR239: 0 | AS239: 0 | AT239: 0 | AU239: 0 | AV239: 0 | AW239: 0 | AX239: 0 | AY239: 0 | AZ239: 0 | BA239: 0 | BB239: 0 | BC239: 0 | BD239: 0 | BE239: 0 | BF239: 0 | BG239: 0 | BH239: 0 | BI239: 0 | BJ239: 0 | BK239: 0 | BL239: 0 | BM239: 0 | BN239: 0 | BO239: 0 | BP239: 0 | BQ239: 0
B240: Pagamento de principal - Arrendamento mercantil | C240: -11706 | D240: -11310 | E240: -11355 | F240: =G240-SUM(C240:E240) -> -14878 | G240: -49249 | H240: -11666 | I240: -11396 | J240: -11391 | K240: -16637 | L240: -51090 | M240: -11298 | N240: -11224 | O240: -11032 | P240: -15328 | Q240: -48882 | R240: -6242 | S240: -6648 | T240: -8506 | U240: -14056 | V240: -35452 | W240: -11388 | X240: -1440 | Y240: -7364 | Z240: -7478 | AA240: -27670 | AB240: -9647 | AC240: -8383 | AD240: -9526 | AE240: -19196 | AF240: -46752 | AG240: 0 | AH240: 0 | AI240: 0 | AJ240: 0 | AK240: 0 | AL240: 0 | AM240: 0 | AN240: 0 | AO240: 0 | AP240: 0 | AQ240: 0 | AR240: 0 | AS240: 0 | AT240: 0 | AU240: 0 | AV240: 0 | AW240: 0 | AX240: 0 | AY240: 0 | AZ240: 0 | BA240: 0 | BB240: 0 | BC240: 0 | BD240: 0 | BE240: 0 | BF240: 0 | BG240: 0 | BH240: 0 | BI240: 0 | BJ240: 0 | BK240: 0 | BL240: 0 | BM240: 0 | BN240: 0 | BO240: 0 | BP240: 0 | BQ240: 0
B241: Pagamento de juros - Arrendamento mercantil | C241: -2969 | D241: -3104 | E241: -3176 | F241: =G241-SUM(C241:E241) -> -3443 | G241: -12692 | H241: -3206 | I241: -3009 | J241: -2958 | K241: -3262 | L241: -12435 | M241: -2687 | N241: -2754 | O241: -3016 | P241: -3059 | Q241: -11516 | R241: -2479 | S241: -2428 | T241: -2553 | U241: -2909 | V241: -10369 | W241: -3441 | X241: -3344 | Y241: -3046 | Z241: -3216 | AA241: -13047 | AB241: -4695 | AC241: -3866 | AD241: -4092 | AE241: -2521 | AF241: -15174 | AG241: 0 | AH241: 0 | AI241: 0 | AJ241: 0 | AK241: 0 | AL241: 0 | AM241: 0 | AN241: 0 | AO241: 0 | AP241: 0 | AQ241: 0 | AR241: 0 | AS241: 0 | AT241: 0 | AU241: 0 | AV241: 0 | AW241: 0 | AX241: 0 | AY241: 0 | AZ241: 0 | BA241: 0 | BB241: 0 | BC241: 0 | BD241: 0 | BE241: 0 | BF241: 0 | BG241: 0 | BH241: 0 | BI241: 0 | BJ241: 0 | BK241: 0 | BL241: 0 | BM241: 0 | BN241: 0 | BO241: 0 | BP241: 0 | BQ241: 0
B242: Caixa líquido gerado pelas atividades de financiamento | C242: =SUM(C230:C241) -> -43798 | D242: =SUM(D230:D241) -> -16662 | E242: -21006 | F242: -30104 | G242: =SUM(G230:G241) -> -111570 | H242: =SUM(H230:H241) -> -27012 | I242: =SUM(I230:I241) -> -41591 | J242: =SUM(J230:J241) -> -28983 | K242: -51688 | L242: -149274 | M242: =SUM(M230:M241) -> -10745 | N242: =SUM(N230:N241) -> -19776 | O242: -26579 | P242: -17849 | Q242: -74949 | R242: =SUM(R230:R241) -> -11341 | S242: =SUM(S230:S241) -> -13262 | T242: =SUM(T230:T241) -> -31624 | U242: -5307 | V242: -61534 | W242: =SUM(W230:W241) -> -29284 | X242: -23957 | Y242: -15262 | Z242: 3049 | AA242: -65454 | AB242: -13194 | AC242: =SUM(AC230:AC241) -> -39722 | AD242: 3331 | AE242: =SUM(AE230:AE241) -> -31443 | AF242: -81028 | AG242: -15636 | AH242: -18 | AI242: 35183 | AJ242: -1476 | AK242: 18053 | AL242: -21525 | AM242: -8093 | AN242: -36132 | AO242: -18253 | AP242: -84003 | AQ242: 26241 | AR242: -35670 | AS242: -6867 | AT242: 25334 | AU242: 9039 | AV242: -44363 | AW242: 83007 | AX242: -31438 | AY242: -66398 | AZ242: -59192 | BA242: 701 | BB242: 8985 | BC242: -6600 | BD242: 10597 | BE242: 13683 | BF242: -11877 | BG242: 2144 | BH242: 24499 | BI242: -26473 | BJ242: -11707 | BK242: 81591 | BL242: -16189 | BM242: 27161 | BN242: -42528 | BO242: 50035 | BP242: -57951 | BQ242: =SUM(BQ230:BQ241) -> -3970
B244: AUMENTO (REDUÇÃO) DO SALDO DE CAIXA E EQUIVALENTES DE CAIXA | C244: =C242+C227+C211 -> -1101 | D244: =D242+D227+D211 -> 18 | E244: -353 | F244: 1068 | G244: =G242+G227+G211 -> -368 | H244: =H242+H227+H211 -> -173 | I244: =I242+I227+I211 -> -1156 | J244: =J242+J227+J211 -> -491 | K244: 1063 | L244: -757 | M244: =M242+M227+M211 -> -4343 | N244: =N242+N227+N211 -> -893 | O244: -1283 | P244: 428 | Q244: -6091 | R244: =R242+R227+R211 -> -4236 | S244: =S242+S227+S211 -> -4732 | T244: =T242+T227+T211 -> -1460 | U244: 3364 | V244: -7064 | W244: =W242+W227+W211 -> -3990 | X244: 3864 | Y244: -9206 | Z244: 5397 | AA244: -3935 | AB244: -14074 | AC244: -4318 | AD244: 2930 | AE244: 10715 | AF244: -4747 | AG244: -3576 | AH244: 1008 | AI244: -2517 | AJ244: 11979 | AK244: 6894 | AL244: -42566 | AM244: 18006 | AN244: -21157 | AO244: -847 | AP244: -46564 | AQ244: -71469 | AR244: 19239 | AS244: -12559 | AT244: 36920 | AU244: -27869 | AV244: -68177 | AW244: 81404 | AX244: 4125 | AY244: -15768 | AZ244: 1584 | BA244: -20856 | BB244: 48029 | BC244: -29957 | BD244: 52230 | BE244: 49446 | BF244: -50119 | BG244: -5841 | BH244: 48464 | BI244: -9552 | BJ244: -17048 | BK244: 82695 | BL244: -71949 | BM244: -10575 | BN244: 40131 | BO244: 40302 | BP244: -104009 | BQ244: 8921
B246: DEMONSTRAÇÃO DA VARIAÇÃO NOS SALDOS DE CAIXA E EQUIVALENTES DE CAIXA
B247: Saldo inicial | C247: 3563 | D247: 2462 | E247: 2480 | F247: =G247-SUM(C247:E247) -> -4942 | G247: 3563 | H247: 4320 | I247: 4147 | J247: =I248 -> 2991 | K247: =J248 -> 2500 | L247: =P248 -> 4320 | M247: 10411 | N247: 6068 | O247: 5175 | P247: =O248 -> 3892 | Q247: 10411 | R247: 17475 | S247: =R248 -> 13239 | T247: =S248 -> 8507 | U247: 7047 | V247: =SUM(R247:U247) -> 46268 | W247: 21410 | X247: =W248 -> 17420 | Y247: 21284 | Z247: =Y248 -> 12078 | AA247: 21410 | AB247: 26157 | AC247: 12083 | AD247: 7765 | AE247: 10695 | AF247: 26157 | AG247: 19263 | AH247: 15687 | AI247: 16695 | AJ247: =AI248 -> 14178 | AK247: 19263 | AL247: 65827 | AM247: 23261 | AN247: 41267 | AO247: 20110 | AP247: 65827 | AQ247: 93696 | AR247: 22227 | AS247: 41466 | AT247: 28907 | AU247: 93696 | AV247: 92112 | AW247: 23935 | AX247: 105339 | AY247: 109464 | AZ247: 92112 | BA247: 42666 | BB247: 21810 | BC247: 69839 | BD247: 39882 | BE247: 42666 | BF247: 59714 | BG247: 9595 | BH247: 3754 | BI247: 52218 | BJ247: 125281 | BK247: 19412 | BL247: 102107 | BM247: 30158 | BN247: 19583 | BO247: 19412 | BP247: 123421 | BQ247: 114500
B248: Saldo final | C248: 2462 | D248: 2480 | E248: 2127 | F248: =G248-SUM(C248:E248) -> -3874 | G248: 3195 | H248: 4147 | I248: 2991 | J248: 2500 | K248: =L248 -> 3563 | L248: 3563 | M248: 6068 | N248: 5175 | O248: 3892 | P248: =Q248 -> 4320 | Q248: 4320 | R248: 13239 | S248: 8507 | T248: 7047 | U248: 10411 | V248: 39204 | W248: 17420 | X248: 21284 | Y248: 12078 | Z248: 17475 | AA248: 17475 | AB248: 12083 | AC248: 7765 | AD248: 10695 | AE248: 21410 | AF248: 21410 | AG248: 15687 | AH248: 16695 | AI248: 14178 | AJ248: 26157 | AK248: 26157 | AL248: 23261 | AM248: 41267 | AN248: 20110 | AO248: 19263 | AP248: 19263 | AQ248: 22227 | AR248: 41466 | AS248: 28907 | AT248: 65827 | AU248: 65827 | AV248: 23935 | AW248: 105339 | AX248: 109464 | AY248: 93696 | AZ248: 93696 | BA248: 21810 | BB248: 69839 | BC248: 39882 | BD248: 92112 | BE248: 92112 | BF248: 9595 | BG248: 3754 | BH248: 52218 | BI248: 42666 | BJ248: 108233 | BK248: 102107 | BL248: 30158 | BM248: 19583 | BN248: 59714 | BO248: 59714 | BP248: 19412 | BQ248: 123421
... 2 more rows
